Workbook

Sheet Aktualisierungen
A5: Photovoltaik - Berechnungstool der Österreichischen Energieagentur

Sheet Erläuterungen
A5: Photovoltaik - Berechnungstool der Österreichischen Energieagentur
A20: Kontakt: | B20: DI (FH) Franz Jetzinger
B21: f.jetzinger@linzag.at
B22: http://www.klimaaktiv.at/tools/erneuerbare/pv_rechner.html

Sheet Eingabe
B6: Photovoltaik - Berechnungstool der Österreichischen Energieagentur
A7: aktualisiert und ergänzt in Kooperation mit LINZ STROM GAS WÄRME GmbH
B9: 1. Allgemeine Eingaben | M9: =IF(AND(H63="Invest- inkl. Tarifförderung",H37>=5),"6. Übersicht zum Eigenverbrauch während des Fördertarifs",IF(H63="Investzuschuss","6. Förderquote Investitionsförderung","6. Keine Tarifförderung möglich!")) -> 6. Keine Tarifförderung möglich!
G11: Ort des Gebäudes: | H11: ='PLZ-Zuordnung'!J5 -> Steyr
G12: PLZ: | H12: 4400
G15: Einstrahlung (horizontale Fläche): | H15: =Wetterdaten!L5 -> 1068 | I15: kWh/m²a
G16: Einstrahlung nach Angabe der Ausrichtung: | H16: =Ausrichtung!H51 -> 1193.647059 | I16: kWh/m²a
C19: Ausrichtung: | H19: Die Angabe der Ausrichtung der Anlage erfolgt von Osten nach Westen von -90° bis +90° (zB.: -45° = SO)
O21: ="Gesamte Investitionsförderung: "&ROUND((1-($H$92/$H$89))*100,0)&" %" -> Gesamte Investitionsförderung: 15 %
H23: 0 | I23: °
C25: Aufstellung: | H25: Die Angabe zur Neigung der Anlage erfolgt von 0° bis 90° (z.B.: 90° = Fassadenanlage) | M25: =IF(AND(H63="Invest- inkl. Tarifförderung",H65="Überschusseinspeisung"),"7. Übersicht zum Eigenverbrauch nach Fördertarif (dzt. 13 Jahre)","7. Übersicht zum Eigenverbrauch") -> 7. Übersicht zum Eigenverbrauch
H29: 45 | I29: °
C31: Randbedingungen: | E31: Es kommt in keinster Weise zu einer Verschattung der Anlage!
E32: =IF(C55="Gebäudeintegriert","Die Anlage ist gebäudeintegriert!",IF(C55="Aufdach","Die Anlage ist hinterlüftet!","Es handelt sich um eine Freiflächenanlage!")) -> Die Anlage ist hinterlüftet!
C35: 2. Technische Rahmenbedingungen
C37: Größe der Anlage: | G37: Anlagenleistung: | H37: 10 | I37: [kWp]
G38: Gesamtfläche: | H38: =H37/H45*H44 -> 59.64285714 | I38: [m²]
G39: Gesamtwirkungsgrad: | H39: =(H46*H49)/100 -> 16.26347305 | I39: [%]
G40: Systemnutzungsgrad: | H40: =IF(C55="Gebäudeintegriert",H39*0.81,IF(C55="Aufdach",H39*0.86,H39*0.87)) -> 13.98658683 | I40: [%]
G41: Anzahl der Module: | H41: =ROUND(H37/H45,0) -> 36 | I41: [Module]
C44: Moduldaten: | G44: Modulfläche: | H44: 1.67 | I44: [m²/Modul] | M44: 8. Übersicht über die jährlichen Einnahmen (Barwerte)
G45: Nennleistung: | H45: 0.28 | I45: [kWp/Modul]
G46: Modulwirkungsgrad (STC-Bedingungen): | H46: =(H45/H44)*100 -> 16.76646707 | I46: [%]
C49: Wechselrichterdaten: | G49: europ. Wirkungsgrad: | H49: 97 | I49: [%]
C52: ="3. Förderungen für "&IF(H12="","??? - PLZ erforderlich!",'PLZ-Zuordnung'!J4) -> 3. Förderungen für Oberösterreich
C54: Anlagenart | D54: Anlagengröße | F54: Landesförderung | H54: Bundesförderung
C55: Aufdach | F55: Investition | H55: Investition | I55: =IF(C57=C196,C196,IF(C57=C197,C197,"Zu-/Abschläge")) -> Zu-/Abschläge
C56: Zu- oder Abschlag? | D56: =IF($C$52="3. Förderungen für Burgenland",Förderungen!C8,IF($C$52="3. Förderungen für Kärnten",Förderungen!C20,IF($C$52="3. Förderungen für Niederösterreich",Förderungen!C32,IF($C$52="3. Förderungen für Oberösterreich",Förderungen!C44,IF($C$52="3. Förderungen für Salzburg",Förderungen!C56,IF($C$52="3. Förderungen für Steiermark",Förderungen!C70,IF($C$52="3. Förderungen für Tirol",Förderungen!C82,IF($C$52="3. Förderungen für Vorarlberg",Förderungen!C94,Förderungen!C106)))))))) -> 0,01-10 | E56: =IF($C$52="3. Förderungen für Burgenland",Förderungen!D8,IF($C$52="3. Förderungen für Kärnten",Förderungen!D20,IF($C$52="3. Förderungen für Niederösterreich",Förderungen!D32,IF($C$52="3. Förderungen für Oberösterreich",Förderungen!D44,IF($C$52="3. Förderungen für Salzburg",Förderungen!D56,IF($C$52="3. Förderungen für Steiermark",Förderungen!D70,IF($C$52="3. Förderungen für Tirol",Förderungen!D82,IF($C$52="3. Förderungen für Vorarlberg",Förderungen!D94,Förderungen!D106)))))))) -> kWp | F56: =IF($C$52="3. Förderungen für Burgenland",Förderungen!E8,IF($C$52="3. Förderungen für Kärnten",Förderungen!E20,IF($C$52="3. Förderungen für Niederösterreich",Förderungen!E32,IF($C$52="3. Förderungen für Oberösterreich",Förderungen!E44,IF($C$52="3. Förderungen für Salzburg",Förderungen!E56,IF($C$52="3. Förderungen für Steiermark",Förderungen!E70,IF($C$52="3. Förderungen für Tirol",Förderungen!E82,IF($C$52="3. Förderungen für Vorarlberg",Förderungen!E94,Förderungen!E106)))))))) -> - | G56: =IF($C$52="3. Förderungen für Burgenland",Förderungen!F8,IF($C$52="3. Förderungen für Kärnten",Förderungen!F20,IF($C$52="3. Förderungen für Niederösterreich",Förderungen!F32,IF($C$52="3. Förderungen für Oberösterreich",Förderungen!F44,IF($C$52="3. Förderungen für Salzburg",Förderungen!F56,IF($C$52="3. Förderungen für Steiermark",Förderungen!F70,IF($C$52="3. Förderungen für Tirol",Förderungen!F82,IF($C$52="3. Förderungen für Vorarlberg",Förderungen!F94,Förderungen!F106)))))))) -> - | H56: =IF($C$52="3. Förderungen für Burgenland",Förderungen!G8,IF($C$52="3. Förderungen für Kärnten",Förderungen!G20,IF($C$52="3. Förderungen für Niederösterreich",Förderungen!G32,IF($C$52="3. Förderungen für Oberösterreich",Förderungen!G44,IF($C$52="3. Förderungen für Salzburg",Förderungen!G56,IF($C$52="3. Förderungen für Steiermark",Förderungen!G70,IF($C$52="3. Förderungen für Tirol",Förderungen!G82,IF($C$52="3. Förderungen für Vorarlberg",Förderungen!G94,Förderungen!G106)))))))) -> 285 | I56: =IF($C$57=$C$196,H56*0.3,IF($C$57=$C$197,H56*0.25,0)) -> 0
C57: weder noch | D57: =IF($C$52="3. Förderungen für Burgenland",Förderungen!C9,IF($C$52="3. Förderungen für Kärnten",Förderungen!C21,IF($C$52="3. Förderungen für Niederösterreich",Förderungen!C33,IF($C$52="3. Förderungen für Oberösterreich",Förderungen!C45,IF($C$52="3. Förderungen für Salzburg",Förderungen!C57,IF($C$52="3. Förderungen für Steiermark",Förderungen!C71,IF($C$52="3. Förderungen für Tirol",Förderungen!C83,IF($C$52="3. Förderungen für Vorarlberg",Förderungen!C95,Förderungen!C107)))))))) -> >10-20 | E57: =IF($C$52="3. Förderungen für Burgenland",Förderungen!D9,IF($C$52="3. Förderungen für Kärnten",Förderungen!D21,IF($C$52="3. Förderungen für Niederösterreich",Förderungen!D33,IF($C$52="3. Förderungen für Oberösterreich",Förderungen!D45,IF($C$52="3. Förderungen für Salzburg",Förderungen!D57,IF($C$52="3. Förderungen für Steiermark",Förderungen!D71,IF($C$52="3. Förderungen für Tirol",Förderungen!D83,IF($C$52="3. Förderungen für Vorarlberg",Förderungen!D95,Förderungen!D107)))))))) -> kWp | F57: =IF($C$52="3. Förderungen für Burgenland",Förderungen!E9,IF($C$52="3. Förderungen für Kärnten",Förderungen!E21,IF($C$52="3. Förderungen für Niederösterreich",Förderungen!E33,IF($C$52="3. Förderungen für Oberösterreich",Förderungen!E45,IF($C$52="3. Förderungen für Salzburg",Förderungen!E57,IF($C$52="3. Förderungen für Steiermark",Förderungen!E71,IF($C$52="3. Förderungen für Tirol",Förderungen!E83,IF($C$52="3. Förderungen für Vorarlberg",Förderungen!E95,Förderungen!E107)))))))) -> - | G57: =IF($C$52="3. Förderungen für Burgenland",Förderungen!F9,IF($C$52="3. Förderungen für Kärnten",Förderungen!F21,IF($C$52="3. Förderungen für Niederösterreich",Förderungen!F33,IF($C$52="3. Förderungen für Oberösterreich",Förderungen!F45,IF($C$52="3. Förderungen für Salzburg",Förderungen!F57,IF($C$52="3. Förderungen für Steiermark",Förderungen!F71,IF($C$52="3. Förderungen für Tirol",Förderungen!F83,IF($C$52="3. Förderungen für Vorarlberg",Förderungen!F95,Förderungen!F107)))))))) -> - | H57: =IF($C$52="3. Förderungen für Burgenland",Förderungen!G9,IF($C$52="3. Förderungen für Kärnten",Förderungen!G21,IF($C$52="3. Förderungen für Niederösterreich",Förderungen!G33,IF($C$52="3. Förderungen für Oberösterreich",Förderungen!G45,IF($C$52="3. Förderungen für Salzburg",Förderungen!G57,IF($C$52="3. Förderungen für Steiermark",Förderungen!G71,IF($C$52="3. Förderungen für Tirol",Förderungen!G83,IF($C$52="3. Förderungen für Vorarlberg",Förderungen!G95,Förderungen!G107)))))))) -> 250 | I57: =IF($C$57=$C$196,H57*0.3,IF($C$57=$C$197,H57*0.25,0)) -> 0
D58: =IF($C$52="3. Förderungen für Burgenland",Förderungen!C10,IF($C$52="3. Förderungen für Kärnten",Förderungen!C22,IF($C$52="3. Förderungen für Niederösterreich",Förderungen!C34,IF($C$52="3. Förderungen für Oberösterreich",Förderungen!C46,IF($C$52="3. Förderungen für Salzburg",Förderungen!C58,IF($C$52="3. Förderungen für Steiermark",Förderungen!C72,IF($C$52="3. Förderungen für Tirol",Förderungen!C84,IF($C$52="3. Förderungen für Vorarlberg",Förderungen!C96,Förderungen!C108)))))))) -> >20-100 | E58: =IF($C$52="3. Förderungen für Burgenland",Förderungen!D10,IF($C$52="3. Förderungen für Kärnten",Förderungen!D22,IF($C$52="3. Förderungen für Niederösterreich",Förderungen!D34,IF($C$52="3. Förderungen für Oberösterreich",Förderungen!D46,IF($C$52="3. Förderungen für Salzburg",Förderungen!D58,IF($C$52="3. Förderungen für Steiermark",Förderungen!D72,IF($C$52="3. Förderungen für Tirol",Förderungen!D84,IF($C$52="3. Förderungen für Vorarlberg",Förderungen!D96,Förderungen!D108)))))))) -> kWp | F58: =IF($C$52="3. Förderungen für Burgenland",Förderungen!E10,IF($C$52="3. Förderungen für Kärnten",Förderungen!E22,IF($C$52="3. Förderungen für Niederösterreich",Förderungen!E34,IF($C$52="3. Förderungen für Oberösterreich",Förderungen!E46,IF($C$52="3. Förderungen für Salzburg",Förderungen!E58,IF($C$52="3. Förderungen für Steiermark",Förderungen!E72,IF($C$52="3. Förderungen für Tirol",Förderungen!E84,IF($C$52="3. Förderungen für Vorarlberg",Förderungen!E96,Förderungen!E108)))))))) -> - | G58: =IF($C$52="3. Förderungen für Burgenland",Förderungen!F10,IF($C$52="3. Förderungen für Kärnten",Förderungen!F22,IF($C$52="3. Förderungen für Niederösterreich",Förderungen!F34,IF($C$52="3. Förderungen für Oberösterreich",Förderungen!F46,IF($C$52="3. Förderungen für Salzburg",Förderungen!F58,IF($C$52="3. Förderungen für Steiermark",Förderungen!F72,IF($C$52="3. Förderungen für Tirol",Förderungen!F84,IF($C$52="3. Förderungen für Vorarlberg",Förderungen!F96,Förderungen!F108)))))))) -> - | H58: =IF($C$52="3. Förderungen für Burgenland",Förderungen!G10,IF($C$52="3. Förderungen für Kärnten",Förderungen!G22,IF($C$52="3. Förderungen für Niederösterreich",Förderungen!G34,IF($C$52="3. Förderungen für Oberösterreich",Förderungen!G46,IF($C$52="3. Förderungen für Salzburg",Förderungen!G58,IF($C$52="3. Förderungen für Steiermark",Förderungen!G72,IF($C$52="3. Förderungen für Tirol",Förderungen!G84,IF($C$52="3. Förderungen für Vorarlberg",Förderungen!G96,Förderungen!G108)))))))) -> 180 | I58: 0
D59: =IF($C$52="3. Förderungen für Burgenland",Förderungen!C11,IF($C$52="3. Förderungen für Kärnten",Förderungen!C23,IF($C$52="3. Förderungen für Niederösterreich",Förderungen!C35,IF($C$52="3. Förderungen für Oberösterreich",Förderungen!C47,IF($C$52="3. Förderungen für Salzburg",Förderungen!C59,IF($C$52="3. Förderungen für Steiermark",Förderungen!C73,IF($C$52="3. Förderungen für Tirol",Förderungen!C85,IF($C$52="3. Förderungen für Vorarlberg",Förderungen!C97,Förderungen!C109)))))))) -> >100-1000 | E59: =IF($C$52="3. Förderungen für Burgenland",Förderungen!D11,IF($C$52="3. Förderungen für Kärnten",Förderungen!D23,IF($C$52="3. Förderungen für Niederösterreich",Förderungen!D35,IF($C$52="3. Förderungen für Oberösterreich",Förderungen!D47,IF($C$52="3. Förderungen für Salzburg",Förderungen!D59,IF($C$52="3. Förderungen für Steiermark",Förderungen!D73,IF($C$52="3. Förderungen für Tirol",Förderungen!D85,IF($C$52="3. Förderungen für Vorarlberg",Förderungen!D97,Förderungen!D109)))))))) -> kWp | F59: =IF($C$52="3. Förderungen für Burgenland",Förderungen!E11,IF($C$52="3. Förderungen für Kärnten",Förderungen!E23,IF($C$52="3. Förderungen für Niederösterreich",Förderungen!E35,IF($C$52="3. Förderungen für Oberösterreich",Förderungen!E47,IF($C$52="3. Förderungen für Salzburg",Förderungen!E59,IF($C$52="3. Förderungen für Steiermark",Förderungen!E73,IF($C$52="3. Förderungen für Tirol",Förderungen!E85,IF($C$52="3. Förderungen für Vorarlberg",Förderungen!E97,Förderungen!E109)))))))) -> - | G59: =IF($C$52="3. Förderungen für Burgenland",Förderungen!F11,IF($C$52="3. Förderungen für Kärnten",Förderungen!F23,IF($C$52="3. Förderungen für Niederösterreich",Förderungen!F35,IF($C$52="3. Förderungen für Oberösterreich",Förderungen!F47,IF($C$52="3. Förderungen für Salzburg",Förderungen!F59,IF($C$52="3. Förderungen für Steiermark",Förderungen!F73,IF($C$52="3. Förderungen für Tirol",Förderungen!F85,IF($C$52="3. Förderungen für Vorarlberg",Förderungen!F97,Förderungen!F109)))))))) -> - | H59: =IF($C$52="3. Förderungen für Burgenland",Förderungen!G11,IF($C$52="3. Förderungen für Kärnten",Förderungen!G23,IF($C$52="3. Förderungen für Niederösterreich",Förderungen!G35,IF($C$52="3. Förderungen für Oberösterreich",Förderungen!G47,IF($C$52="3. Förderungen für Salzburg",Förderungen!G59,IF($C$52="3. Förderungen für Steiermark",Förderungen!G73,IF($C$52="3. Förderungen für Tirol",Förderungen!G85,IF($C$52="3. Förderungen für Vorarlberg",Förderungen!G97,Förderungen!G109)))))))) -> 170 | I59: 0
C61: =IF($C$52="3. Förderungen für Burgenland",Förderungen!B13,IF($C$52="3. Förderungen für Kärnten",Förderungen!B25,IF($C$52="3. Förderungen für Niederösterreich",Förderungen!B37,IF($C$52="3. Förderungen für Oberösterreich",Förderungen!B49,IF($C$52="3. Förderungen für Salzburg",Förderungen!B61,IF($C$52="3. Förderungen für Steiermark",Förderungen!B75,IF($C$52="3. Förderungen für Tirol",Förderungen!B87,IF($C$52="3. Förderungen für Vorarlberg",Förderungen!B99,Förderungen!B111)))))))) -> Information:
C62: =IF($C$52="3. Förderungen für Burgenland",Förderungen!B14,IF($C$52="3. Förderungen für Kärnten",Förderungen!B26,IF($C$52="3. Förderungen für Niederösterreich",Förderungen!B38,IF($C$52="3. Förderungen für Oberösterreich",Förderungen!B50,IF($C$52="3. Förderungen für Salzburg",Förderungen!B62,IF($C$52="3. Förderungen für Steiermark",Förderungen!B76,IF($C$52="3. Förderungen für Tirol",Förderungen!B88,IF($C$52="3. Förderungen für Vorarlberg",Förderungen!B100,Förderungen!B112)))))))) -> keine Landesförderung
G63: Gewünschte Vergütung: | H63: EAG Investzuschuss
G64: =IF(H63="Fördertarif","*","") ->  | H64: =IF(H63="Fördertarif","Achtung: siehe Hinweis!","") -> 
G65: Vorgehensweise während Fördertarif: | H65: Überschusseinspeisung | M65: 9. Darstellung des Tarifs über den Betrachtungszeitraum
G67: Vorgehensweise nach Fördertarif: | H67: Überschusseinspeisung
C70: =IF(H63=C169,"Tarif - wurde gewählt!","Angaben zur Überschusseinspeisung") -> Angaben zur Überschusseinspeisung
C71: Hilfestellung - Abschätzung des Eigenverbrauchs: | G71: http://www.energieinstitut.at/tools/susi/
G73: Angabe des Strom-Eigenverbrauches: | H73: 30
G74: Einspeisung in das öffentliche Netz: | H74: =100-$H$73 -> 70 | I74: [%]
H75: =IF(H73>100,"Vorsicht! Fehler in der %-Angabe!","") -> 
G76: =IF(AND(H63="Fördertarif",H67="Überschusseinspeisung"),"Prognose Strompreis:","Strompreis der aktuell bezogen wird:") -> Strompreis der aktuell bezogen wird: | H76: =IF(AND(H63="Fördertarif",H67="Überschusseinspeisung"),Berechnungen!Q24,H103) -> 0.35 | I76: [€/kWh] | W76: =IF(W77>0,1,0) -> 0
G77: =IF(AND(H63="Fördertarif",H67="Überschusseinspeisung"),"Prognose Vergütung bei Überschusseinspeisung:","Vergütung bei Überschusseinspeisung:") -> Vergütung bei Überschusseinspeisung: | H77: =IF(AND(H63="Fördertarif",H67="Überschusseinspeisung"),Berechnungen!P24,H104) -> 0.256 | I77: [€/kWh] | W77: =(IF(Eingabe!H112*Eingabe!H73/100>25000,IF((Eingabe!H112*Eingabe!H73/100-25000)*0.015<=50,0,(Eingabe!H112*Eingabe!H73/100-25000)*0.015),0)) -> 0
G79: Errechnete Vergütung: | H79: =H76*H73/100+H77*H74/100 -> 0.2842 | I79: [€/kWh]
C82: 4. Wirtschaftliche Rahmenbedingungen
C84: Investitionskosten:
G86: Spezifische Kosten pro kWp: | H86: 1900 | I86: [€/kWp]
G87: =IF(H87<100%,"Eigenkapitalquote / Zinsen Fremdkapital:","Eigenkapitalquote:") -> Eigenkapitalquote: | H87: 1 | I87: 0.03
G88: =IF(H87<100%,"Kreditlaufzeit / Tilgungsfreie Jahre:","") ->  | H88: 10 | I88: 3 | J88: =I88+1 -> 4
G89: Gesamtkosten der Anlage: | H89: =H86*H37 -> 19000 | I89: [€] | J89: =H88-I88 -> 7
G90: =IF(AND(F218=0,OR(G218<>0,H218<>0)),"- Investitionsförderung Bund:",IF(AND(F218<>0,G218=0),"- Investitionsförderung Land:","- Investförderung des Landes & Bundes:")) -> - Investitionsförderung Bund: | H90: =IF(AND(H63=C172,E66=C204),R183,$I$218) -> 2850 | I90: [€]
G91: =IF(G90="- Investitionsförderung Bund:","Sonstige Förderung:","- sonstige Förderung (z.B.: Gemeinde):") -> Sonstige Förderung: | I91: [€] | J91: EK [€]:
G92: Investitionskosten: | H92: =H89-(H90+H91) -> 16150 | I92: [€] | J92: =H87*H92 -> 16150 | M92: 10. Kapitalwerteverlauf
C94: Laufende Kosten:
F96: Wechselrichteraustausch in 25 Jahren: | G96: einmal | H96: 2500 | I96: [€/Austausch]
G97: Laufende Kosten (Wartung, Versicherung): | H97: 0.4 | I97: [%]
G98: Ertragsminderung (Degradation) pro Jahr: | H98: 0.5 | I98: [%]
C100: Entwicklung:
G102: Inflationsrate/Jahr: | H102: 4 | I102: [%]
G103: Aktueller Strompreis: | H103: 0.35 | I103: [€/kWh]
G104: Aktuelle Vergütung für Einspeiser (EVU): | H104: 0.256 | I104: [€/kWh]
G105: Strompreissteigerung/Jahr: | H105: -2 | I105: [%]
G106: Kalkulationszinssatz: | H106: 1.5 | I106: [%]
C109: 5. Zusammenfassung
C111: Energie: | G111: Spezifischer Energieertrag: | H111: =H16*(H38/H37)*(H40/100) -> 995.7403765 | I111: [kWh/kWp]
G112: Energieertrag (1. Jahr): | H112: =H111*H37 -> 9957.403765 | I112: [kWh/a]
G113: Energieertrag nach 25 Jahren: | H113: =Berechnungen!D37 -> 234624.9728 | I113: [kWh]
C116: Kosten: | G116: Investitionskosten: | H116: =H92 -> 16150 | I116: [€]
G117: Mehreinnahmen nach 25 Jahren: | H117: =Berechnungen!$L$40 -> 24156.27958 | I117: [€]
G118: Amortisationsdauer: | H118: =Berechnungen!M37 -> 7 | I118: [Jahre]
C121: CO2: | G121: CO2-Einsparungen nach 25 Jahren: | H121: =ROUND(H113*0.45,0) -> 105581 | I121: [kg CO2]
C124: * Hinweis: Der Fördertarif wird vom Bund getragen und ist für Anlagen > 5kWp erhältlich; die Fördermittel des Bundes sind in nachfolgendem Link (tagesaktuelles Kontingent) ersichtlich.
C125: http://www.oem-ag.at/fileadmin/user_upload/Dokumente/kontingent/Kontingent_tagesaktuelles_Unterstuetzungsvolumen_in_EUR.xls
C165: Formel unterhalb zum Makrostart
C166: =IF(AND(H63="Invest- inkl. Tarifförderung",H37>=5),Startmakro1(),Startmakro2()) -> 
C169: Invest- inkl. Tarifförderung | D169: 1 | F169: Neigung: | G169: 0 | H169: Azimut: | I169: -90
C170: EAG Investzuschuss | D170: 2 | G170: 15 | I170: -75 | K170: Berrechnung des Überschuß-Einspeisetarifes: | R170: Ausgangswert | S170: Prozent Steigerung | U170: Jahre
C171: Ohne Förderung | D171: 3 | G171: 30 | I171: -60 | K171: =$H$73 -> 30 | M171: =$K$174/100*K171 -> 0.105 | R171: 49.94 | S171: 19 | U171: 5
C172: Landesförderung | D172: 4 | G172: 45 | I172: -45 | K172: =$H$74 -> 70 | M172: =$K$175/100*K172 -> 0.1792
D173: 5 | G173: 60 | I173: -30 | M173: =SUM(M171:M172) -> 0.2842
D174: 6 | G174: 75 | I174: -15 | K174: =$H$76 -> 0.35 | R174: =R171*((1+S171/100))^U171 -> 119.1745018
D175: 7 | G175: 90 | I175: 0 | K175: =$H$77 -> 0.256
D176: 8 | I176: 15
D177: 9 | I177: 30
D178: 10 | I178: 45
D179: 11 | I179: 60 | K179: Fehlermeldung: | M179: =IF(Berechnungen!L87=0,1,0) -> 1
D180: 12 | I180: 75 | M180: =IF(Berechnungen!C7="Fördertarif",1,0) -> 0 | S180: =R182-40 -> -30 | U180: =R182-30 -> -20
D181: 13 | I181: 90 | M181: =SUM(M179:M180) -> 1 | R181: KLIEN2021 | S181: 0-10 | U181: 10-20 | V181: 20-50
D182: 14 | R182: =H37 -> 10 | S182: 250 | U182: 200 | V182: 150
D183: 15 | R183: =SUM(IF(R182<=10,R182*S182,IF(R182<=20,10*S182+(R182-10)*U182,IF(R182<=50,10*S182+10*U182+(R182-20)*V182,0)))+(IF(AND(C55=C222,R182<=50),R182*100,0))) -> 2500
G186: Bundesland: | H186: =Berechnungen!F6 -> O
C187: einmal
C188: zweimal
C189: dreimal
C190: viermal | I190: Sonstige Förderungen (z.B.: Gemeinde) | J190: Fördermittel Land | M190: Investitionsförderung - Bund | N190: Eigenmittel
H191: Fördequote | I191: =H91 -> 0 | J191: =F218 -> 0 | M191: =G218 -> 2850 | N191: =H92 -> 16150
G194: Tarifförderung | H194: > 20 kWp | I194: =H104 -> 0.256 | M194: =IF($H$63="Überschusseinspeisung",0,I60-I194) -> -0.256 | P194: Markt/EVU
H195: > 5 - 20 kWp | I195: =H104 -> 0.256 | M195: =IF($H$63="Überschusseinspeisung",0,I59-I195) -> -0.256 | P195: Förderungsanteil
C196: Zuschlag | H196: <= 5 kWp | I196: =H104 -> 0.256 | M196: =H79-I196 -> 0.0282 | P196: Mischpreis aus Markt/EVU und Eigenverbrauch
C197: Abschlag
C198: weder noch
C199: Volleinspeisung
C200: Überschusseinspeisung
C201: Einspeisetarif
C203: LAND | G203: Alte Formeln für die Berechnung der Klien-förderung | W203: Das Ausmaß der Förderung beträgt maximal 40 Prozent der förderfähigen Gesamtkosten in Form eines einmaligen Investitionskostenzuschusses. Für Photovoltaikanlagen ist eine Förderobergrenze von 800 Euro pro kWp bzw. 80.000 Euro pro Förderfall vorgesehen.
C204: BUND | G204: =IF(AND($H$63<>"Fördertarif",D209=$H$186,$E$66=$C$204),IF(H37*800>4000,4000,H37*800),0) -> 0
G205: =IF(AND($H$63<>"Fördertarif",D210=$H$186),IF(H37*800>4000,4000,H37*800),0) -> 0 | W205: Voraussetzung dafür sind mindestens 900 Volllaststunden im Jahr unter Nachweis standardisierter Berechnungsmethoden und die Einspeisung ins öffentliche Netz muss möglich sein.
C207: Investitionsförderung | F207: LAND | G207: BUND | I207: Kommentar
D209: B | F209: =IF(AND($H$63<>C169,$H$186=D209,$E$66=$C$203),IF($H$37*275>0.3*$H$86*$H$37,0.3*$H$86*$H$37,$H$37*275),0) -> 0 | G209: =IF(AND(D209=$H$186,$H$63=$C$170),IF($H$37<=10,$H$56*$H$37,IF($H$37<=20,$H$57*$H$37,IF($H$37<=100,$H$58*$H$37,IF($H$37<=1000,$H$59*$H$37,0)))),0) -> 0 | H209: =IF(AND(D209=$H$186,$H$63="Fördertarif",OR($C$55="Aufdach",AND($C$55="Gebäudeintegriert",$C$57=$C$197)),$H$37<=200,$H$37>5),IF($H$37*250>$H$89*0.4,$H$89*0.4,$H$37*250),0) -> 0 | I209: keine Landesförderung
D210: K | F210: 0 | G210: 0 | H210: =IF(AND(D210=$H$186,$H$63="Fördertarif",OR($C$55="Aufdach",AND($C$55="Gebäudeintegriert",$C$57=$C$197)),$H$37<=200,$H$37>5),IF($H$37*250>$H$89*0.4,$H$89*0.4,$H$37*250),0) -> 0 | I210: Förderprogramm im Zuge der Wohnbauförderung (Link im Register "Förderungen")
D211: N | F211: 0 | G211: =IF(AND(D211=$H$186,$H$63=$C$170),IF($H$37<=10,$H$56*$H$37,IF($H$37<=20,$H$57*$H$37,IF($H$37<=100,$H$58*$H$37,IF($H$37<=1000,$H$59*$H$37,0)))),0) -> 0 | H211: 0 | I211: keine Landesförderung
D212: O | F212: 0 | G212: =IF(AND(D212=$H$186,$H$63=$C$170),IF($H$37<=10,$H$56*$H$37,IF($H$37<=20,$H$57*$H$37,IF($H$37<=100,$H$58*$H$37,IF($H$37<=1000,$H$59*$H$37,0)))),0) -> 2850 | H212: 0 | I212: keine Landesförderung
D213: Sa | F213: =IF(AND(D213=$H$186,H63=C172),IF(H37>15,0,IF(H37*F56>H89*0.4,H89*0.4,H37*F56)),0) -> 0 | G213: 0 | H213: 0 | I213: Förderspanne 1-15 kWp; Förderprogramm Photovoltaik (private) und Speicher (Link im Register "Förderungen")
D214: St | F214: =IF(AND($H$63<>"Fördertarif",D214=$H$186,G214=0,$H$37>=1,$H$37<=3),270*$H$37,0) -> 0 | G214: 0 | H214: 0 | I214: keine Landesförderung
D215: T | F215: 0 | G215: 0 | H215: 0 | I215: keine Landesförderung
D216: V | F216: =IF(AND($H$63<>"Fördertarif",$H$186=D216,$E$66=$C$203),IF($H$37>5,$F$56*5,$H$37*$F$56),0) -> 0 | G216: 0 | H216: 0 | I216: keine Landesförderung
D217: W | F217: =IF(AND($H$63=C172,$H$186=D217),IF(H37<=100,IF(H37*F56>H89*0.3,H89*0.3,H37*F56),IF(H37<=500,IF(H37*(F56-50)>H89*0.3,H89*0.3,H37*(F56-50)),100000)),0) -> 0 | G217: 0 | H217: 0 | I217: Landesförderung max. 30% der Investkosten 250€/kWp bis 100kWp, 200€/kWp von 100 bis 500kWp | P217: =IF(H37<=5,F56*0.5*H37,F56*0.5*5+((H37-5)*F56)) -> 
F218: =SUM(F209:F217) -> 0 | G218: =IF(C57=C196,SUM(G209:G217)*1.3,IF(C57=C197,SUM(G209:G217)*0.75,SUM(G209:G217))) -> 2850 | H218: =SUM(H209:H217) -> 0 | I218: =F218+G218+H218 -> 2850 | J218: Summe aus Bundes und Landesmittel
W219: maxförderung 40% | Z219: Faktor bund | AA219: Faktor land
G220: =I218/H89 -> 0.15 | H220: Förderungsprozentsatz | W220: =H89*0.4 -> 7600 | Z220: =S220/U221 ->  | AA220: =U220/U221 -> 
W221: =IF(W220>=U221,0,U221-W220) -> 0
C222: Gebäudeintegriert
C223: Aufdach | W223: =S223+U223 -> 0
C224: Freiland
AA226: bis 2 WE
AA227: ab 3 WE
D230: Aufdach <5 | F230: Aufdach >20 | H230: Freiland <20 | J230: Freiland >20 | Y230: 375
C231: Wartelistenposition | D231: Abschlag | E231: Tarif | F231: Abschlag | G231: Tarif | H231: Abschlag | I231: Tarif | J231: Abschlag | M231: Tarif
W232: PV Fördersummen 2015 | X232: ab 3 WE | Z232: bis 2 WE
C233: 2013 | D233: 0 | E233: 0.0706 | F233: 0 | G233: 0 | H233: 0 | I233: 0 | J233: 0 | M233: 0.19 | W233: kWp | X233: Erweiterung | Y233: Neubau | Z233: Erweiterung | AA233: Neubau
W234: 1.5 | X234: =55*(W234/0.5) -> 165 | Y234: =535+Y230 -> 910 | Z234: =55*(W234/0.5) -> 165 | AA234: =535+Y230 -> 910 | AC234: Anzahl | AD234: der | AE234: Wohneinheiten | AF234: (WE) | AG234: Förderungsfähige | AH234: – | AI234: neue | AJ234: oder | AK234: erweiterte | AL234: Leistung | AM234: [ab | AN234: zurechenbaren, | AO234: erreichten | AP234: kWp] | AQ234: Förderung | AR234: [€]
V235: =H37 -> 10 | W235: 2 | X235: 220 | Y235: =590+Y230 -> 965 | Z235: =55*(W235/0.5) -> 220 | AA235: =590+Y230 -> 965 | AC235: Gebäude | AD235: bis | AE235: zu | AF235: 2 | AG235: WE | AH235: und | AI235: Gebäude | AJ235: gem. | AK235: Punkt | AL235: 2015-02-03
V236: =ROUNDDOWN(V235,0) -> 10 | W236: 2.5 | X236: 275 | Y236: =645+Y230 -> 1020 | Z236: =55*(W236/0.5) -> 275 | AA236: =645+Y230 -> 1020 | AC236: Je | AD236: 0.5 | AE236: erweitert
V237: =V235-V236 -> 0 | W237: 3 | X237: 330 | Y237: =700+Y230 -> 1075 | Z237: =55*(W237/0.5) -> 330 | AA237: =700+Y230 -> 1075 | AC237: 55,--
V238: =IF(V237>=0.5,V236+0.5,V236) -> 10 | W238: 3.5 | X238: 385 | Y238: =Y237+55 -> 1130 | AC238: 1.5 | AD238: neu
E239: =E233 -> 0.0706 | G239: =G233 -> 0 | I239: =I233 -> 0 | M239: =M233 -> 0.19 | N239: 0.18 | U239: =IF(F66=AA226,V240,V239) -> 1845 | V239: =IF(OR(V238>15,H111<900),0,VLOOKUP(V238,W235:Y261,IF(X233=G66,2,3),TRUE)) -> 1845 | W239: 4 | X239: 440 | Y239: =Y238+55 -> 1185 | AC239: 535,--
E240: =IF(AND($H$37>5,$H$37<=20),E239,IF($H$37>20,G239,0)) -> 0.0706 | I240: =IF(AND($H$37>5,$H$37<=20),I239,IF($H$37>20,M239,0)) -> 0 | V240: =IF(OR(V238>15,H111<900),0,VLOOKUP(V238,W235:AA261,IF(X233=G66,4,5),TRUE)) -> 0 | W240: 4.5 | X240: 495 | Y240: 1240 | AC240: 2 | AD240: neu
E241: =IF($C$55=C223,E240,I240) -> 0.0706 | W241: 5 | X241: 550 | Y241: 1295 | AC241: 590,--
W242: 5.5 | X242: 605 | Y242: 1350 | AC242: 2.5 | AD242: neu
W243: 6 | X243: 660 | Y243: 1405 | AC243: 645,--
E244: Aufdach | F244: Freiland | W244: 6.5 | X244: 715 | Y244: 1460 | AC244: 3 | AD244: neu
C245: 2013 | E245: >5 | F245: >5 | W245: 7 | X245: 770 | Y245: 1515 | AC245: 700,--
E246: 0.1812 | F246: 0.1659 | W246: 7.5 | X246: 825 | Y246: 1570 | AC246: Gebäude | AD246: ab | AE246: 3 | AF246: WE
C247: optieren: | E247: 0.18 | F247: 0 | W247: 8 | X247: 880 | Y247: 1625 | AC247: Wie | AD247: oben
C248: Invest: | E248: 200 | M248: Salzburg | N248: =IF(OR(H37<1,H37>3,H111<800),0,600) -> 0 | W248: 8.5 | X248: 935 | Y248: 1680 | AC248: > | AD248: 3 | AE248: je | AF248: weitere | AG248: 0.5 | AH248: kWp
M249: =IF(H86>2000,2000,H86) -> 1900 | W249: 9 | X249: 990 | Y249: 1735 | AC249: 55,--
M250: =H111 -> 995.7403765 | N250: =IF(M250>1100,0.4,IF(M250<900,0,M250/27.5/100)) -> 0.3620874096 | O250: =M249*N250 -> 687.9660783 | P250: =IF($H$37>2,$O$250*2,$O$250*$H$37) -> 1375.932157 | W250: 9.5 | X250: 1045 | Y250: 1790 | AC250: max. | AD250: 3 | AE250: kWp | AF250: je | AG250: Wohnung | AH250: und | AI250: max.15 | AJ250: kWp | AK250: je | AL250: Gebäude | AM250: gesamt
M251: =M250/27.5 -> 36.20874096 | R251: Wien | W251: 10 | X251: 1100 | Y251: 1845 | AC251: max. | AD251: 2.020,--
R252: Land | S252: Bund | T252: Gesamt | W252: 10.5 | X252: 1155 | Y252: 1900
Q253: 1 | R253: 500 | S253: 800 | T253: =SUM(R253:S253) -> 1300 | W253: 11 | X253: 1210 | Y253: 1955
Q254: 2 | R254: 500 | S254: 800 | T254: =SUM(R254:S254) -> 1300 | W254: 11.5 | X254: 1265 | Y254: 2010
I255: Förderhöhe: | Q255: 3 | R255: 500 | S255: 800 | T255: 1300 | W255: 12 | X255: 1320 | Y255: 2065
I256: Die Förderung kann in Form eines nicht rückzahlbaren Direktzuschusses abhängig vom Fördersatz (siehe Richtlinien) auf die tatsächlichen Investitionskosten (=Rechnungssumme) bis zur Höhe der förderbaren Investitionskosten gewährt werden. | Q256: 4 | R256: 500 | S256: 800 | T256: 1300 | W256: 12.5 | X256: 1375 | Y256: 2120
I257: Die Förderung besteht aus förderbaren Investitionskosten, die pro kWp 2.000 Euro beträgt. Davon ausgehen wird, je nach Jahresertrag der Anlage, der Fördersatz festgelegt und damit die Förderung berechnet. | Q257: 5 | R257: 500 | S257: 800 | T257: 1300 | W257: 13 | X257: 1430 | Y257: 2175
Q258: 6 | R258: 1000 | S258: 0 | T258: 1000 | W258: 13.5 | X258: 1485 | Y258: 2230
I259: Fördersatz in Abhängigkeit vom Jahresenergieertrag (berechnet laut Anlagenplanung) je kWp: | Q259: 7 | R259: 1000 | S259: 0 | T259: 1000 | W259: 14 | X259: 1540 | Y259: 2285
I260: - Beträgt der Jahresertrag zwischen 900 kWh/a und 1.100 kWh/a, wird der Fördersatz [%] wie folgt errechnet: | Q260: 8 | R260: 1000 | S260: 0 | T260: 1000 | W260: 14.5 | X260: 1595 | Y260: 2340
I261: Jahresertrag [kWh/a]/ 27,5 | W261: 15 | X261: 1650 | Y261: 2395
I262: - Ist der Jahresertrag > 1.100 kWh/a: Fördersatz = 40 %
I263: - Ist der Jahresertrag < 900 kWh/a: Fördersatz = 0 %
R264: =IF((IF(H37<=5,F56*0.5*H37+H37*H56,F56*0.5*5+((H37-5)*F56)+5*H56))>0.4*H89,IF(0.4*H89>100000,100000,0.4*H89),IF(H37<=5,F56*0.5*H37+H37*H56,F56*0.5*5+((H37-5)*F56)+5*H56)) -> 
R265: =IF(AND($H$63<>"Fördertarif",D217=$H$186),IF((IF(H37<=5,F56*0.5*H37+H37*H56,F56*0.5*5+(H37-5)*F56+5*H56))>0.4*H89,IF(0.4*H89>100000,100000,0.4*H89),IF(H37<=5,F56*0.5*H37+H37*H56,F56*0.5*5+((H37-5)*F56+5*H56)))) -> FALSE
I266: Beispiele | V266: =H37 -> 10
I267: - > 1.100 kWh - Fördersatz 40 % | V267: =ROUNDDOWN(V266,0) -> 10 | W267: 1 | X267: 500
I268: - > 1.000 kWh - Fördersatz 36,4 % | V268: =VLOOKUP(V267,W267:X271,2,TRUE) -> 900 | W268: 2 | X268: 600
I269: - 900 kWh - Fördersatz 32,7 % | W269: 3 | X269: 700
I270: - < 900 kWh - Fördersatz 0 % | W270: 4 | X270: 800
W271: 5 | X271: 900

Sheet Ausrichtung
AG2: =HLOOKUP(AD13,D6:P7,2,TRUE) -> 8
AA4: Neigung | AB4: 78 | AC4: =C8 -> 0 | AD4: =VLOOKUP(AB4,AC4:AC10,1) -> 75 | AE4: untere Grenze | AF4: =AB4-AD4 -> 3 | AG4: =VLOOKUP(AD5,C6:P14,AG2,TRUE) -> 65 | AJ4: =HLOOKUP(AB4,C6:P14,3,TRUE) -> 85
D5: Osten | J5: Azimut | P5: Westen | S5: Prozent | AB5: =AB4 -> 78 | AC5: 15 | AD5: =AD4+15 -> 90 | AE5: obere Grenze | AF5: =AD5-AB4 -> 12 | AJ5: =VLOOKUP(AB13,C6:P14,1,TRUE) -> 15
D6: -90 | E6: -75 | F6: -60 | G6: -45 | H6: -30 | I6: -15 | J6: 0 | K6: 15 | L6: 30 | M6: 45 | N6: 60 | O6: 75 | P6: 90 | S6: 55 | AB6: 78 | AC6: 30
D7: 1 | E7: 2 | F7: 3 | G7: 4 | H7: 5 | I7: 6 | J7: 7 | K7: 8 | L7: 9 | M7: 10 | N7: 11 | O7: 12 | P7: 13 | S7: 65 | AB7: 78 | AC7: 45
B8: Neigung | C8: 0 | D8: 85 | E8: 85 | F8: 85 | G8: 85 | H8: 85 | I8: 85 | J8: 85 | K8: 85 | L8: 85 | M8: 85 | N8: 85 | O8: 85 | P8: 85 | S8: 75 | AB8: 78 | AC8: 60
C9: 15 | D9: 85 | E9: 85 | F9: 85 | G9: 95 | H9: 95 | I9: 95 | J9: 95 | K9: 95 | L9: 95 | M9: 95 | N9: 85 | O9: 85 | P9: 85 | S9: 85 | AB9: 78 | AC9: 75
C10: 30 | D10: 85 | E10: 85 | F10: 85 | G10: 95 | H10: 95 | I10: 95 | J10: 100 | K10: 95 | L10: 95 | M10: 95 | N10: 85 | O10: 85 | P10: 85 | S10: 95 | AB10: 78 | AC10: 90
C11: 45 | D11: 75 | E11: 85 | F11: 85 | G11: 85 | H11: 95 | I11: 95 | J11: 95 | K11: 95 | L11: 95 | M11: 85 | N11: 85 | O11: 85 | P11: 75 | S11: 100
C12: 60 | D12: 75 | E12: 75 | F12: 75 | G12: 85 | H12: 85 | I12: 85 | J12: 85 | K12: 85 | L12: 85 | M12: 85 | N12: 75 | O12: 75 | P12: 75
C13: 75 | D13: 65 | E13: 65 | F13: 75 | G13: 75 | H13: 75 | I13: 75 | J13: 75 | K13: 75 | L13: 75 | M13: 75 | N13: 75 | O13: 65 | P13: 65 | AA13: Azimut | AB13: 20 | AC13: -90 | AD13: =VLOOKUP(AB13,AC13:AC25,1) -> 15 | AE13: untere Grenze | AF13: =AB13-AD13 -> 5
C14: 90 | D14: 55 | E14: 55 | F14: 65 | G14: 65 | H14: 65 | I14: 65 | J14: 65 | K14: 65 | L14: 65 | M14: 65 | N14: 65 | O14: 55 | P14: 55 | AB14: =AB13 -> 20 | AC14: -75 | AD14: =AD13+15 -> 30 | AE14: obere Grenze | AF14: =AD14-AB13 -> 10
C15: Angaben in Prozent | AB15: =AB14 -> 20 | AC15: -60
AB16: 20 | AC16: -45
C17: Einstrahlung auf die horizontale Fläche: | I17: =Eingabe!H15 -> 1068 | J17: kWh/m²a | M17: =I17/85 -> 12.56470588 | AB17: 20 | AC17: -30
AB18: 20 | AC18: -15
AB19: 20 | AC19: 0
AB20: 20 | AC20: 15
D21: Osten | J21: Azimut | P21: Westen | AB21: 20 | AC21: 30
D22: -90 | E22: -75 | F22: -60 | G22: -45 | H22: -30 | I22: -15 | J22: 0 | K22: 15 | L22: 30 | M22: 45 | N22: 60 | O22: 75 | P22: 90 | AB22: 20 | AC22: 45
D23: 1 | E23: 2 | F23: 3 | G23: 4 | H23: 5 | I23: 6 | J23: 7 | K23: 8 | L23: 9 | M23: 10 | N23: 11 | O23: 12 | P23: 13 | AB23: 20 | AC23: 60
B24: Neigung | C24: 0 | D24: =$M$17*D8 -> 1068 | E24: 1068 | F24: 1068 | G24: 1068 | H24: 1068 | I24: 1068 | J24: 1068 | K24: 1068 | L24: 1068 | M24: 1068 | N24: 1068 | O24: 1068 | P24: 1068 | AB24: 20 | AC24: 75
C25: 15 | D25: =$M$17*D9 -> 1068 | E25: 1068 | F25: 1068 | G25: 1193.647059 | H25: 1193.647059 | I25: 1193.647059 | J25: 1193.647059 | K25: 1193.647059 | L25: 1193.647059 | M25: 1193.647059 | N25: 1068 | O25: 1068 | P25: 1068 | AB25: 20 | AC25: 90
C26: 30 | D26: =$M$17*D10 -> 1068 | E26: 1068 | F26: 1068 | G26: 1193.647059 | H26: 1193.647059 | I26: 1193.647059 | J26: 1256.470588 | K26: 1193.647059 | L26: 1193.647059 | M26: 1193.647059 | N26: 1068 | O26: 1068 | P26: 1068
C27: 45 | D27: =$M$17*D11 -> 942.3529412 | E27: 1068 | F27: 1068 | G27: 1068 | H27: 1193.647059 | I27: 1193.647059 | J27: 1193.647059 | K27: 1193.647059 | L27: 1193.647059 | M27: 1068 | N27: 1068 | O27: 1068 | P27: 942.3529412
C28: 60 | D28: =$M$17*D12 -> 942.3529412 | E28: 942.3529412 | F28: 942.3529412 | G28: 1068 | H28: 1068 | I28: 1068 | J28: 1068 | K28: 1068 | L28: 1068 | M28: 1068 | N28: 942.3529412 | O28: 942.3529412 | P28: 942.3529412
C29: 75 | D29: =$M$17*D13 -> 816.7058824 | E29: 816.7058824 | F29: 942.3529412 | G29: 942.3529412 | H29: 942.3529412 | I29: 942.3529412 | J29: 942.3529412 | K29: 942.3529412 | L29: 942.3529412 | M29: 942.3529412 | N29: 942.3529412 | O29: 816.7058824 | P29: 816.7058824
C30: 90 | D30: =$M$17*D14 -> 691.0588235 | E30: 691.0588235 | F30: 816.7058824 | G30: 816.7058824 | H30: 816.7058824 | I30: 816.7058824 | J30: 816.7058824 | K30: 816.7058824 | L30: 816.7058824 | M30: 816.7058824 | N30: 816.7058824 | O30: 691.0588235 | P30: 691.0588235
C31: Angaben in kWh/m²a
D35: Osten | J35: Azimut | P35: Westen
D36: -90 | E36: -75 | F36: -60 | G36: -45 | H36: -30 | I36: -15 | J36: 0 | K36: 15 | L36: 30 | M36: 45 | N36: 60 | O36: 75 | P36: 90
D37: 1 | E37: 2 | F37: 3 | G37: 4 | H37: 5 | I37: 6 | J37: 7 | K37: 8 | L37: 9 | M37: 10 | N37: 11 | O37: 12 | P37: 13
B38: Neigung | C38: 0 | D38: =IF($F$51=0,D24,"") -> 
C39: 15 | D39: =IF($F$51=15,D25,"") -> 
C40: 30 | D40: =IF($F$51=30,D26,"") -> 
C41: 45 | D41: =IF($F$51=45,D27,"") -> 942.3529412 | E41: 1068 | F41: 1068 | G41: 1068 | H41: 1193.647059 | I41: 1193.647059 | J41: 1193.647059 | K41: 1193.647059 | L41: 1193.647059 | M41: 1068 | N41: 1068 | O41: 1068 | P41: 942.3529412
C42: 60 | D42: =IF($F$51=60,D28,"") -> 
C43: 75 | D43: =IF($F$51=75,D29,"") -> 
C44: 90 | D44: =IF($F$51=90,D30,"") -> 
C45: Angaben in kWh/m²a
B47: Auswahl: | D47: =IF($F$50=-90,SUM(D38:D44),"") ->  | E47: =IF($F$50=-75,SUM(E38:E44),"") ->  | F47: =IF($F$50=-60,SUM(F38:F44),"") ->  | G47: =IF($F$50=-45,SUM(G38:G44),"") ->  | H47: =IF($F$50=-30,SUM(H38:H44),"") ->  | I47: =IF($F$50=-15,SUM(I38:I44),"") ->  | J47: =IF($F$50=0,SUM(J38:J44),"") -> 1193.647059 | K47: =IF($F$50=15,SUM(K38:K44),"") ->  | L47: =IF($F$50=30,SUM(L38:L44),"") ->  | M47: =IF($F$50=45,SUM(M38:M44),"") ->  | N47: =IF($F$50=60,SUM(N38:N44),"") ->  | O47: =IF($F$50=75,SUM(O38:O44),"") ->  | P47: =IF($F$50=90,SUM(P38:P44),"") -> 
C49: Zuteilung der Werte aus der Einagbemaske:
E50: Ausrichtung: | F50: =Eingabe!$H$23 -> 0 | G50: °
E51: Neigung: | F51: =Eingabe!$H$29 -> 45 | G51: ° | H51: =SUM(D47:P47) -> 1193.647059 | I51: kWh/m²a

Sheet Berechnungen
B6: Anlage: | C6: =Eingabe!H37 -> 10 | D6: kWp | E6: Bundesland: | F6: ='PLZ-Zuordnung'!J3 -> O
B7: Tarif: | C7: =Eingabe!H63 -> EAG Investzuschuss | E7: Tarifhöhe: | F7: =H64 -> 0 | G7: Cent/kWh
B9: Jahre | C9: Vergütung | D9: Energieertrag | E9: Energieerlös | F9: Ausgaben | G9: Tilgung | H9: Zinsen | I9: Tilg.+Zinsen | J9: Cash Flow | K9: Barwerte | L9: Kapitalwert | M9: Zeit | O9: Auswahl | P9: Einspeisetarif | Q9: Bezugstarif | R9: Fördertarif | S9: Fördertarif 1 | T9: Sondertarif | V9: EV-Abgabe | AB9: test | AF9: test stat | AJ9: test dyn
C10: [€/kWh] | D10: [kWh] | E10: [€] | F10: [€] | G10: [€] | H10: [€] | I10: [€] | J10: [€] | K10: [€] | L10: [€] | O10: [€/kWh] | P10: [€/kWh] | Q10: [€/kWh] | R10: [€/kWh] | S10: [€/kWh] | T10: [€/kWh] | V10: [€] | Y10: tarif | Z10: energie | AB10: Ausgaben | AC10: Ausgaben | AD10: erzeugte kWh | AE10: €/kWh
B11: 0 | F11: =Eingabe!H92*Eingabe!H87 -> 16150 | I11: =G11+H11 -> 0 | J11: =E11-F11-I11 -> -16150 | K11: =J11/(1+(Eingabe!H$106/100))^B11 -> -16150 | L11: =K11 -> -16150 | M11: =IF(L11<0,N11,0) -> 1 | N11: 1 | X11: Tarif | Y11: Energie | AB11: =F11 -> 16150 | AC11: =F11 -> 16150
B12: 1 | C12: =IF($C$7="Invest- inkl. Tarifförderung",O12,T12) -> 0.2842 | D12: =Eingabe!$H$112*1/(1+(Eingabe!H$98/100))^B11 -> 9957.403765 | E12: =C12*D12 -> 2829.89415 | F12: =(Eingabe!H$89*(Eingabe!H$97/100))*((1+(Eingabe!H$102/100))^B11) -> 76 | G12: =IF(AND(Eingabe!$J$88<=Berechnungen!B12,(Eingabe!$J$88+Eingabe!$J$89)>B12),(Eingabe!$H$92*(1-Eingabe!$H$87))/Eingabe!$J$89,0) -> 0 | H12: =((Eingabe!$H$92*(1-Eingabe!$H$87))-SUM($G$11:G11))*Eingabe!$I$87 -> 0 | I12: 0 | J12: =E12-F12-I12 -> 2753.89415 | K12: =J12/(1+(Eingabe!H$106/100))^B12 -> 2713.196207 | L12: =L11+K12 -> -13436.80379 | M12: =IF(L12<0,N12,0) -> 2 | N12: 2 | O12: =IF(Eingabe!$H$63=Eingabe!$C$169,IF(R12<>0,IF(Eingabe!$H$65=Eingabe!$C$200,S12,R12),P12),IF(Eingabe!$H$63=Eingabe!$C$171,T12,IF(Eingabe!$H$63=Eingabe!$C$170,T12,IF(Eingabe!$H$63=Eingabe!$C$172,T12,"Zuordnung!")))) -> 0.2842 | P12: =Eingabe!H$104*(1+(Eingabe!H$105/100))^B11 -> 0.256 | Q12: =Eingabe!H$103*(1+(Eingabe!H$105/100))^B11 -> 0.35 | R12: =$F$7 -> 0 | S12: =IF(Eingabe!$H$65="Volleinspeisung",Berechnungen!R12,(R12*Eingabe!$H$74+Berechnungen!Q12*Eingabe!$H$73)/100) -> 0.105 | T12: =(P12*Eingabe!$H$74+Berechnungen!Q12*Eingabe!$H$73)/100 -> 0.2842 | V12: =IF(Eingabe!$H$112*Eingabe!$H$73/100>25000,IF((Eingabe!$H$112*Eingabe!$H$73/100-25000)*0.015<=50,0,(Eingabe!$H$112*Eingabe!$H$73/100-25000)*0.015),0) -> 0 | W12: =O12*100 -> 28.42 | X12: =(Q12*Eingabe!$H$73/100)/Eingabe!H79*100 -> 36.94581281 | Y12: =Eingabe!$H$73 -> 30 | AA12: =F12/(1+(Eingabe!H$106/100))^B12 -> 74.87684729 | AB12: =AB11+AA12 -> 16224.87685 | AC12: =F11+F12 -> 16226 | AD12: =D12 -> 9957.403765 | AE12: =AC12/AD12 -> 1.629541232 | AF12: =AB12/AD12 -> 1.629428436 | AG12: =IF(AF12<O12,AF12,0) -> 0 | AH12: =IF(AG11=0,$AG$37,0) -> 0 | AI12: 1 | AJ12: =AF12*(1+(Eingabe!H$106/100))^AI12 -> 1.653869863
B13: 2 | C13: =IF($C$7="Invest- inkl. Tarifförderung",O13,T13) -> 0.278516 | D13: =Eingabe!$H$112*1/(1+(Eingabe!H$98/100))^B12 -> 9907.864442 | E13: =C13*D13 -> 2759.498773 | F13: =(Eingabe!H$89*(Eingabe!H$97/100))*((1+(Eingabe!H$102/100))^B12) -> 79.04 | G13: =IF(AND(Eingabe!$J$88<=Berechnungen!B13,(Eingabe!$J$88+Eingabe!$J$89)>B13),(Eingabe!$H$92*(1-Eingabe!$H$87))/Eingabe!$J$89,0) -> 0 | H13: =((Eingabe!$H$92*(1-Eingabe!$H$87))-SUM($G$11:G12))*Eingabe!$I$87 -> 0 | I13: 0 | J13: 2680.458773 | K13: =J13/(1+(Eingabe!H$106/100))^B13 -> 2601.8188 | L13: -10834.98499 | M13: =IF(L13<0,N13,0) -> 3 | N13: 3 | O13: =IF(Eingabe!$H$63=Eingabe!$C$169,IF(R13<>0,IF(Eingabe!$H$65=Eingabe!$C$200,S13,R13),P13),IF(Eingabe!$H$63=Eingabe!$C$171,T13,IF(Eingabe!$H$63=Eingabe!$C$170,T13,IF(Eingabe!$H$63=Eingabe!$C$172,T13,"Zuordnung!")))) -> 0.278516 | P13: =Eingabe!H$104*(1+(Eingabe!H$105/100))^B12 -> 0.25088 | Q13: =Eingabe!H$103*(1+(Eingabe!H$105/100))^B12 -> 0.343 | R13: 0 | S13: =IF(Eingabe!$H$65="Volleinspeisung",Berechnungen!R13,(R13*Eingabe!$H$74+Berechnungen!Q13*Eingabe!$H$73)/100) -> 0.1029 | T13: =(P13*Eingabe!$H$74+Berechnungen!Q13*Eingabe!$H$73)/100 -> 0.278516 | V13: =IF(Eingabe!$H$112*Eingabe!$H$73/100>25000,IF((Eingabe!$H$112*Eingabe!$H$73/100-25000)*0.015<=50,0,(Eingabe!$H$112*Eingabe!$H$73/100-25000)*0.015),0) -> 0 | W13: =O13*100 -> 27.8516 | X13: =(P12*Eingabe!$H$74/100)/Eingabe!H79*100 -> 63.05418719 | Y13: =Eingabe!$H$74 -> 70 | AA13: =F13/(1+(Eingabe!H$106/100))^B13 -> 76.72110461 | AB13: =AB12+AA13 -> 16301.59795 | AC13: =AC12+F13 -> 16305.04 | AD13: =AD12+D13 -> 19865.26821 | AE13: =AC13/AD13 -> 0.8207812666 | AF13: =AB13/AD13 -> 0.8206079969 | AG13: =IF(AF13<O13,AF13,0) -> 0 | AH13: 0 | AI13: 2 | AJ13: =AF13*(1+(Eingabe!H$106/100))^AI13 -> 0.8454108736
B14: 3 | C14: 0.27294568 | D14: =Eingabe!$H$112*1/(1+(Eingabe!H$98/100))^B13 -> 9858.571585 | E14: 2690.854525 | F14: =(Eingabe!H$89*(Eingabe!H$97/100))*((1+(Eingabe!H$102/100))^B13) -> 82.2016 | G14: =IF(AND(Eingabe!$J$88<=Berechnungen!B14,(Eingabe!$J$88+Eingabe!$J$89)>B14),(Eingabe!$H$92*(1-Eingabe!$H$87))/Eingabe!$J$89,0) -> 0 | H14: =((Eingabe!$H$92*(1-Eingabe!$H$87))-SUM($G$11:G13))*Eingabe!$I$87 -> 0 | I14: 0 | J14: 2608.652925 | K14: =J14/(1+(Eingabe!H$106/100))^B14 -> 2494.699123 | L14: -8340.28587 | M14: 4 | N14: 4 | O14: =IF(Eingabe!$H$63=Eingabe!$C$169,IF(R14<>0,IF(Eingabe!$H$65=Eingabe!$C$200,S14,R14),P14),IF(Eingabe!$H$63=Eingabe!$C$171,T14,IF(Eingabe!$H$63=Eingabe!$C$170,T14,IF(Eingabe!$H$63=Eingabe!$C$172,T14,"Zuordnung!")))) -> 0.27294568 | P14: =Eingabe!H$104*(1+(Eingabe!H$105/100))^B13 -> 0.2458624 | Q14: =Eingabe!H$103*(1+(Eingabe!H$105/100))^B13 -> 0.33614 | R14: 0 | S14: =IF(Eingabe!$H$65="Volleinspeisung",Berechnungen!R14,(R14*Eingabe!$H$74+Berechnungen!Q14*Eingabe!$H$73)/100) -> 0.100842 | T14: =(P14*Eingabe!$H$74+Berechnungen!Q14*Eingabe!$H$73)/100 -> 0.27294568 | V14: =IF(Eingabe!$H$112*Eingabe!$H$73/100>25000,IF((Eingabe!$H$112*Eingabe!$H$73/100-25000)*0.015<=50,0,(Eingabe!$H$112*Eingabe!$H$73/100-25000)*0.015),0) -> 0 | W14: 27.294568 | X14: =P14*Eingabe!$H$74/100 -> 0.17210368 | Y14: =Q14*Eingabe!$H$73/100 -> 0.100842 | AA14: =F14/(1+(Eingabe!H$106/100))^B14 -> 78.61078699 | AB14: 16380.20874 | AC14: 16387.2416 | AD14: 29723.83979 | AE14: 0.5513164421 | AF14: 0.5510798354 | AG14: 0 | AH14: 0 | AI14: 3 | AJ14: =AF14*(1+(Eingabe!H$106/100))^AI14 -> 0.5762522667
B15: 4 | C15: 0.2674867664 | D15: =Eingabe!$H$112*1/(1+(Eingabe!H$98/100))^B14 -> 9809.523965 | E15: 2623.917845 | F15: =(Eingabe!H$89*(Eingabe!H$97/100))*((1+(Eingabe!H$102/100))^B14) -> 85.489664 | G15: =IF(AND(Eingabe!$J$88<=Berechnungen!B15,(Eingabe!$J$88+Eingabe!$J$89)>B15),(Eingabe!$H$92*(1-Eingabe!$H$87))/Eingabe!$J$89,0) -> 0 | H15: =((Eingabe!$H$92*(1-Eingabe!$H$87))-SUM($G$11:G14))*Eingabe!$I$87 -> 0 | I15: 0 | J15: 2538.428181 | K15: =J15/(1+(Eingabe!H$106/100))^B15 -> 2391.667002 | L15: -5948.618868 | M15: 5 | N15: 5 | O15: =IF(Eingabe!$H$63=Eingabe!$C$169,IF(R15<>0,IF(Eingabe!$H$65=Eingabe!$C$200,S15,R15),P15),IF(Eingabe!$H$63=Eingabe!$C$171,T15,IF(Eingabe!$H$63=Eingabe!$C$170,T15,IF(Eingabe!$H$63=Eingabe!$C$172,T15,"Zuordnung!")))) -> 0.2674867664 | P15: =Eingabe!H$104*(1+(Eingabe!H$105/100))^B14 -> 0.240945152 | Q15: =Eingabe!H$103*(1+(Eingabe!H$105/100))^B14 -> 0.3294172 | R15: 0 | S15: =IF(Eingabe!$H$65="Volleinspeisung",Berechnungen!R15,(R15*Eingabe!$H$74+Berechnungen!Q15*Eingabe!$H$73)/100) -> 0.09882516 | T15: =(P15*Eingabe!$H$74+Berechnungen!Q15*Eingabe!$H$73)/100 -> 0.2674867664 | V15: =IF(Eingabe!$H$112*Eingabe!$H$73/100>25000,IF((Eingabe!$H$112*Eingabe!$H$73/100-25000)*0.015<=50,0,(Eingabe!$H$112*Eingabe!$H$73/100-25000)*0.015),0) -> 0 | W15: 26.74867664 | X15: =P15*Eingabe!$H$74/100 -> 0.1686616064 | Y15: =Q15*Eingabe!$H$73/100 -> 0.09882516 | AA15: =F15/(1+(Eingabe!H$106/100))^B15 -> 80.54701327 | AB15: 16460.75575 | AC15: 16472.73126 | AD15: 39533.36376 | AE15: 0.4166792223 | AF15: 0.4163763006 | AG15: 0 | AH15: 0 | AI15: 4 | AJ15: =AF15*(1+(Eingabe!H$106/100))^AI15 -> 0.4419266288
B16: 5 | C16: 0.2621370311 | D16: =Eingabe!$H$112*1/(1+(Eingabe!H$98/100))^B15 -> 9760.720363 | E16: 2558.646257 | F16: =(Eingabe!H$89*(Eingabe!H$97/100))*((1+(Eingabe!H$102/100))^B15) -> 88.90925056 | G16: =IF(AND(Eingabe!$J$88<=Berechnungen!B16,(Eingabe!$J$88+Eingabe!$J$89)>B16),(Eingabe!$H$92*(1-Eingabe!$H$87))/Eingabe!$J$89,0) -> 0 | H16: =((Eingabe!$H$92*(1-Eingabe!$H$87))-SUM($G$11:G15))*Eingabe!$I$87 -> 0 | I16: 0 | J16: 2469.737007 | K16: =J16/(1+(Eingabe!H$106/100))^B16 -> 2292.558877 | L16: -3656.059991 | M16: 6 | N16: 6 | O16: =IF(Eingabe!$H$63=Eingabe!$C$169,IF(R16<>0,IF(Eingabe!$H$65=Eingabe!$C$200,S16,R16),P16),IF(Eingabe!$H$63=Eingabe!$C$171,T16,IF(Eingabe!$H$63=Eingabe!$C$170,T16,IF(Eingabe!$H$63=Eingabe!$C$172,T16,"Zuordnung!")))) -> 0.2621370311 | P16: =Eingabe!H$104*(1+(Eingabe!H$105/100))^B15 -> 0.236126249 | Q16: =Eingabe!H$103*(1+(Eingabe!H$105/100))^B15 -> 0.322828856 | R16: 0 | S16: =IF(Eingabe!$H$65="Volleinspeisung",Berechnungen!R16,(R16*Eingabe!$H$74+Berechnungen!Q16*Eingabe!$H$73)/100) -> 0.0968486568 | T16: =(P16*Eingabe!$H$74+Berechnungen!Q16*Eingabe!$H$73)/100 -> 0.2621370311 | V16: =IF(Eingabe!$H$112*Eingabe!$H$73/100>25000,IF((Eingabe!$H$112*Eingabe!$H$73/100-25000)*0.015<=50,0,(Eingabe!$H$112*Eingabe!$H$73/100-25000)*0.015),0) -> 0 | W16: 26.21370311 | X16: =P16*Eingabe!$H$74/100 -> 0.1652883743 | Y16: =Q16*Eingabe!$H$73/100 -> 0.0968486568 | AA16: =F16/(1+(Eingabe!H$106/100))^B16 -> 82.53092986 | AB16: 16543.28668 | AC16: 16561.64051 | AD16: 49294.08412 | AE16: 0.3359762294 | AF16: 0.335603896 | AG16: 0 | AH16: 0 | AI16: 5 | AJ16: =AF16*(1+(Eingabe!H$106/100))^AI16 -> 0.3615407088
B17: 6 | C17: 0.2568942905 | D17: =Eingabe!$H$112*1/(1+(Eingabe!H$98/100))^B16 -> 9712.159565 | E17: 2494.99834 | F17: =(Eingabe!H$89*(Eingabe!H$97/100))*((1+(Eingabe!H$102/100))^B16)+IF(Eingabe!G96="viermal",Eingabe!H96,0) -> 92.46562058 | G17: =IF(AND(Eingabe!$J$88<=Berechnungen!B17,(Eingabe!$J$88+Eingabe!$J$89)>B17),(Eingabe!$H$92*(1-Eingabe!$H$87))/Eingabe!$J$89,0) -> 0 | H17: =((Eingabe!$H$92*(1-Eingabe!$H$87))-SUM($G$11:G16))*Eingabe!$I$87 -> 0 | I17: 0 | J17: 2402.53272 | K17: =J17/(1+(Eingabe!H$106/100))^B17 -> 2197.217541 | L17: -1458.84245 | M17: 7 | N17: 7 | O17: =IF(Eingabe!$H$63=Eingabe!$C$169,IF(R17<>0,IF(Eingabe!$H$65=Eingabe!$C$200,S17,R17),P17),IF(Eingabe!$H$63=Eingabe!$C$171,T17,IF(Eingabe!$H$63=Eingabe!$C$170,T17,IF(Eingabe!$H$63=Eingabe!$C$172,T17,"Zuordnung!")))) -> 0.2568942905 | P17: =Eingabe!H$104*(1+(Eingabe!H$105/100))^B16 -> 0.231403724 | Q17: =Eingabe!H$103*(1+(Eingabe!H$105/100))^B16 -> 0.3163722789 | R17: 0 | S17: =IF(Eingabe!$H$65="Volleinspeisung",Berechnungen!R17,(R17*Eingabe!$H$74+Berechnungen!Q17*Eingabe!$H$73)/100) -> 0.09491168366 | T17: =(P17*Eingabe!$H$74+Berechnungen!Q17*Eingabe!$H$73)/100 -> 0.2568942905 | V17: =IF(Eingabe!$H$112*Eingabe!$H$73/100>25000,IF((Eingabe!$H$112*Eingabe!$H$73/100-25000)*0.015<=50,0,(Eingabe!$H$112*Eingabe!$H$73/100-25000)*0.015),0) -> 0 | W17: 25.68942905 | X17: =P17*Eingabe!$H$74/100 -> 0.1619826068 | Y17: =Q17*Eingabe!$H$73/100 -> 0.09491168366 | AA17: =F17/(1+(Eingabe!H$106/100))^B17 -> 84.56371138 | AB17: 16627.85039 | AC17: 16654.10614 | AD17: 59006.24368 | AE17: 0.2822431169 | AF17: 0.2817981514 | AG17: 0 | AH17: 0 | AI17: 6 | AJ17: =AF17*(1+(Eingabe!H$106/100))^AI17 -> 0.3081302905
B18: 7 | C18: 0.2517564046 | D18: =Eingabe!$H$112*1/(1+(Eingabe!H$98/100))^B17 -> 9663.840363 | E18: 2432.933705 | F18: =(Eingabe!H$89*(Eingabe!H$97/100))*((1+(Eingabe!H$102/100))^B17)+IF(Eingabe!G96="dreimal",Eingabe!H96,0) -> 96.16424541 | G18: =IF(AND(Eingabe!$J$88<=Berechnungen!B18,(Eingabe!$J$88+Eingabe!$J$89)>B18),(Eingabe!$H$92*(1-Eingabe!$H$87))/Eingabe!$J$89,0) -> 0 | H18: =((Eingabe!$H$92*(1-Eingabe!$H$87))-SUM($G$11:G17))*Eingabe!$I$87 -> 0 | I18: 0 | J18: 2336.769459 | K18: =J18/(1+(Eingabe!H$106/100))^B18 -> 2105.491887 | L18: 646.6494366 | M18: 0 | N18: 8 | O18: =IF(Eingabe!$H$63=Eingabe!$C$169,IF(R18<>0,IF(Eingabe!$H$65=Eingabe!$C$200,S18,R18),P18),IF(Eingabe!$H$63=Eingabe!$C$171,T18,IF(Eingabe!$H$63=Eingabe!$C$170,T18,IF(Eingabe!$H$63=Eingabe!$C$172,T18,"Zuordnung!")))) -> 0.2517564046 | P18: =Eingabe!H$104*(1+(Eingabe!H$105/100))^B17 -> 0.2267756495 | Q18: =Eingabe!H$103*(1+(Eingabe!H$105/100))^B17 -> 0.3100448333 | R18: 0 | S18: =IF(Eingabe!$H$65="Volleinspeisung",Berechnungen!R18,(R18*Eingabe!$H$74+Berechnungen!Q18*Eingabe!$H$73)/100) -> 0.09301344999 | T18: =(P18*Eingabe!$H$74+Berechnungen!Q18*Eingabe!$H$73)/100 -> 0.2517564046 | V18: =IF(Eingabe!$H$112*Eingabe!$H$73/100>25000,IF((Eingabe!$H$112*Eingabe!$H$73/100-25000)*0.015<=50,0,(Eingabe!$H$112*Eingabe!$H$73/100-25000)*0.015),0) -> 0 | W18: 25.17564046 | X18: =P18*Eingabe!$H$74/100 -> 0.1587429547 | Y18: =Q18*Eingabe!$H$73/100 -> 0.09301344999 | AA18: =F18/(1+(Eingabe!H$106/100))^B18 -> 86.64656141 | AB18: 16714.49695 | AC18: 16750.27038 | AD18: 68670.08405 | AE18: 0.2439238369 | AF18: 0.2434028906 | AG18: 0.2434028906 | AH18: 0 | AI18: 7 | AJ18: =AF18*(1+(Eingabe!H$106/100))^AI18 -> 0.2701394599
B19: 8 | C19: 0.2467212765 | D19: =Eingabe!$H$112*1/(1+(Eingabe!H$98/100))^B18 -> 9615.761556 | E19: 2372.412966 | F19: =(Eingabe!H$89*(Eingabe!H$97/100))*((1+(Eingabe!H$102/100))^B18) -> 100.0108152 | G19: =IF(AND(Eingabe!$J$88<=Berechnungen!B19,(Eingabe!$J$88+Eingabe!$J$89)>B19),(Eingabe!$H$92*(1-Eingabe!$H$87))/Eingabe!$J$89,0) -> 0 | H19: =((Eingabe!$H$92*(1-Eingabe!$H$87))-SUM($G$11:G18))*Eingabe!$I$87 -> 0 | I19: 0 | J19: 2272.402151 | K19: =J19/(1+(Eingabe!H$106/100))^B19 -> 2017.236667 | L19: 2663.886104 | M19: 0 | N19: 9 | O19: =IF(Eingabe!$H$63=Eingabe!$C$169,IF(R19<>0,IF(Eingabe!$H$65=Eingabe!$C$200,S19,R19),P19),IF(Eingabe!$H$63=Eingabe!$C$171,T19,IF(Eingabe!$H$63=Eingabe!$C$170,T19,IF(Eingabe!$H$63=Eingabe!$C$172,T19,"Zuordnung!")))) -> 0.2467212765 | P19: =Eingabe!H$104*(1+(Eingabe!H$105/100))^B18 -> 0.2222401365 | Q19: =Eingabe!H$103*(1+(Eingabe!H$105/100))^B18 -> 0.3038439366 | R19: 0 | S19: =IF(Eingabe!$H$65="Volleinspeisung",Berechnungen!R19,(R19*Eingabe!$H$74+Berechnungen!Q19*Eingabe!$H$73)/100) -> 0.09115318099 | T19: =(P19*Eingabe!$H$74+Berechnungen!Q19*Eingabe!$H$73)/100 -> 0.2467212765 | V19: =IF(Eingabe!$H$112*Eingabe!$H$73/100>25000,IF((Eingabe!$H$112*Eingabe!$H$73/100-25000)*0.015<=50,0,(Eingabe!$H$112*Eingabe!$H$73/100-25000)*0.015),0) -> 0 | W19: 24.67212765 | X19: =P19*Eingabe!$H$74/100 -> 0.1555680956 | Y19: =Q19*Eingabe!$H$73/100 -> 0.09115318099 | AA19: =F19/(1+(Eingabe!H$106/100))^B19 -> 88.78071317 | AB19: 16803.27767 | AC19: 16850.2812 | AD19: 78285.8456 | AE19: 0.2152404571 | AF19: 0.2146400481 | AG19: 0.2146400481 | AH19: 0 | AI19: 8 | AJ19: =AF19*(1+(Eingabe!H$106/100))^AI19 -> 0.241790423
B20: 9 | C20: 0.241786851 | D20: =Eingabe!$H$112*1/(1+(Eingabe!H$98/100))^B19 -> 9567.921946 | E20: 2313.397718 | F20: =(Eingabe!H$89*(Eingabe!H$97/100))*((1+(Eingabe!H$102/100))^B19) -> 104.0112478 | G20: =IF(AND(Eingabe!$J$88<=Berechnungen!B20,(Eingabe!$J$88+Eingabe!$J$89)>B20),(Eingabe!$H$92*(1-Eingabe!$H$87))/Eingabe!$J$89,0) -> 0 | H20: =((Eingabe!$H$92*(1-Eingabe!$H$87))-SUM($G$11:G19))*Eingabe!$I$87 -> 0 | I20: 0 | J20: 2209.38647 | K20: =J20/(1+(Eingabe!H$106/100))^B20 -> 1932.312262 | L20: 4596.198366 | M20: 0 | N20: 10 | O20: =IF(Eingabe!$H$63=Eingabe!$C$169,IF(R20<>0,IF(Eingabe!$H$65=Eingabe!$C$200,S20,R20),P20),IF(Eingabe!$H$63=Eingabe!$C$171,T20,IF(Eingabe!$H$63=Eingabe!$C$170,T20,IF(Eingabe!$H$63=Eingabe!$C$172,T20,"Zuordnung!")))) -> 0.241786851 | P20: =Eingabe!H$104*(1+(Eingabe!H$105/100))^B19 -> 0.2177953338 | Q20: =Eingabe!H$103*(1+(Eingabe!H$105/100))^B19 -> 0.2977670579 | R20: 0 | S20: =IF(Eingabe!$H$65="Volleinspeisung",Berechnungen!R20,(R20*Eingabe!$H$74+Berechnungen!Q20*Eingabe!$H$73)/100) -> 0.08933011737 | T20: =(P20*Eingabe!$H$74+Berechnungen!Q20*Eingabe!$H$73)/100 -> 0.241786851 | V20: =IF(Eingabe!$H$112*Eingabe!$H$73/100>25000,IF((Eingabe!$H$112*Eingabe!$H$73/100-25000)*0.015<=50,0,(Eingabe!$H$112*Eingabe!$H$73/100-25000)*0.015),0) -> 0 | W20: 24.1786851 | X20: =P20*Eingabe!$H$74/100 -> 0.1524567336 | Y20: =Q20*Eingabe!$H$73/100 -> 0.08933011737 | AA20: =F20/(1+(Eingabe!H$106/100))^B20 -> 90.96743025 | AB20: 16894.2451 | AC20: 16954.29244 | AD20: 87853.76755 | AE20: 0.1929831004 | AF20: 0.1922996084 | AG20: 0.1922996084 | AH20: 0 | AI20: 9 | AJ20: =AF20*(1+(Eingabe!H$106/100))^AI20 -> 0.2198734445
B21: 10 | C21: 0.236951114 | D21: =Eingabe!$H$112*1/(1+(Eingabe!H$98/100))^B20 -> 9520.320344 | E21: 2255.850511 | F21: =(Eingabe!H$89*(Eingabe!H$97/100))*((1+(Eingabe!H$102/100))^B20)+IF(Eingabe!G96="zweimal",Eingabe!H96,0) -> 108.1716977 | G21: =IF(AND(Eingabe!$J$88<=Berechnungen!B21,(Eingabe!$J$88+Eingabe!$J$89)>B21),(Eingabe!$H$92*(1-Eingabe!$H$87))/Eingabe!$J$89,0) -> 0 | H21: =((Eingabe!$H$92*(1-Eingabe!$H$87))-SUM($G$11:G20))*Eingabe!$I$87 -> 0 | I21: 0 | J21: 2147.678813 | K21: =J21/(1+(Eingabe!H$106/100))^B21 -> 1850.584458 | L21: 6446.782824 | M21: 0 | N21: 11 | O21: =IF(Eingabe!$H$63=Eingabe!$C$169,IF(R21<>0,IF(Eingabe!$H$65=Eingabe!$C$200,S21,R21),P21),IF(Eingabe!$H$63=Eingabe!$C$171,T21,IF(Eingabe!$H$63=Eingabe!$C$170,T21,IF(Eingabe!$H$63=Eingabe!$C$172,T21,"Zuordnung!")))) -> 0.236951114 | P21: =Eingabe!H$104*(1+(Eingabe!H$105/100))^B20 -> 0.2134394271 | Q21: =Eingabe!H$103*(1+(Eingabe!H$105/100))^B20 -> 0.2918117167 | R21: 0 | S21: =IF(Eingabe!$H$65="Volleinspeisung",Berechnungen!R21,(R21*Eingabe!$H$74+Berechnungen!Q21*Eingabe!$H$73)/100) -> 0.08754351502 | T21: =(P21*Eingabe!$H$74+Berechnungen!Q21*Eingabe!$H$73)/100 -> 0.236951114 | V21: =IF(Eingabe!$H$112*Eingabe!$H$73/100>25000,IF((Eingabe!$H$112*Eingabe!$H$73/100-25000)*0.015<=50,0,(Eingabe!$H$112*Eingabe!$H$73/100-25000)*0.015),0) -> 0 | W21: 23.6951114 | X21: =P21*Eingabe!$H$74/100 -> 0.149407599 | Y21: =Q21*Eingabe!$H$73/100 -> 0.08754351502 | AA21: =F21/(1+(Eingabe!H$106/100))^B21 -> 93.20800735 | AB21: 16987.45311 | AC21: 17062.46414 | AD21: 97374.08789 | AE21: 0.1752259201 | AF21: 0.1744555813 | AG21: 0.1744555813 | AH21: 0 | AI21: 10 | AJ21: =AF21*(1+(Eingabe!H$106/100))^AI21 -> 0.2024628242
B22: 11 | C22: 0.2322120917 | D22: =Eingabe!$H$112*1/(1+(Eingabe!H$98/100))^B21 -> 9472.955566 | E22: 2199.734827 | F22: =(Eingabe!H$89*(Eingabe!H$97/100))*((1+(Eingabe!H$102/100))^B21) -> 112.4985657 | G22: =IF(AND(Eingabe!$J$88<=Berechnungen!B22,(Eingabe!$J$88+Eingabe!$J$89)>B22),(Eingabe!$H$92*(1-Eingabe!$H$87))/Eingabe!$J$89,0) -> 0 | H22: =((Eingabe!$H$92*(1-Eingabe!$H$87))-SUM($G$11:G21))*Eingabe!$I$87 -> 0 | I22: 0 | J22: 2087.236261 | K22: =J22/(1+(Eingabe!H$106/100))^B22 -> 1771.924228 | L22: 8218.707051 | M22: 0 | N22: 12 | O22: =IF(Eingabe!$H$63=Eingabe!$C$169,IF(R22<>0,IF(Eingabe!$H$65=Eingabe!$C$200,S22,R22),P22),IF(Eingabe!$H$63=Eingabe!$C$171,T22,IF(Eingabe!$H$63=Eingabe!$C$170,T22,IF(Eingabe!$H$63=Eingabe!$C$172,T22,"Zuordnung!")))) -> 0.2322120917 | P22: =Eingabe!H$104*(1+(Eingabe!H$105/100))^B21 -> 0.2091706386 | Q22: =Eingabe!H$103*(1+(Eingabe!H$105/100))^B21 -> 0.2859754824 | R22: 0 | S22: =IF(Eingabe!$H$65="Volleinspeisung",Berechnungen!R22,(R22*Eingabe!$H$74+Berechnungen!Q22*Eingabe!$H$73)/100) -> 0.08579264472 | T22: =(P22*Eingabe!$H$74+Berechnungen!Q22*Eingabe!$H$73)/100 -> 0.2322120917 | V22: =IF(Eingabe!$H$112*Eingabe!$H$73/100>25000,IF((Eingabe!$H$112*Eingabe!$H$73/100-25000)*0.015<=50,0,(Eingabe!$H$112*Eingabe!$H$73/100-25000)*0.015),0) -> 0 | W22: 23.22120917 | X22: =P22*Eingabe!$H$74/100 -> 0.146419447 | Y22: =Q22*Eingabe!$H$73/100 -> 0.08579264472 | AA22: =F22/(1+(Eingabe!H$106/100))^B22 -> 95.50377107 | AB22: 17082.95688 | AC22: 17174.96271 | AD22: 106847.0435 | AE22: 0.160743453 | AF22: 0.1598823545 | AG22: 0.1598823545 | AH22: 0 | AI22: 11 | AJ22: =AF22*(1+(Eingabe!H$106/100))^AI22 -> 0.1883332496
B23: 12 | C23: 0.2275678499 | D23: =Eingabe!$H$112*1/(1+(Eingabe!H$98/100))^B22 -> 9425.826434 | E23: 2145.015055 | F23: =(Eingabe!H$89*(Eingabe!H$97/100))*((1+(Eingabe!H$102/100))^B22)+IF(Eingabe!G96="viermal",Eingabe!H96,0) -> 116.9985083 | G23: =IF(AND(Eingabe!$J$88<=Berechnungen!B23,(Eingabe!$J$88+Eingabe!$J$89)>B23),(Eingabe!$H$92*(1-Eingabe!$H$87))/Eingabe!$J$89,0) -> 0 | H23: =((Eingabe!$H$92*(1-Eingabe!$H$87))-SUM($G$11:G22))*Eingabe!$I$87 -> 0 | I23: =G23+H23 -> 0 | J23: 2028.016547 | K23: =J23/(1+(Eingabe!H$106/100))^B23 -> 1696.207531 | L23: 9914.914583 | M23: 0 | N23: 13 | O23: =IF(Eingabe!$H$63=Eingabe!$C$169,IF(R23<>0,IF(Eingabe!$H$65=Eingabe!$C$200,S23,R23),P23),IF(Eingabe!$H$63=Eingabe!$C$171,T23,IF(Eingabe!$H$63=Eingabe!$C$170,T23,IF(Eingabe!$H$63=Eingabe!$C$172,T23,"Zuordnung!")))) -> 0.2275678499 | P23: =Eingabe!H$104*(1+(Eingabe!H$105/100))^B22 -> 0.2049872258 | Q23: =Eingabe!H$103*(1+(Eingabe!H$105/100))^B22 -> 0.2802559728 | R23: 0 | S23: =IF(Eingabe!$H$65="Volleinspeisung",Berechnungen!R23,(R23*Eingabe!$H$74+Berechnungen!Q23*Eingabe!$H$73)/100) -> 0.08407679183 | T23: =(P23*Eingabe!$H$74+Berechnungen!Q23*Eingabe!$H$73)/100 -> 0.2275678499 | V23: =IF(Eingabe!$H$112*Eingabe!$H$73/100>25000,IF((Eingabe!$H$112*Eingabe!$H$73/100-25000)*0.015<=50,0,(Eingabe!$H$112*Eingabe!$H$73/100-25000)*0.015),0) -> 0 | W23: 22.75678499 | X23: =P23*Eingabe!$H$74/100 -> 0.1434910581 | Y23: =Q23*Eingabe!$H$73/100 -> 0.08407679183 | AA23: =F23/(1+(Eingabe!H$106/100))^B23 -> 97.85608071 | AB23: 17180.81296 | AC23: 17291.96122 | AD23: 116272.8699 | AE23: 0.148718796 | AF23: 0.14776287 | AG23: 0.14776287 | AH23: 0 | AI23: 12 | AJ23: =AF23*(1+(Eingabe!H$106/100))^AI23 -> 0.1766679724
B24: 13 | C24: 0.2230164929 | D24: =Eingabe!$H$112*1/(1+(Eingabe!H$98/100))^B23 -> 9378.931775 | E24: 2091.656472 | F24: =(Eingabe!H$89*(Eingabe!H$97/100))*((1+(Eingabe!H$102/100))^B23)+IF(Eingabe!G96="einmal",Eingabe!H96,0) -> 2621.678449 | G24: =IF(AND(Eingabe!$J$88<=Berechnungen!B24,(Eingabe!$J$88+Eingabe!$J$89)>B24),(Eingabe!$H$92*(1-Eingabe!$H$87))/Eingabe!$J$89,0) -> 0 | H24: =((Eingabe!$H$92*(1-Eingabe!$H$87))-SUM($G$11:G23))*Eingabe!$I$87 -> 0 | I24: 0 | J24: -530.0219771 | K24: =J24/(1+(Eingabe!H$106/100))^B24 -> -436.7524285 | L24: 9478.162154 | M24: 0 | N24: 14 | O24: =IF(Eingabe!$H$63=Eingabe!$C$169,IF(R24<>0,IF(Eingabe!$H$65=Eingabe!$C$200,S24,R24),P24),IF(Eingabe!$H$63=Eingabe!$C$171,T24,IF(Eingabe!$H$63=Eingabe!$C$170,T24,IF(Eingabe!$H$63=Eingabe!$C$172,T24,"Zuordnung!")))) -> 0.2230164929 | P24: =Eingabe!H$104*(1+(Eingabe!H$105/100))^B23 -> 0.2008874813 | Q24: =Eingabe!H$103*(1+(Eingabe!H$105/100))^B23 -> 0.2746508533 | R24: 0 | S24: =IF(Eingabe!$H$65="Volleinspeisung",Berechnungen!R24,(R24*Eingabe!$H$74+Berechnungen!Q24*Eingabe!$H$73)/100) -> 0.08239525599 | T24: =(P24*Eingabe!$H$74+Berechnungen!Q24*Eingabe!$H$73)/100 -> 0.2230164929 | V24: =IF(Eingabe!$H$112*Eingabe!$H$73/100>25000,IF((Eingabe!$H$112*Eingabe!$H$73/100-25000)*0.015<=50,0,(Eingabe!$H$112*Eingabe!$H$73/100-25000)*0.015),0) -> 0 | W24: 22.30164929 | X24: =P24*Eingabe!$H$74/100 -> 0.1406212369 | Y24: =Q24*Eingabe!$H$73/100 -> 0.08239525599 | AA24: =F24/(1+(Eingabe!H$106/100))^B24 -> 2160.333871 | AB24: 19341.14683 | AC24: 19913.63966 | AD24: 125651.8017 | AE24: 0.1584827229 | AF24: 0.153926538 | AG24: 0.153926538 | AH24: 0 | AI24: 13 | AJ24: =AF24*(1+(Eingabe!H$106/100))^AI24 -> 0.1867979264
B25: 14 | C25: 0.218556163 | D25: =Eingabe!$H$112*1/(1+(Eingabe!H$98/100))^B24 -> 9332.270423 | E25: 2039.625216 | F25: =(Eingabe!H$89*(Eingabe!H$97/100))*((1+(Eingabe!H$102/100))^B24)+IF(Eingabe!G96="dreimal",Eingabe!H96,0) -> 126.5455866 | G25: =IF(AND(Eingabe!$J$88<=Berechnungen!B25,(Eingabe!$J$88+Eingabe!$J$89)>B25),(Eingabe!$H$92*(1-Eingabe!$H$87))/Eingabe!$J$89,0) -> 0 | H25: =((Eingabe!$H$92*(1-Eingabe!$H$87))-SUM($G$11:G24))*Eingabe!$I$87 -> 0 | I25: 0 | J25: 1913.079629 | K25: =J25/(1+(Eingabe!H$106/100))^B25 -> 1553.132315 | L25: 11031.29447 | M25: 0 | N25: 15 | O25: =IF(Eingabe!$H$63=Eingabe!$C$169,IF(R25<>0,IF(Eingabe!$H$65=Eingabe!$C$200,S25,R25),P25),IF(Eingabe!$H$63=Eingabe!$C$171,T25,IF(Eingabe!$H$63=Eingabe!$C$170,T25,IF(Eingabe!$H$63=Eingabe!$C$172,T25,"Zuordnung!")))) -> 0.218556163 | P25: =Eingabe!H$104*(1+(Eingabe!H$105/100))^B24 -> 0.1968697317 | Q25: =Eingabe!H$103*(1+(Eingabe!H$105/100))^B24 -> 0.2691578362 | R25: =IF(Eingabe!$H$67="Überschusseinspeisung",S25,P25) -> 0.218556163 | S25: =IF(Eingabe!$H$67="Überschusseinspeisung",T25,P25) -> 0.218556163 | T25: =(P25*Eingabe!$H$74+Berechnungen!Q25*Eingabe!$H$73)/100 -> 0.218556163 | V25: =IF(Eingabe!$H$112*Eingabe!$H$73/100>25000,IF((Eingabe!$H$112*Eingabe!$H$73/100-25000)*0.015<=50,0,(Eingabe!$H$112*Eingabe!$H$73/100-25000)*0.015),0) -> 0 | W25: 21.8556163 | X25: =P25*Eingabe!$H$74/100 -> 0.1378088122 | Y25: =Q25*Eingabe!$H$73/100 -> 0.08074735087 | AA25: =F25/(1+(Eingabe!H$106/100))^B25 -> 102.735943 | AB25: 19443.88277 | AC25: 20040.18525 | AD25: 134984.0721 | AE25: 0.148463333 | AF25: 0.1440457564 | AG25: 0.1440457564 | AH25: 0 | AI25: 14 | AJ25: =AF25*(1+(Eingabe!H$106/100))^AI25 -> 0.177429186
B26: 15 | C26: 0.2141850398 | D26: =Eingabe!$H$112*1/(1+(Eingabe!H$98/100))^B25 -> 9285.841217 | E26: 1988.88827 | F26: =(Eingabe!H$89*(Eingabe!H$97/100))*((1+(Eingabe!H$102/100))^B25) -> 131.60741 | G26: =IF(AND(Eingabe!$J$88<=Berechnungen!B26,(Eingabe!$J$88+Eingabe!$J$89)>B26),(Eingabe!$H$92*(1-Eingabe!$H$87))/Eingabe!$J$89,0) -> 0 | H26: =((Eingabe!$H$92*(1-Eingabe!$H$87))-SUM($G$11:G25))*Eingabe!$I$87 -> 0 | I26: 0 | J26: 1857.28086 | K26: =J26/(1+(Eingabe!H$106/100))^B26 -> 1485.548891 | L26: 12516.84336 | M26: 0 | N26: 16 | O26: =IF(Eingabe!$H$63=Eingabe!$C$169,IF(R26<>0,IF(Eingabe!$H$65=Eingabe!$C$200,S26,R26),P26),IF(Eingabe!$H$63=Eingabe!$C$171,T26,IF(Eingabe!$H$63=Eingabe!$C$170,T26,IF(Eingabe!$H$63=Eingabe!$C$172,T26,"Zuordnung!")))) -> 0.2141850398 | P26: =Eingabe!H$104*(1+(Eingabe!H$105/100))^B25 -> 0.192932337 | Q26: =Eingabe!H$103*(1+(Eingabe!H$105/100))^B25 -> 0.2637746795 | R26: =IF(Eingabe!$H$67="Überschusseinspeisung",S26,P26) -> 0.2141850398 | S26: =IF(Eingabe!$H$67="Überschusseinspeisung",T26,P26) -> 0.2141850398 | T26: =(P26*Eingabe!$H$74+Berechnungen!Q26*Eingabe!$H$73)/100 -> 0.2141850398 | V26: =IF(Eingabe!$H$112*Eingabe!$H$73/100>25000,IF((Eingabe!$H$112*Eingabe!$H$73/100-25000)*0.015<=50,0,(Eingabe!$H$112*Eingabe!$H$73/100-25000)*0.015),0) -> 0 | W26: 21.41850398 | X26: =P26*Eingabe!$H$74/100 -> 0.1350526359 | Y26: =Q26*Eingabe!$H$73/100 -> 0.07913240385 | AA26: =F26/(1+(Eingabe!H$106/100))^B26 -> 105.266385 | AB26: 19549.14916 | AC26: 20171.79266 | AD26: 144269.9133 | AE26: 0.1398198155 | AF26: 0.1355039918 | AG26: 0.1355039918 | AH26: 0 | AI26: 15 | AJ26: =AF26*(1+(Eingabe!H$106/100))^AI26 -> 0.1694114358
B27: 16 | C27: 0.209901339 | D27: =Eingabe!$H$112*1/(1+(Eingabe!H$98/100))^B26 -> 9239.643002 | E27: 1939.413438 | F27: =(Eingabe!H$89*(Eingabe!H$97/100))*((1+(Eingabe!H$102/100))^B26) -> 136.8717064 | G27: =IF(AND(Eingabe!$J$88<=Berechnungen!B27,(Eingabe!$J$88+Eingabe!$J$89)>B27),(Eingabe!$H$92*(1-Eingabe!$H$87))/Eingabe!$J$89,0) -> 0 | H27: =((Eingabe!$H$92*(1-Eingabe!$H$87))-SUM($G$11:G26))*Eingabe!$I$87 -> 0 | I27: 0 | J27: 1802.541731 | K27: =J27/(1+(Eingabe!H$106/100))^B27 -> 1420.458834 | L27: 13937.30219 | M27: 0 | N27: 17 | O27: =IF(Eingabe!$H$63=Eingabe!$C$169,IF(R27<>0,IF(Eingabe!$H$65=Eingabe!$C$200,S27,R27),P27),IF(Eingabe!$H$63=Eingabe!$C$171,T27,IF(Eingabe!$H$63=Eingabe!$C$170,T27,IF(Eingabe!$H$63=Eingabe!$C$172,T27,"Zuordnung!")))) -> 0.209901339 | P27: =Eingabe!H$104*(1+(Eingabe!H$105/100))^B26 -> 0.1890736903 | Q27: =Eingabe!H$103*(1+(Eingabe!H$105/100))^B26 -> 0.2584991859 | R27: =IF(Eingabe!$H$67="Überschusseinspeisung",S27,P27) -> 0.209901339 | S27: =IF(Eingabe!$H$67="Überschusseinspeisung",T27,P27) -> 0.209901339 | T27: =(P27*Eingabe!$H$74+Berechnungen!Q27*Eingabe!$H$73)/100 -> 0.209901339 | V27: =IF(Eingabe!$H$112*Eingabe!$H$73/100>25000,IF((Eingabe!$H$112*Eingabe!$H$73/100-25000)*0.015<=50,0,(Eingabe!$H$112*Eingabe!$H$73/100-25000)*0.015),0) -> 0 | W27: 20.9901339 | X27: =P27*Eingabe!$H$74/100 -> 0.1323515832 | Y27: =Q27*Eingabe!$H$73/100 -> 0.07754975578 | AA27: =F27/(1+(Eingabe!H$106/100))^B27 -> 107.8591531 | AB27: 19657.00831 | AC27: 20308.66437 | AD27: 153509.5563 | AE27: 0.1322957662 | AF27: 0.1280507141 | AG27: 0.1280507141 | AH27: 0 | AI27: 16 | AJ27: =AF27*(1+(Eingabe!H$106/100))^AI27 -> 0.1624945056
B28: 17 | C28: 0.2057033122 | D28: =Eingabe!$H$112*1/(1+(Eingabe!H$98/100))^B27 -> 9193.674629 | E28: 1891.169322 | F28: =(Eingabe!H$89*(Eingabe!H$97/100))*((1+(Eingabe!H$102/100))^B27) -> 142.3465747 | G28: =IF(AND(Eingabe!$J$88<=Berechnungen!B28,(Eingabe!$J$88+Eingabe!$J$89)>B28),(Eingabe!$H$92*(1-Eingabe!$H$87))/Eingabe!$J$89,0) -> 0 | H28: =((Eingabe!$H$92*(1-Eingabe!$H$87))-SUM($G$11:G27))*Eingabe!$I$87 -> 0 | I28: 0 | J28: 1748.822748 | K28: =J28/(1+(Eingabe!H$106/100))^B28 -> 1357.760204 | L28: 15295.0624 | M28: 0 | N28: 18 | O28: =IF(Eingabe!$H$63=Eingabe!$C$169,IF(R28<>0,IF(Eingabe!$H$65=Eingabe!$C$200,S28,R28),P28),IF(Eingabe!$H$63=Eingabe!$C$171,T28,IF(Eingabe!$H$63=Eingabe!$C$170,T28,IF(Eingabe!$H$63=Eingabe!$C$172,T28,"Zuordnung!")))) -> 0.2057033122 | P28: =Eingabe!H$104*(1+(Eingabe!H$105/100))^B27 -> 0.1852922165 | Q28: =Eingabe!H$103*(1+(Eingabe!H$105/100))^B27 -> 0.2533292022 | R28: =IF(Eingabe!$H$67="Überschusseinspeisung",S28,P28) -> 0.2057033122 | S28: =IF(Eingabe!$H$67="Überschusseinspeisung",T28,P28) -> 0.2057033122 | T28: =(P28*Eingabe!$H$74+Berechnungen!Q28*Eingabe!$H$73)/100 -> 0.2057033122 | V28: =IF(Eingabe!$H$112*Eingabe!$H$73/100>25000,IF((Eingabe!$H$112*Eingabe!$H$73/100-25000)*0.015<=50,0,(Eingabe!$H$112*Eingabe!$H$73/100-25000)*0.015),0) -> 0 | W28: 20.57033122 | X28: =P28*Eingabe!$H$74/100 -> 0.1297045515 | Y28: =Q28*Eingabe!$H$73/100 -> 0.07599876066 | AA28: =F28/(1+(Eingabe!H$106/100))^B28 -> 110.5157824 | AB28: 19767.52409 | AC28: 20451.01094 | AD28: 162703.2309 | AE28: 0.1256951741 | AF28: 0.121494355 | AG28: 0.121494355 | AH28: 0 | AI28: 17 | AJ28: =AF28*(1+(Eingabe!H$106/100))^AI28 -> 0.1564871993
B29: 18 | C29: 0.2015892459 | D29: =Eingabe!$H$112*1/(1+(Eingabe!H$98/100))^B28 -> 9147.934954 | E29: 1844.125309 | F29: =(Eingabe!H$89*(Eingabe!H$97/100))*((1+(Eingabe!H$102/100))^B28)+IF(Eingabe!G96="viermal",Eingabe!H96,0) -> 148.0404377 | G29: =IF(AND(Eingabe!$J$88<=Berechnungen!B29,(Eingabe!$J$88+Eingabe!$J$89)>B29),(Eingabe!$H$92*(1-Eingabe!$H$87))/Eingabe!$J$89,0) -> 0 | H29: =((Eingabe!$H$92*(1-Eingabe!$H$87))-SUM($G$11:G28))*Eingabe!$I$87 -> 0 | I29: 0 | J29: 1696.084872 | K29: =J29/(1+(Eingabe!H$106/100))^B29 -> 1297.35497 | L29: 16592.41737 | M29: 0 | N29: 19 | O29: =IF(Eingabe!$H$63=Eingabe!$C$169,IF(R29<>0,IF(Eingabe!$H$65=Eingabe!$C$200,S29,R29),P29),IF(Eingabe!$H$63=Eingabe!$C$171,T29,IF(Eingabe!$H$63=Eingabe!$C$170,T29,IF(Eingabe!$H$63=Eingabe!$C$172,T29,"Zuordnung!")))) -> 0.2015892459 | P29: =Eingabe!H$104*(1+(Eingabe!H$105/100))^B28 -> 0.1815863721 | Q29: =Eingabe!H$103*(1+(Eingabe!H$105/100))^B28 -> 0.2482626182 | R29: =IF(Eingabe!$H$67="Überschusseinspeisung",S29,P29) -> 0.2015892459 | S29: =IF(Eingabe!$H$67="Überschusseinspeisung",T29,P29) -> 0.2015892459 | T29: =(P29*Eingabe!$H$74+Berechnungen!Q29*Eingabe!$H$73)/100 -> 0.2015892459 | V29: =IF(Eingabe!$H$112*Eingabe!$H$73/100>25000,IF((Eingabe!$H$112*Eingabe!$H$73/100-25000)*0.015<=50,0,(Eingabe!$H$112*Eingabe!$H$73/100-25000)*0.015),0) -> 0 | W29: 20.15892459 | X29: =P29*Eingabe!$H$74/100 -> 0.1271104605 | Y29: =Q29*Eingabe!$H$73/100 -> 0.07447878545 | AA29: =F29/(1+(Eingabe!H$106/100))^B29 -> 113.2378461 | AB29: 19880.76194 | AC29: 20599.05138 | AD29: 171851.1659 | AE29: 0.1198656481 | AF29: 0.1156859299 | AG29: 0.1156859299 | AH29: 0 | AI29: 18 | AJ29: =AF29*(1+(Eingabe!H$106/100))^AI29 -> 0.1512409172
B30: 19 | C30: 0.197557461 | D30: =Eingabe!$H$112*1/(1+(Eingabe!H$98/100))^B29 -> 9102.42284 | E30: 1798.251545 | F30: =(Eingabe!H$89*(Eingabe!H$97/100))*((1+(Eingabe!H$102/100))^B29) -> 153.9620552 | G30: =IF(AND(Eingabe!$J$88<=Berechnungen!B30,(Eingabe!$J$88+Eingabe!$J$89)>B30),(Eingabe!$H$92*(1-Eingabe!$H$87))/Eingabe!$J$89,0) -> 0 | H30: =((Eingabe!$H$92*(1-Eingabe!$H$87))-SUM($G$11:G29))*Eingabe!$I$87 -> 0 | I30: 0 | J30: 1644.28949 | K30: =J30/(1+(Eingabe!H$106/100))^B30 -> 1239.14885 | L30: 17831.56622 | M30: 0 | N30: 20 | O30: =IF(Eingabe!$H$63=Eingabe!$C$169,IF(R30<>0,IF(Eingabe!$H$65=Eingabe!$C$200,S30,R30),P30),IF(Eingabe!$H$63=Eingabe!$C$171,T30,IF(Eingabe!$H$63=Eingabe!$C$170,T30,IF(Eingabe!$H$63=Eingabe!$C$172,T30,"Zuordnung!")))) -> 0.197557461 | P30: =Eingabe!H$104*(1+(Eingabe!H$105/100))^B29 -> 0.1779546447 | Q30: =Eingabe!H$103*(1+(Eingabe!H$105/100))^B29 -> 0.2432973658 | R30: =IF(Eingabe!$H$67="Überschusseinspeisung",S30,P30) -> 0.197557461 | S30: =IF(Eingabe!$H$67="Überschusseinspeisung",T30,P30) -> 0.197557461 | T30: =(P30*Eingabe!$H$74+Berechnungen!Q30*Eingabe!$H$73)/100 -> 0.197557461 | V30: =IF(Eingabe!$H$112*Eingabe!$H$73/100>25000,IF((Eingabe!$H$112*Eingabe!$H$73/100-25000)*0.015<=50,0,(Eingabe!$H$112*Eingabe!$H$73/100-25000)*0.015),0) -> 0 | W30: 19.7557461 | X30: =P30*Eingabe!$H$74/100 -> 0.1245682513 | Y30: =Q30*Eingabe!$H$73/100 -> 0.07298920974 | AA30: =F30/(1+(Eingabe!H$106/100))^B30 -> 116.0269556 | AB30: 19996.78889 | AC30: 20753.01343 | AD30: 180953.5887 | AE30: 0.1146869403 | AF30: 0.1105078326 | AG30: 0.1105078326 | AH30: 0 | AI30: 19 | AJ30: =AF30*(1+(Eingabe!H$106/100))^AI30 -> 0.1466384508
B31: 20 | C31: 0.1936063118 | D31: =Eingabe!$H$112*1/(1+(Eingabe!H$98/100))^B30 -> 9057.137154 | E31: 1753.51892 | F31: =(Eingabe!H$89*(Eingabe!H$97/100))*((1+(Eingabe!H$102/100))^B30)+IF(Eingabe!G96="zweimal",Eingabe!H96,0) -> 160.1205374 | G31: =IF(AND(Eingabe!$J$88<=Berechnungen!B31,(Eingabe!$J$88+Eingabe!$J$89)>B31),(Eingabe!$H$92*(1-Eingabe!$H$87))/Eingabe!$J$89,0) -> 0 | H31: =((Eingabe!$H$92*(1-Eingabe!$H$87))-SUM($G$11:G30))*Eingabe!$I$87 -> 0 | I31: 0 | J31: 1593.398383 | K31: =J31/(1+(Eingabe!H$106/100))^B31 -> 1183.051164 | L31: 19014.61738 | M31: 0 | N31: 21 | O31: =IF(Eingabe!$H$63=Eingabe!$C$169,IF(R31<>0,IF(Eingabe!$H$65=Eingabe!$C$200,S31,R31),P31),IF(Eingabe!$H$63=Eingabe!$C$171,T31,IF(Eingabe!$H$63=Eingabe!$C$170,T31,IF(Eingabe!$H$63=Eingabe!$C$172,T31,"Zuordnung!")))) -> 0.1936063118 | P31: =Eingabe!H$104*(1+(Eingabe!H$105/100))^B30 -> 0.1743955518 | Q31: =Eingabe!H$103*(1+(Eingabe!H$105/100))^B30 -> 0.2384314185 | R31: =IF(Eingabe!$H$67="Überschusseinspeisung",S31,P31) -> 0.1936063118 | S31: =IF(Eingabe!$H$67="Überschusseinspeisung",T31,P31) -> 0.1936063118 | T31: =(P31*Eingabe!$H$74+Berechnungen!Q31*Eingabe!$H$73)/100 -> 0.1936063118 | V31: =IF(Eingabe!$H$112*Eingabe!$H$73/100>25000,IF((Eingabe!$H$112*Eingabe!$H$73/100-25000)*0.015<=50,0,(Eingabe!$H$112*Eingabe!$H$73/100-25000)*0.015),0) -> 0 | W31: 19.36063118 | X31: =P31*Eingabe!$H$74/100 -> 0.1220768863 | Y31: =Q31*Eingabe!$H$73/100 -> 0.07152942555 | AA31: =F31/(1+(Eingabe!H$106/100))^B31 -> 118.8847624 | AB31: 20115.67366 | AC31: 20913.13397 | AD31: 190010.7259 | AE31: 0.1100629129 | AF31: 0.1058659903 | AG31: 0.1058659903 | AH31: 0 | AI31: 20 | AJ31: =AF31*(1+(Eingabe!H$106/100))^AI31 -> 0.142586139
B32: 21 | C32: 0.1897341856 | D32: =Eingabe!$H$112*1/(1+(Eingabe!H$98/100))^B31 -> 9012.07677 | E32: 1709.899046 | F32: =(Eingabe!H$89*(Eingabe!H$97/100))*((1+(Eingabe!H$102/100))^B31)+IF(Eingabe!G96="dreimal",Eingabe!H96,0) -> 166.5253589 | G32: =IF(AND(Eingabe!$J$88<=Berechnungen!B32,(Eingabe!$J$88+Eingabe!$J$89)>B32),(Eingabe!$H$92*(1-Eingabe!$H$87))/Eingabe!$J$89,0) -> 0 | H32: =((Eingabe!$H$92*(1-Eingabe!$H$87))-SUM($G$11:G31))*Eingabe!$I$87 -> 0 | I32: 0 | J32: 1543.373687 | K32: =J32/(1+(Eingabe!H$106/100))^B32 -> 1128.974687 | L32: 20143.59207 | M32: 0 | N32: 22 | O32: =IF(Eingabe!$H$63=Eingabe!$C$169,IF(R32<>0,IF(Eingabe!$H$65=Eingabe!$C$200,S32,R32),P32),IF(Eingabe!$H$63=Eingabe!$C$171,T32,IF(Eingabe!$H$63=Eingabe!$C$170,T32,IF(Eingabe!$H$63=Eingabe!$C$172,T32,"Zuordnung!")))) -> 0.1897341856 | P32: =Eingabe!H$104*(1+(Eingabe!H$105/100))^B31 -> 0.1709076408 | Q32: =Eingabe!H$103*(1+(Eingabe!H$105/100))^B31 -> 0.2336627901 | R32: =IF(Eingabe!$H$67="Überschusseinspeisung",S32,P32) -> 0.1897341856 | S32: =IF(Eingabe!$H$67="Überschusseinspeisung",T32,P32) -> 0.1897341856 | T32: =(P32*Eingabe!$H$74+Berechnungen!Q32*Eingabe!$H$73)/100 -> 0.1897341856 | V32: =IF(Eingabe!$H$112*Eingabe!$H$73/100>25000,IF((Eingabe!$H$112*Eingabe!$H$73/100-25000)*0.015<=50,0,(Eingabe!$H$112*Eingabe!$H$73/100-25000)*0.015),0) -> 0 | W32: 18.97341856 | X32: =P32*Eingabe!$H$74/100 -> 0.1196353485 | Y32: =Q32*Eingabe!$H$73/100 -> 0.07009883703 | AA32: =F32/(1+(Eingabe!H$106/100))^B32 -> 121.8129585 | AB32: 20237.48661 | AC32: 21079.65933 | AD32: 199022.8027 | AE32: 0.1059157998 | AF32: 0.101684261 | AG32: 0.101684261 | AH32: 0 | AI32: 21 | AJ32: =AF32*(1+(Eingabe!H$106/100))^AI32 -> 0.1390082654
B33: 22 | C33: 0.1859395019 | D33: =Eingabe!$H$112*1/(1+(Eingabe!H$98/100))^B32 -> 8967.240567 | E33: 1667.364244 | F33: =(Eingabe!H$89*(Eingabe!H$97/100))*((1+(Eingabe!H$102/100))^B32) -> 173.1863732 | G33: =IF(AND(Eingabe!$J$88<=Berechnungen!B33,(Eingabe!$J$88+Eingabe!$J$89)>B33),(Eingabe!$H$92*(1-Eingabe!$H$87))/Eingabe!$J$89,0) -> 0 | H33: =((Eingabe!$H$92*(1-Eingabe!$H$87))-SUM($G$11:G32))*Eingabe!$I$87 -> 0 | I33: 0 | J33: 1494.177871 | K33: =J33/(1+(Eingabe!H$106/100))^B33 -> 1076.835515 | L33: 21220.42758 | M33: 0 | N33: 23 | O33: =IF(Eingabe!$H$63=Eingabe!$C$169,IF(R33<>0,IF(Eingabe!$H$65=Eingabe!$C$200,S33,R33),P33),IF(Eingabe!$H$63=Eingabe!$C$171,T33,IF(Eingabe!$H$63=Eingabe!$C$170,T33,IF(Eingabe!$H$63=Eingabe!$C$172,T33,"Zuordnung!")))) -> 0.1859395019 | P33: =Eingabe!H$104*(1+(Eingabe!H$105/100))^B32 -> 0.167489488 | Q33: =Eingabe!H$103*(1+(Eingabe!H$105/100))^B32 -> 0.2289895343 | R33: =IF(Eingabe!$H$67="Überschusseinspeisung",S33,P33) -> 0.1859395019 | S33: =IF(Eingabe!$H$67="Überschusseinspeisung",T33,P33) -> 0.1859395019 | T33: =(P33*Eingabe!$H$74+Berechnungen!Q33*Eingabe!$H$73)/100 -> 0.1859395019 | V33: =IF(Eingabe!$H$112*Eingabe!$H$73/100>25000,IF((Eingabe!$H$112*Eingabe!$H$73/100-25000)*0.015<=50,0,(Eingabe!$H$112*Eingabe!$H$73/100-25000)*0.015),0) -> 0 | W33: 18.59395019 | X33: =P33*Eingabe!$H$74/100 -> 0.1172426416 | Y33: =Q33*Eingabe!$H$73/100 -> 0.06869686029 | AA33: =F33/(1+(Eingabe!H$106/100))^B33 -> 124.8132776 | AB33: 20362.29989 | AC33: 21252.8457 | AD33: 207990.0432 | AE33: 0.1021820342 | AF33: 0.09790035896 | AG33: 0.09790035896 | AH33: 0 | AI33: 22 | AJ33: =AF33*(1+(Eingabe!H$106/100))^AI33 -> 0.1358429842
B34: 23 | C34: 0.1822207118 | D34: =Eingabe!$H$112*1/(1+(Eingabe!H$98/100))^B33 -> 8922.62743 | E34: 1625.887522 | F34: =(Eingabe!H$89*(Eingabe!H$97/100))*((1+(Eingabe!H$102/100))^B33) -> 180.1138282 | G34: =IF(AND(Eingabe!$J$88<=Berechnungen!B34,(Eingabe!$J$88+Eingabe!$J$89)>B34),(Eingabe!$H$92*(1-Eingabe!$H$87))/Eingabe!$J$89,0) -> 0 | H34: =((Eingabe!$H$92*(1-Eingabe!$H$87))-SUM($G$11:G33))*Eingabe!$I$87 -> 0 | I34: 0 | J34: 1445.773694 | K34: =J34/(1+(Eingabe!H$106/100))^B34 -> 1026.552929 | L34: 22246.98051 | M34: 0 | N34: 24 | O34: =IF(Eingabe!$H$63=Eingabe!$C$169,IF(R34<>0,IF(Eingabe!$H$65=Eingabe!$C$200,S34,R34),P34),IF(Eingabe!$H$63=Eingabe!$C$171,T34,IF(Eingabe!$H$63=Eingabe!$C$170,T34,IF(Eingabe!$H$63=Eingabe!$C$172,T34,"Zuordnung!")))) -> 0.1822207118 | P34: =Eingabe!H$104*(1+(Eingabe!H$105/100))^B33 -> 0.1641396982 | Q34: =Eingabe!H$103*(1+(Eingabe!H$105/100))^B33 -> 0.2244097436 | R34: =IF(Eingabe!$H$67="Überschusseinspeisung",S34,P34) -> 0.1822207118 | S34: =IF(Eingabe!$H$67="Überschusseinspeisung",T34,P34) -> 0.1822207118 | T34: =(P34*Eingabe!$H$74+Berechnungen!Q34*Eingabe!$H$73)/100 -> 0.1822207118 | V34: =IF(Eingabe!$H$112*Eingabe!$H$73/100>25000,IF((Eingabe!$H$112*Eingabe!$H$73/100-25000)*0.015<=50,0,(Eingabe!$H$112*Eingabe!$H$73/100-25000)*0.015),0) -> 0 | W34: 18.22207118 | X34: =P34*Eingabe!$H$74/100 -> 0.1148977887 | Y34: =Q34*Eingabe!$H$73/100 -> 0.06732292309 | AA34: =F34/(1+(Eingabe!H$106/100))^B34 -> 127.8874963 | AB34: 20490.18739 | AC34: 21432.95953 | AD34: 216912.6707 | AE34: 0.09880916346 | AF34: 0.09446284224 | AG34: 0.09446284224 | AH34: 0 | AI34: 23 | AJ34: =AF34*(1+(Eingabe!H$106/100))^AI34 -> 0.133039309
B35: 24 | C35: 0.1785762976 | D35: =Eingabe!$H$112*1/(1+(Eingabe!H$98/100))^B34 -> 8878.236249 | E35: 1585.442558 | F35: =(Eingabe!H$89*(Eingabe!H$97/100))*((1+(Eingabe!H$102/100))^B34)+IF(Eingabe!G96="viermal",Eingabe!H96,0) -> 187.3183813 | G35: =IF(AND(Eingabe!$J$88<=Berechnungen!B35,(Eingabe!$J$88+Eingabe!$J$89)>B35),(Eingabe!$H$92*(1-Eingabe!$H$87))/Eingabe!$J$89,0) -> 0 | H35: =((Eingabe!$H$92*(1-Eingabe!$H$87))-SUM($G$11:G34))*Eingabe!$I$87 -> 0 | I35: 0 | J35: 1398.124177 | K35: =J35/(1+(Eingabe!H$106/100))^B35 -> 978.0492669 | L35: 23225.02978 | M35: 0 | N35: 25 | O35: =IF(Eingabe!$H$63=Eingabe!$C$169,IF(R35<>0,IF(Eingabe!$H$65=Eingabe!$C$200,S35,R35),P35),IF(Eingabe!$H$63=Eingabe!$C$171,T35,IF(Eingabe!$H$63=Eingabe!$C$170,T35,IF(Eingabe!$H$63=Eingabe!$C$172,T35,"Zuordnung!")))) -> 0.1785762976 | P35: =Eingabe!H$104*(1+(Eingabe!H$105/100))^B34 -> 0.1608569042 | Q35: =Eingabe!H$103*(1+(Eingabe!H$105/100))^B34 -> 0.2199215488 | R35: =IF(Eingabe!$H$67="Überschusseinspeisung",S35,P35) -> 0.1785762976 | S35: =IF(Eingabe!$H$67="Überschusseinspeisung",T35,P35) -> 0.1785762976 | T35: =(P35*Eingabe!$H$74+Berechnungen!Q35*Eingabe!$H$73)/100 -> 0.1785762976 | V35: =IF(Eingabe!$H$112*Eingabe!$H$73/100>25000,IF((Eingabe!$H$112*Eingabe!$H$73/100-25000)*0.015<=50,0,(Eingabe!$H$112*Eingabe!$H$73/100-25000)*0.015),0) -> 0 | W35: 17.85762976 | X35: =P35*Eingabe!$H$74/100 -> 0.112599833 | Y35: =Q35*Eingabe!$H$73/100 -> 0.06597646463 | AA35: =F35/(1+(Eingabe!H$106/100))^B35 -> 131.0374346 | AB35: 20621.22482 | AC35: 21620.27791 | AD35: 225790.9069 | AE35: 0.0957535368 | AF35: 0.09132885423 | AG35: 0.09132885423 | AH35: 0 | AI35: 24 | AJ35: =AF35*(1+(Eingabe!H$106/100))^AI35 -> 0.1305548539
B36: 25 | C36: 0.1750047716 | D36: =Eingabe!$H$112*1/(1+(Eingabe!H$98/100))^B35 -> 8834.065919 | E36: 1546.003689 | F36: =(Eingabe!H$89*(Eingabe!H$97/100))*((1+(Eingabe!H$102/100))^B35) -> 194.8111165 | G36: =IF(AND(Eingabe!$J$88<=Berechnungen!B36,(Eingabe!$J$88+Eingabe!$J$89)>B36),(Eingabe!$H$92*(1-Eingabe!$H$87))/Eingabe!$J$89,0) -> 0 | H36: =((Eingabe!$H$92*(1-Eingabe!$H$87))-SUM($G$11:G35))*Eingabe!$I$87 -> 0 | I36: 0 | J36: 1351.192572 | K36: =J36/(1+(Eingabe!H$106/100))^B36 -> 931.249801 | L36: 24156.27958 | M36: 0 | N36: 26 | O36: =IF(Eingabe!$H$63=Eingabe!$C$169,IF(R36<>0,IF(Eingabe!$H$65=Eingabe!$C$200,S36,R36),P36),IF(Eingabe!$H$63=Eingabe!$C$171,T36,IF(Eingabe!$H$63=Eingabe!$C$170,T36,IF(Eingabe!$H$63=Eingabe!$C$172,T36,"Zuordnung!")))) -> 0.1750047716 | P36: =Eingabe!H$104*(1+(Eingabe!H$105/100))^B35 -> 0.1576397661 | Q36: =Eingabe!H$103*(1+(Eingabe!H$105/100))^B35 -> 0.2155231178 | R36: =IF(Eingabe!$H$67="Überschusseinspeisung",S36,P36) -> 0.1750047716 | S36: =IF(Eingabe!$H$67="Überschusseinspeisung",T36,P36) -> 0.1750047716 | T36: =(P36*Eingabe!$H$74+Berechnungen!Q36*Eingabe!$H$73)/100 -> 0.1750047716 | V36: =IF(Eingabe!$H$112*Eingabe!$H$73/100>25000,IF((Eingabe!$H$112*Eingabe!$H$73/100-25000)*0.015<=50,0,(Eingabe!$H$112*Eingabe!$H$73/100-25000)*0.015),0) -> 0 | W36: 17.50047716 | X36: =P36*Eingabe!$H$74/100 -> 0.1103478363 | Y36: =Q36*Eingabe!$H$73/100 -> 0.06465693533 | AA36: =F36/(1+(Eingabe!H$106/100))^B36 -> 134.2649577 | AB36: 20755.48978 | AC36: 21815.08903 | AD36: 234624.9728 | AE36: 0.09297854686 | AF36: 0.08846240675 | AG36: 0.08846240675 | AH36: 0 | AI36: 25 | AJ36: =AF36*(1+(Eingabe!H$106/100))^AI36 -> 0.1283541181
B37: Summen | D37: =SUM(D12:D36) -> 234624.9728 | E37: =SUM(E12:E36) -> 53158.40022 | F37: =SUM(F11:F36) -> 21815.08903 | G37: =SUM(G12:G36) -> 0 | H37: =SUM(H12:H36) -> 0 | I37: =SUM(I11:I36) -> 0 | J37: =SUM(J11:J36) -> 31343.31119 | K37: =SUM(K11:K36) -> 24156.27958 | M37: =IF(MAX(M11:M36)>25,">25",MAX(M11:M36)) -> 7
I38: =F37+I37 -> 21815.08903
K39: Stromgestehungskosten: | L39: =I38/D37*100 -> 9.297854686 | M39: cent/kWh
K40: Mehreinnahmen nach 25 Jahren: | L40: =NPV(Eingabe!H$106/100,Berechnungen!J12:J36)+J11 -> 24156.27958 | M40: €
K41: Interner Zinsfuß: | L41: =IRR(K11:K36) -> 0.1177918496
B42: Legende:
D43: Tarif aus der Förderung
D44: Errechneter Tarif
D45: Verlinkungen
D46: Überschusseinspeisung nach Förderung
C48: Sondertarif | D48: gilt für Überschußeinspeiser
C49: Fördertarif | D49: gilt für alle Bundesländer in welchen es eine Tarifförderung gibt
C50: Einspeisetarif | D50: ist ein errechnter (prognostizierter) Tarif
B52: Tarifförderung:
D53: <=5 | E53: 5 bis 20 | F53: größer 20 | H53: Anlagengröße
D54: 5 | E54: 20 | F54: > 20 | H54: =Eingabe!H37 -> 10
C55: B | E55: =Förderungen!H11 -> - | F55: =E55 -> - | H55: =IF(Eingabe!$H$37<$D$54,D55,IF(Eingabe!$H$37<=$E$54,E55,IF(Eingabe!$H$37>$E$54,F55,""))) -> - | I55: =IF(C55=$F$6,H55,0) -> 0
C56: K | E56: =Förderungen!H23 -> - | F56: =E56 -> - | H56: =IF(Eingabe!$H$37<$D$54,D56,IF(Eingabe!$H$37<=$E$54,E56,IF(Eingabe!$H$37>$E$54,F56,""))) -> - | I56: =IF(C56=$F$6,H56,0) -> 0
C57: N | E57: =Förderungen!H35 -> - | F57: - | H57: =IF(Eingabe!$H$37<$D$54,D57,IF(Eingabe!$H$37<=$E$54,E57,IF(Eingabe!$H$37>$E$54,F57,""))) -> - | I57: 0
C58: O | E58: =Förderungen!H47 -> - | F58: - | H58: =IF(Eingabe!$H$37<$D$54,D58,IF(Eingabe!$H$37<=$E$54,E58,IF(Eingabe!$H$37>$E$54,F58,""))) -> - | I58: -
C59: Sa | E59: =Förderungen!H47 -> - | F59: - | H59: =IF(Eingabe!$H$37<$D$54,D59,IF(Eingabe!$H$37<=$E$54,E59,IF(Eingabe!$H$37>$E$54,F59,""))) -> - | I59: 0
C60: St | E60: =Förderungen!H73 -> - | F60: - | H60: =IF(Eingabe!$H$37<$D$54,D60,IF(Eingabe!$H$37<=$E$54,E60,IF(Eingabe!$H$37>$E$54,F60,""))) -> - | I60: 0
C61: T | E61: =Förderungen!H85 -> - | F61: - | H61: =IF(Eingabe!$H$37<$D$54,D61,IF(Eingabe!$H$37<=$E$54,E61,IF(Eingabe!$H$37>$E$54,F61,""))) -> - | I61: 0
C62: V | E62: =Förderungen!H97 -> - | F62: - | H62: =IF(Eingabe!$H$37<$D$54,D62,IF(Eingabe!$H$37<=$E$54,E62,IF(Eingabe!$H$37>$E$54,F62,""))) -> - | I62: 0
C63: W | E63: =Förderungen!H109 -> - | F63: - | H63: =IF(Eingabe!$H$37<$D$54,D63,IF(Eingabe!$H$37<=$E$54,E63,IF(Eingabe!$H$37>$E$54,F63,""))) -> - | I63: 0
H64: =SUM(I55:I63) -> 0
B70: Tarifzuweisung: | K70: W
K71: =IF($C$6=B73,$D$63,"") -> 
B72: kWp | C72: B | D72: K | E72: N | F72: O | G72: Sa | H72: St | I72: T | J72: V | K72: =IF($C$6=B74,$D$63,"") -> 
B73: 1 | C73: =IF($C$6=B73,$D$55,"") ->  | D73: =IF($C$6=B73,$D$56,"") ->  | E73: =IF($C$6=B73,$D$57,"") ->  | F73: =IF($C$6=B73,$D$58,"") ->  | G73: =IF($C$6=B73,$D$59,"") ->  | H73: =IF($C$6=B73,$D$60,"") ->  | I73: =IF($C$6=B73,$D$61,"") ->  | J73: =IF($C$6=B73,$D$62,"") ->  | K73: =IF($C$6=B75,$D$63,"") -> 
B74: 2 | C74: =IF($C$6=B74,$D$55,"") ->  | D74: =IF($C$6=B74,$D$56,"") ->  | E74: =IF($C$6=B74,$D$57,"") ->  | F74: =IF($C$6=B74,$D$58,"") ->  | G74: =IF($C$6=B74,$D$59,"") ->  | H74: =IF($C$6=B74,$D$60,"") ->  | I74: =IF($C$6=B74,$D$61,"") ->  | J74: =IF($C$6=B74,$D$62,"") ->  | K74: =IF($C$6=B76,$D$63,"") -> 
B75: 3 | C75: =IF($C$6=B75,$D$55,"") ->  | D75: =IF($C$6=B75,$D$56,"") ->  | E75: =IF($C$6=B75,$D$57,"") ->  | F75: =IF($C$6=B75,$D$58,"") ->  | G75: =IF($C$6=B75,$D$59,"") ->  | H75: =IF($C$6=B75,$D$60,"") ->  | I75: =IF($C$6=B75,$D$61,"") ->  | J75: =IF($C$6=B75,$D$62,"") ->  | K75: =IF($C$6=B77,$E$63,"") -> 
B76: 4 | C76: =IF($C$6=B76,$D$55,"") ->  | D76: =IF($C$6=B76,$D$56,"") ->  | E76: =IF($C$6=B76,$D$57,"") ->  | F76: =IF($C$6=B76,$D$58,"") ->  | G76: =IF($C$6=B76,$D$59,"") ->  | H76: =IF($C$6=B76,$D$60,"") ->  | I76: =IF($C$6=B76,$D$61,"") ->  | J76: =IF($C$6=B76,$D$62,"") ->  | K76: =IF($C$6=B78,$E$63,"") -> 
B77: 5.01 | C77: =IF($C$6<$B$77,$E$55,"") ->  | D77: =IF($C$6=B77,$E$56,"") ->  | E77: =IF($C$6=B77,$E$57,"") ->  | F77: =IF($C$6=B77,$E$58,"") ->  | G77: =IF($C$6=B77,$E$59,"") ->  | H77: =IF($C$6=B77,$E$60,"") ->  | I77: =IF($C$6=B77,$E$61,"") ->  | J77: =IF($C$6=B77,$E$62,"") ->  | K77: =IF($C$6=B79,$E$63,"") -> 
B78: 6 | C78: =IF($C$6=B78,$E$55,"") ->  | D78: =IF($C$6=B78,$E$56,"") ->  | E78: =IF($C$6=B78,$E$57,"") ->  | F78: =IF($C$6=B78,$E$58,"") ->  | G78: =IF($C$6=B78,$E$59,"") ->  | H78: =IF($C$6=B78,$E$60,"") ->  | I78: =IF($C$6=B78,$E$61,"") ->  | J78: =IF($C$6=B78,$E$62,"") ->  | K78: =IF($C$6=B80,$E$63,"") -> 
B79: 7 | C79: =IF($C$6=B79,$E$55,"") ->  | D79: =IF($C$6=B79,$E$56,"") ->  | E79: =IF($C$6=B79,$E$57,"") ->  | F79: =IF($C$6=B79,$E$58,"") ->  | G79: =IF($C$6=B79,$E$59,"") ->  | H79: =IF($C$6=B79,$E$60,"") ->  | I79: =IF($C$6=B79,$E$61,"") ->  | J79: =IF($C$6=B79,$E$62,"") ->  | K79: =IF($C$6=B81,$E$63,"") -> 
B80: 8 | C80: =IF($C$6=B80,$E$55,"") ->  | D80: =IF($C$6=B80,$E$56,"") ->  | E80: =IF($C$6=B80,$E$57,"") ->  | F80: =IF($C$6=B80,$E$58,"") ->  | G80: =IF($C$6=B80,$E$59,"") ->  | H80: =IF($C$6=B80,$E$60,"") ->  | I80: =IF($C$6=B80,$E$61,"") ->  | J80: =IF($C$6=B80,$E$62,"") ->  | K80: =IF($C$6=B82,$F$63,"") -> 
B81: 9 | C81: =IF($C$6=B81,$E$55,"") ->  | D81: =IF($C$6=B81,$E$56,"") ->  | E81: =IF($C$6=B81,$E$57,"") ->  | F81: =IF($C$6=B81,$E$58,"") ->  | G81: =IF($C$6=B81,$E$59,"") ->  | H81: =IF($C$6=B81,$E$60,"") ->  | I81: =IF($C$6=B81,$E$61,"") ->  | J81: =IF($C$6=B81,$E$62,"") -> 
B82: 10.01 | C82: =IF($C$6=B82,$F$55,"") ->  | D82: =IF($C$6=B82,$F$56,"") ->  | E82: =IF($C$6=B82,$F$57,"") ->  | F82: =IF($C$6=B82,$F$58,"") ->  | G82: =IF($C$6=B82,$F$59,"") ->  | H82: =IF($C$6=B82,$F$60,"") ->  | I82: =IF($C$6=B82,$F$61,"") ->  | J82: =IF($C$6=B82,$F$62,"") -> 
B83: 11
B84: 12
B85: 13
B86: 14 | K86: =SUM(K71:K85) -> 0
B87: 15 | K87: =IF($F$6=K70,K86,"") ->  | L87: =H64 -> 0
B88: Summe | C88: =SUM(C73:C87) -> 0 | D88: =SUM(D73:D87) -> 0 | E88: 0 | F88: 0 | G88: 0 | H88: 0 | I88: 0 | J88: =SUM(J73:J87) -> 0
B89: Bundesland | C89: =IF($F$6=C72,C88,"") ->  | D89: =IF($F$6=D72,D88,"") ->  | F89: 0 | J89: =IF($F$6=J72,J88,"") -> 

Sheet Förderungen
B3: Gesamte Förderung: | J3: Landesförderungen: | S3: Bundesförderungen: | AF3: Weitere Informationen zu Förderungen für Photovoltaik und Speicher erhalten Sie unter:
B5: Förderung für Burgenland | J5: Förderungen aktualisiert am 22.04.2022 | S5: Klima- und Energiefonds Förderaktion Photovoltaik-Anlagen 2017 | AF5: https://www.pvaustria.at/forderungen/
C6: Anlagengröße | E6: Landesförderung | G6: Bundesförderung | AF6: https://www.oem-ag.at/de/foerderung/
E7: Investition | G7: Investition | S7: Eine mögliche Förderung wird hier nach Bekanntgabe veröffentlicht.
C8: =AN9 -> 0,01-10 | D8: kWp | E8: - | F8: - | G8: =IF(Eingabe!$H$63=Eingabe!$C$170,AP9,0) -> 285 | H8: -
C9: =AN10 -> >10-20 | D9: kWp | E9: - | F9: - | G9: =IF(Eingabe!$H$63=Eingabe!$C$170,AP10,0) -> 250 | H9: - | AM9: A | AN9: 0,01-10 | AP9: 285
C10: >20-100 | D10: kWp | E10: - | F10: - | G10: =IF(Eingabe!$H$63=Eingabe!$C$170,AP11,0) -> 180 | H10: - | AM10: B | AN10: >10-20 | AP10: 250
C11: =AN12 -> >100-1000 | D11: kWp | E11: - | F11: - | G11: =IF(Eingabe!$H$63=Eingabe!$C$170,AP12,0) -> 170 | H11: - | AM11: C | AN11: >20-100 | AP11: 180
AM12: D | AN12: >100-1000 | AP12: 170
B13: Information:
B14: =Eingabe!I209 -> keine Landesförderung
B17: Förderung für Kärnten | J17: Förderungen aktualisiert am 22.04.2022
C18: Anlagengröße | E18: Landesförderung | G18: Bundesförderung | K18: Nähere Informationen zur PV-Förderung (Private):
E19: Investition | G19: Investition | K19: https://www.ktn.gv.at/Service/Formulare-und-Leistungen#search=photovoltaik
C20: =C8 -> 0,01-10 | D20: kWp | E20: * | F20: * | G20: =$G$8 -> 285 | H20: -
C21: >10-20 | D21: kWp | E21: * | F21: * | G21: =$G$9 -> 250 | H21: -
C22: >20-100 | D22: kWp | E22: * | F22: * | G22: =$G$10 -> 180 | H22: - | K22: Nähere Informationen zur Speicher-Förderung (Private):
C23: =C11 -> >100-1000 | D23: kWp | E23: * | F23: * | G23: =$G$11 -> 170 | H23: =$H$11 -> - | K23: https://www.ktn.gv.at/Service/Formulare-und-Leistungen#search=photovoltaik
B25: Information:
B26: =Eingabe!I210 -> Förderprogramm im Zuge der Wohnbauförderung (Link im Register "Förderungen")
B29: Förderung für Niederösterreich | J29: Förderungen aktualisiert am 22.04.2022
C30: Anlagengröße | E30: Landesförderung | G30: Bundesförderung
E31: Investition | G31: Investition
C32: =C8 -> 0,01-10 | D32: kWp | E32: - | F32: - | G32: =$G$8 -> 285 | H32: - | T32: Zur Homepage:
C33: >10-20 | D33: kWp | E33: - | F33: - | G33: =$G$9 -> 250 | H33: -
C34: >20-100 | D34: kWp | E34: - | F34: - | G34: =$G$10 -> 180 | H34: -
C35: =C11 -> >100-1000 | D35: kWp | E35: - | F35: - | G35: =$G$11 -> 170 | H35: =$H$11 -> - | T35: Zur Registrierung:
B37: Information:
B38: =Eingabe!I211 -> keine Landesförderung | T38: Zum Leitfaden:
B41: Förderung für Oberösterreich | J41: Förderungen aktualisiert am 22.04.2022
C42: Anlagengröße | E42: Landesförderung | G42: Bundesförderung
E43: Investition | G43: Investition
C44: =C20 -> 0,01-10 | D44: kWp | E44: - | F44: - | G44: =$G$8 -> 285 | H44: -
C45: >10-20 | D45: kWp | E45: - | F45: - | G45: =$G$9 -> 250 | H45: -
C46: >20-100 | D46: kWp | E46: - | F46: - | G46: =$G$10 -> 180 | H46: -
C47: =C23 -> >100-1000 | D47: kWp | E47: - | F47: - | G47: =$G$11 -> 170 | H47: =$H$11 -> -
B49: Information:
B50: =Eingabe!I212 -> keine Landesförderung
B53: Förderung für Salzburg | J53: Förderungen aktualisiert am 22.04.2021
C54: Anlagengröße | E54: Landesförderung | G54: Bundesförderung | K54: Nähere Informationen zur PV-Förderung (Private):
E55: Investition | G55: Investition | K55: https://www.salzburg.gv.at/energie_/Seiten/photovoltaik-privat.aspx
C56: =C32 -> 0,01-10 | D56: kWp | E56: 150 | F56: €/kWp | G56: =$G$8 -> 285 | H56: -
C57: >10-20 | D57: kWp | E57: 150 | F57: €/kWp | G57: =$G$9 -> 250 | H57: -
C58: >20-100 | D58: kWp | F58: €/kWp | G58: =$G$10 -> 180 | H58: - | K58: Nähere Informationen zur Speicher-Förderung (Private):
C59: =C35 -> >100-1000 | D59: kWp | F59: €/kWp | G59: =$G$11 -> 170 | H59: =$H$11 -> - | K59: https://www.salzburg.gv.at/wirtschaft_/Seiten/betriebliche-photovoltaik.aspx
B61: Information:
B62: =Eingabe!I213 -> Förderspanne 1-15 kWp; Förderprogramm Photovoltaik (private) und Speicher (Link im Register "Förderungen")
B65: Gesamte Förderung: | J65: Landesförderungen:
B67: Förderung für Steiermark | J67: Förderungen aktualisiert am 22.04.2022
C68: Anlagengröße | E68: Landesförderung | G68: Bundesförderung
E69: Investition | G69: Investition
C70: =C56 -> 0,01-10 | D70: kWp | E70: - | F70: - | G70: =$G$8 -> 285 | H70: -
C71: >10-20 | D71: kWp | E71: - | F71: - | G71: =$G$9 -> 250 | H71: -
C72: >20-100 | D72: kWp | E72: - | F72: - | G72: =$G$10 -> 180 | H72: -
C73: =C59 -> >100-1000 | D73: kWp | E73: - | F73: - | G73: =$G$11 -> 170 | H73: =$H$11 -> -
B75: Information:
B76: =Eingabe!I214 -> keine Landesförderung
B79: Förderung für Tirol | J79: Förderungen aktualisiert am 22.04.2022
C80: Anlagengröße | E80: Landesförderung | G80: Bundesförderung
E81: Investition | G81: Investition
C82: =C70 -> 0,01-10 | D82: kWp | E82: - | F82: - | G82: =$G$8 -> 285 | H82: -
C83: >10-20 | D83: kWp | E83: - | F83: - | G83: =$G$9 -> 250 | H83: -
C84: >20-100 | D84: kWp | E84: - | F84: - | G84: =$G$10 -> 180 | H84: -
C85: =C73 -> >100-1000 | D85: kWp | E85: - | F85: - | G85: =$G$11 -> 170 | H85: =$H$11 -> -
B87: Information:
B88: =Eingabe!I215 -> keine Landesförderung
B91: Förderung für Vorarlberg | J91: Förderungen aktualisiert am 22.04.2022
C92: Anlagengröße | E92: Landesförderung | G92: Bundesförderung
E93: Investition | G93: Investition
C94: =C82 -> 0,01-10 | D94: kWp | E94: - | F94: - | G94: =$G$8 -> 285 | H94: -
C95: >10-20 | D95: kWp | E95: - | F95: - | G95: =$G$9 -> 250 | H95: -
C96: >20-100 | D96: kWp | E96: =E94 -> - | F96: - | G96: =$G$10 -> 180 | H96: -
C97: =C85 -> >100-1000 | D97: kWp | E97: - | F97: - | G97: =$G$11 -> 170 | H97: =$H$11 -> -
B99: Information:
B100: =Eingabe!I216 -> keine Landesförderung
B103: Förderung für Wien | J103: Förderungen aktualisiert am 22.04.2022
C104: Anlagengröße | E104: Landesförderung | G104: Bundesförderung | K104: Nähere Informationen zur PV-Förderung (Private):
E105: Investition | G105: Investition | K105: https://www.wien.gv.at/amtshelfer/bauen-wohnen/energie/alternativenergie/oekostromanlagen.html
C106: =C94 -> 0,01-10 | D106: kWp | E106: 250 | F106: €/kWp | G106: =$G$8 -> 285 | H106: -
C107: >10-20 | D107: kWp | E107: 250 | F107: €/kWp | G107: =$G$9 -> 250 | H107: -
C108: >20-100 | D108: kWp | E108: 250 | F108: €/kWp | G108: =$G$10 -> 180 | H108: - | K108: Nähere Informationen zur Speicher-Förderung (Private):
C109: =C97 -> >100-1000 | D109: kWp | E109: 200 | F109: €/kWp | G109: =$G$11 -> 170 | H109: =$H$11 -> - | K109: https://www.wien.gv.at/amtshelfer/bauen-wohnen/energie/alternativenergie/speicheranlagen.html
B111: Information:
B112: =Eingabe!I217 -> Landesförderung max. 30% der Investkosten 250€/kWp bis 100kWp, 200€/kWp von 100 bis 500kWp

Sheet Wetterdaten (hidden)
A1: Ort | B1: PLZ | C1: Land | D1: PLZ-Differenz | E1: Jährliche Einstrahlung | F1: mittlere Aussentemperatur | G1: Längengrad | H1: Breitengrad | I1: Ermittlung der Einstrahlung
E2: [kWh/m²a] | F2: [°C] | G2: [°] | H2: [°]
A3: Admont | B3: 8911 | C3: AUT | D3: =IF(B3>$L$3,B3-$L$3,$L$3-B3) -> 4511 | E3: 1028.32 | F3: 5.86 | G3: -14.45 | H3: 47.57 | I3: =IF($L$4=D3,E3,0) -> 0 | J3: =IF(I3=0,0,1) -> 0 | K3: PLZ: | L3: =Eingabe!H12 -> 4400
A4: Amstetten | B4: 3300 | C4: AUT | D4: 1100 | E4: 1069.1 | F4: 8.79 | G4: -14.83 | H4: 48.08 | I4: 0 | J4: =IF(I4=0,0,1) -> 0 | K4: Diff: | L4: =MIN(D3:D53) -> 62
A5: Arriach | B5: 9543 | C5: AUT | D5: 5143 | E5: 1144.54 | F5: 6.46 | G5: -13.85 | H5: 46.72 | I5: 0 | J5: 0 | K5: Einstrahlung | L5: =ROUNDDOWN(K54,-0.5) -> 1068 | M5: kWh/m²a
A6: Bad Gleichenberg | B6: 8344 | C6: AUT | D6: 3944 | E6: 1153.19 | F6: 9.14 | G6: -15.88 | H6: 46.87 | I6: 0 | J6: 0
A7: Bad Ischl | B7: 4820 | C7: AUT | D7: 420 | E7: 1093.31 | F7: 7.90 | G7: -13.60 | H7: 47.72 | I7: 0 | J7: 0
A8: Bludenz | B8: 6700 | C8: AUT | D8: 2300 | E8: 1079.79 | F8: 7.97 | G8: -9.82 | H8: 48.50 | I8: 0 | J8: 0
A9: Bruck an der Mur | B9: 8600 | C9: AUT | D9: 4200 | E9: 1070.77 | F9: 8.07 | G9: -15.25 | H9: 47.42 | I9: 0 | J9: 0
A10: Eisenerz | B10: 8790 | C10: AUT | D10: 4390 | E10: 1071.43 | F10: 7.11 | G10: -14.88 | H10: 47.53 | I10: 0 | J10: 0
A11: Eisenstadt | B11: 7000 | C11: AUT | D11: 2600 | E11: 1132.17 | F11: 10.01 | G11: -16.68 | H11: 47.90 | I11: 0 | J11: 0
A12: Feldkirch | B12: 6800 | C12: AUT | D12: 2400 | E12: 1100.38 | F12: 8.30 | G12: -9.58 | H12: 47.23 | I12: 0 | J12: 0
A13: Ferlach | B13: 9170 | C13: AUT | D13: 4770 | E13: 1156.25 | F13: 7.82 | G13: -14.28 | H13: 46.52 | I13: 0 | J13: 0
A14: Fresach | B14: 9712 | C14: AUT | D14: 5312 | E14: 1207.36 | F14: 7.07 | G14: -13.68 | H14: 46.70 | I14: 0 | J14: 0
A15: Gargellen | B15: 6787 | C15: AUT | D15: 2387 | E15: 1174.51 | F15: 4.42 | G15: -9.92 | H15: 46.97 | I15: 0 | J15: 0
A16: Gmunden | B16: 4810 | C16: AUT | D16: 410 | E16: 1088.42 | F16: 8.57 | G16: -13.80 | H16: 47.92 | I16: 0 | J16: 0
A17: Graz | B17: 8010 | C17: AUT | D17: 3610 | E17: 1126.02 | F17: 9.17 | G17: -15.42 | H17: 47.67 | I17: 0 | J17: 0
A18: Gumpoldskirchen | B18: 2352 | C18: AUT | D18: 2048 | E18: 1125.22 | F18: 9.11 | G18: -16.27 | H18: 48.33 | I18: 0 | J18: 0
A19: Hallstadt | B19: 4830 | C19: AUT | D19: 430 | E19: 1054.8 | F19: 8.00 | G19: -13.63 | H19: 47.55 | I19: 0 | J19: 0
A20: Imst | B20: 6460 | C20: AUT | D20: 2060 | E20: 1069.11 | F20: 7.31 | G20: -10.72 | H20: 47.23 | I20: 0 | J20: 0
A21: Innsbruck | B21: 6020 | C21: AUT | D21: 1620 | E21: 1089.72 | F21: 8.61 | G21: -11.40 | H21: 47.27 | I21: 0 | J21: 0
A22: Kitzbuehl | B22: 6370 | C22: AUT | D22: 1970 | E22: 1069.88 | F22: 6.19 | G22: -12.38 | H22: 47.45 | I22: 0 | J22: 0
A23: Klagenfurt | B23: 9010 | C23: AUT | D23: 4610 | E23: 1131 | F23: 8.14 | G23: -14.30 | H23: 46.62 | I23: 0 | J23: 0
A24: Krems a. d. Donau | B24: 3500 | C24: AUT | D24: 900 | E24: 1071.4 | F24: 9.62 | G24: -15.58 | H24: 48.50 | I24: 0 | J24: 0
A25: Kremsmünster | B25: 4550 | C25: AUT | D25: 150 | E25: 1046.5 | F25: 7.69 | G25: -14.12 | H25: 48.05 | I25: 0 | J25: 0
A26: Leoben | B26: 8700 | C26: AUT | D26: 4300 | E26: 1068.49 | F26: 8.30 | G26: -15.83 | H26: 47.37 | I26: 0 | J26: 0
A27: Lienz | B27: 9900 | C27: AUT | D27: 5500 | E27: 1147.74 | F27: 7.41 | G27: -12.80 | H27: 46.83 | I27: 0 | J27: 0
A28: Lilienfeld | B28: 3180 | C28: AUT | D28: 1220 | E28: 1075.26 | F28: 8.36 | G28: -15.62 | H28: 48.17 | I28: 0 | J28: 0
A29: Millstatt | B29: 9872 | C29: AUT | D29: 5472 | E29: 1189.53 | F29: 8.67 | G29: -13.57 | H29: 46.80 | I29: 0 | J29: 0
A30: Mondsee | B30: 5310 | C30: AUT | D30: 910 | E30: 1046.56 | F30: 7.84 | G30: -13.33 | H30: 47.85 | I30: 0 | J30: 0
A31: Mönichkirchen | B31: 2872 | C31: AUT | D31: 1528 | E31: 1083.3 | F31: 6.25 | G31: -16.17 | H31: 47.50 | I31: 0 | J31: 0
A32: Nauders | B32: 6543 | C32: AUT | D32: 2143 | E32: 1201.41 | F32: 4.71 | G32: -10.50 | H32: 46.88 | I32: 0 | J32: 0
A33: Neumarkt in der Steiermark | B33: 8820 | C33: AUT | D33: 4420 | E33: 1161.95 | F33: 6.39 | G33: -14.42 | H33: 47.67 | I33: 0 | J33: 0
A34: Obervellach | B34: 9821 | C34: AUT | D34: 5421 | E34: 1226.7 | F34: 8.44 | G34: -13.20 | H34: 46.93 | I34: 0 | J34: 0
A35: Oberwölz Stadt | B35: 8832 | C35: AUT | D35: =IF(B35>$L$3,B35-$L$3,$L$3-B35) -> 4432 | E35: 1107.85 | F35: 6.20 | G35: -14.27 | H35: 47.20 | I35: =IF($L$4=D35,E35,0) -> 0 | J35: 0
A36: Radentheim | B36: 9545 | C36: AUT | D36: 5145 | E36: 1133.12 | F36: 7.53 | G36: -13.70 | H36: 46.80 | I36: 0 | J36: 0
A37: Ramsau Dachstein | B37: 8972 | C37: AUT | D37: 4572 | E37: 1129.03 | F37: 5.16 | G37: -12.88 | H37: 47.60 | I37: 0 | J37: 0
A38: Rauris | B38: 5661 | C38: AUT | D38: 1261 | E38: 1124.15 | F38: 5.82 | G38: -12.98 | H38: 47.23 | I38: 0 | J38: 0
A39: Reichersberg | B39: 4981 | C39: AUT | D39: 581 | E39: 1037.37 | F39: 8.48 | G39: -13.37 | H39: 48.33 | I39: 0 | J39: 0
A40: Reichraming | B40: 4462 | C40: AUT | D40: 62 | E40: 1068.82 | F40: 8.13 | G40: -14.45 | H40: 47.88 | I40: 1068.82 | J40: 1
A41: Salzburg | B41: 5020 | C41: AUT | D41: 620 | E41: 1113.61 | F41: 8.39 | G41: -13.33 | H41: 47.82 | I41: 0 | J41: 0
A42: St. Lorenzen im Lesachtal | B42: 9654 | C42: AUT | D42: 5254 | E42: 1217.13 | F42: 5.73 | G42: 12.77 | H42: 46.70 | I42: 0 | J42: 0
A43: St. Michael i. Lundgau | B43: 5582 | C43: AUT | D43: 1182 | E43: 1194.76 | F43: 6.55 | G43: -13.48 | H43: 47.83 | I43: 0 | J43: 0
A44: St. Pölten | B44: 3100 | C44: AUT | D44: 1300 | E44: 1031.18 | F44: 8.59 | G44: -15.60 | H44: 48.20 | I44: 0 | J44: 0
A45: Velden am Wörtersee | B45: 9220 | C45: AUT | D45: 4820 | E45: 1189.4 | F45: 8.04 | G45: -14.33 | H45: 46.62 | I45: 0 | J45: 0
A46: Villach | B46: 9500 | C46: AUT | D46: 5100 | E46: 1188.95 | F46: 8.04 | G46: -13.83 | H46: 46.62 | I46: 0 | J46: 0
A47: Wels | B47: 4600 | C47: AUT | D47: 200 | E47: 1036.5 | F47: 8.67 | G47: -14.17 | H47: 48.17 | I47: 0 | J47: 0
A48: Weyer Mark | B48: 3335 | C48: AUT | D48: 1065 | E48: 1106.53 | F48: 7.58 | G48: -14.65 | H48: 47.85 | I48: 0 | J48: 0
A49: Wien | B49: 1190 | C49: AUT | D49: 3210 | E49: 1084.48 | F49: 9.77 | G49: -16.33 | H49: 48.20 | I49: 0 | J49: 0
A50: Wiener Neustadt | B50: 2700 | C50: AUT | D50: 1700 | E50: 1080.56 | F50: 9.44 | G50: -16.23 | H50: 47.82 | I50: 0 | J50: 0
A51: Wolfsberg | B51: 9400 | C51: AUT | D51: 5000 | E51: 1066.68 | F51: 7.86 | G51: -14.83 | H51: 46.85 | I51: 0 | J51: 0
A52: Zell am See | B52: 5700 | C52: AUT | D52: 1300 | E52: 1080.32 | F52: 6.55 | G52: -12.77 | H52: 47.32 | I52: 0 | J52: 0
A53: Zwettl | B53: 3910 | C53: AUT | D53: 490 | E53: 1051.52 | F53: 5.71 | G53: -15.15 | H53: 48.58 | I53: 0 | J53: 0
H54: Einstrahlungswert: | I54: =SUM(I3:I53) -> 1068.82 | J54: =SUM(J3:J53) -> 1 | K54: =I54/J54 -> 1068.82

Sheet PLZ-Zuordnung (hidden)
A1: PLZ | B1: Ort | C1: Bundesland | D1: NamePLZTyp | E1: intern_extern | F1: adressierbar | G1: Postfach
I2: Zuordnung der PLZ und des Ortes (Bundesland):
A3: 1004 | B3: Wien | C3: W | D3: InteressentenPLZ | E3: extern | F3: Nein | G3: Ja | I3: =Eingabe!H12 -> 4400 | J3: =VLOOKUP(I3,A3:C2460,3,TRUE) -> O
A4: 1010 | B4: Wien | C4: W | D4: PLZ-Adressierung | E4: extern | F4: Ja | G4: Ja | J4: =VLOOKUP(J3,I7:J15,2,TRUE) -> Oberösterreich
A5: 1011 | B5: Wien Postfach | C5: W | D5: PLZ-Postfach | E5: extern | F5: Nein | G5: Ja | J5: =VLOOKUP(I3,A3:C2460,2,FALSE) -> Steyr
A6: 1012 | B6: Wien | C6: W | D6: PLZ-Postfach | E6: extern | F6: Nein | G6: Ja
A7: 1013 | B7: Wien | C7: W | D7: PLZ-Postfach | E7: extern | F7: Nein | G7: Ja | I7: B | J7: Burgenland
A8: 1014 | B8: Wien | C8: W | D8: PLZ-Postfach | E8: extern | F8: Nein | G8: Ja | I8: K | J8: Kärnten
A9: 1015 | B9: Wien | C9: W | D9: PLZ-Postfach | E9: extern | F9: Nein | G9: Ja | I9: N | J9: Niederösterreich
A10: 1016 | B10: Wien | C10: W | D10: PLZ-Postfach | E10: extern | F10: Nein | G10: Ja | I10: O | J10: Oberösterreich
A11: 1017 | B11: Wien-Parlament | C11: W | D11: PLZ-Postfach | E11: extern | F11: Nein | G11: Ja | I11: Sa | J11: Salzburg
A12: 1018 | B12: Wien | C12: W | D12: PLZ-Postfach | E12: extern | F12: Nein | G12: Ja | I12: St | J12: Steiermark
A13: 1020 | B13: Wien | C13: W | D13: PLZ-Adressierung | E13: extern | F13: Ja | G13: Ja | I13: T | J13: Tirol
A14: 1021 | B14: Wien Postfach | C14: W | D14: PLZ-Postfach | E14: extern | F14: Nein | G14: Ja | I14: V | J14: Vorarlberg
A15: 1022 | B15: Wien | C15: W | D15: PLZ-Postfach | E15: extern | F15: Nein | G15: Ja | I15: W | J15: Wien
A16: 1023 | B16: Wien | C16: W | D16: PLZ-Postfach | E16: extern | F16: Nein | G16: Ja
A17: 1024 | B17: Wien | C17: W | D17: PLZ-Postfach | E17: extern | F17: Nein | G17: Ja
A18: 1025 | B18: Wien | C18: W | D18: PLZ-Postfach | E18: extern | F18: Nein | G18: Ja
A19: 1029 | B19: Wien | C19: W | D19: InteressentenPLZ | E19: extern | F19: Nein | G19: Ja
A20: 1030 | B20: Wien | C20: W | D20: PLZ-Adressierung | E20: extern | F20: Ja | G20: Ja
A21: 1031 | B21: Wien Postfach | C21: W | D21: PLZ-Postfach | E21: extern | F21: Nein | G21: Ja
A22: 1033 | B22: Wien | C22: W | D22: PLZ-Postfach | E22: extern | F22: Nein | G22: Ja
A23: 1034 | B23: Wien | C23: W | D23: PLZ-Postfach | E23: extern | F23: Nein | G23: Ja
A24: 1035 | B24: Wien | C24: W | D24: PLZ-Postfach | E24: extern | F24: Nein | G24: Ja
A25: 1036 | B25: Wien | C25: W | D25: PLZ-Postfach | E25: extern | F25: Nein | G25: Ja
A26: 1037 | B26: Wien | C26: W | D26: PLZ-Postfach | E26: extern | F26: Nein | G26: Ja
A27: 1038 | B27: Wien | C27: W | D27: InteressentenPLZ | E27: extern | F27: Nein | G27: Ja
A28: 1039 | B28: Wien | C28: W | D28: InteressentenPLZ | E28: extern | F28: Nein | G28: Ja
A29: 1040 | B29: Wien | C29: W | D29: PLZ-Adressierung | E29: extern | F29: Ja | G29: Ja
A30: 1041 | B30: Wien Postfach | C30: W | D30: PLZ-Postfach | E30: extern | F30: Nein | G30: Ja
A31: 1042 | B31: Wien | C31: W | D31: PLZ-Postfach | E31: extern | F31: Nein | G31: Ja
A32: 1043 | B32: Wien | C32: W | D32: PLZ-Postfach | E32: extern | F32: Nein | G32: Ja
A33: 1045 | B33: Wien | C33: W | D33: InteressentenPLZ | E33: extern | F33: Nein | G33: Ja
A34: 1050 | B34: Wien | C34: W | D34: PLZ-Adressierung | E34: extern | F34: Ja | G34: Ja
A35: 1051 | B35: Wien Postfach | C35: W | D35: PLZ-Postfach | E35: extern | F35: Nein | G35: Ja
A36: 1052 | B36: Wien | C36: W | D36: PLZ-Postfach | E36: extern | F36: Nein | G36: Ja
A37: 1053 | B37: Wien | C37: W | D37: PLZ-Postfach | E37: extern | F37: Nein | G37: Ja
A38: 1060 | B38: Wien | C38: W | D38: PLZ-Adressierung | E38: extern | F38: Ja | G38: Ja
A39: 1061 | B39: Wien Postfach | C39: W | D39: PLZ-Postfach | E39: extern | F39: Nein | G39: Ja
A40: 1062 | B40: Wien | C40: W | D40: PLZ-Postfach | E40: extern | F40: Nein | G40: Ja
A41: 1063 | B41: Wien-VÖPh | C41: W | D41: InteressentenPLZ | E41: extern | F41: Nein | G41: Ja
A42: 1070 | B42: Wien | C42: W | D42: PLZ-Adressierung | E42: extern | F42: Ja | G42: Ja
A43: 1071 | B43: Wien Postfach | C43: W | D43: PLZ-Postfach | E43: extern | F43: Nein | G43: Ja
A44: 1072 | B44: Wien | C44: W | D44: PLZ-Postfach | E44: extern | F44: Nein | G44: Ja
A45: 1080 | B45: Wien | C45: W | D45: PLZ-Adressierung | E45: extern | F45: Ja | G45: Ja
A46: 1081 | B46: Wien Postfach | C46: W | D46: PLZ-Postfach | E46: extern | F46: Nein | G46: Ja
A47: 1082 | B47: Wien | C47: W | D47: PLZ-Postfach | E47: extern | F47: Nein | G47: Ja
A48: 1090 | B48: Wien | C48: W | D48: PLZ-Adressierung | E48: extern | F48: Ja | G48: Ja
A49: 1091 | B49: Wien Postfach | C49: W | D49: PLZ-Postfach | E49: extern | F49: Nein | G49: Ja
A50: 1092 | B50: Wien | C50: W | D50: PLZ-Postfach | E50: extern | F50: Nein | G50: Ja
A51: 1093 | B51: Wien | C51: W | D51: PLZ-Postfach | E51: extern | F51: Nein | G51: Ja
A52: 1094 | B52: Wien | C52: W | D52: PLZ-Postfach | E52: extern | F52: Nein | G52: Ja
A53: 1095 | B53: Wien | C53: W | D53: PLZ-Postfach | E53: extern | F53: Nein | G53: Ja
A54: 1096 | B54: Wien | C54: W | D54: PLZ-Postfach | E54: extern | F54: Nein | G54: Ja
A55: 1097 | B55: Wien | C55: W | D55: PLZ-Postfach | E55: extern | F55: Nein | G55: Ja
A56: 1100 | B56: Wien | C56: W | D56: PLZ-Adressierung | E56: extern | F56: Ja | G56: Ja
A57: 1101 | B57: Wien Postfach | C57: W | D57: PLZ-Postfach | E57: extern | F57: Nein | G57: Ja
A58: 1102 | B58: Wien | C58: W | D58: PLZ-Postfach | E58: extern | F58: Nein | G58: Ja
A59: 1103 | B59: Wien | C59: W | D59: PLZ-Postfach | E59: extern | F59: Nein | G59: Ja
A60: 1104 | B60: Wien | C60: W | D60: PLZ-Postfach | E60: extern | F60: Nein | G60: Ja
A61: 1105 | B61: Wien | C61: W | D61: PLZ-Postfach | E61: extern | F61: Nein | G61: Ja
A62: 1106 | B62: Wien | C62: W | D62: PLZ-Postfach | E62: extern | F62: Nein | G62: Ja
A63: 1107 | B63: Wien | C63: W | D63: PLZ-Postfach | E63: extern | F63: Nein | G63: Ja
A64: 1108 | B64: Wien | C64: W | D64: PLZ-Postfach | E64: extern | F64: Nein | G64: Ja
A65: 1109 | B65: Wien | C65: W | D65: PLZ-Postfach | E65: extern | F65: Nein | G65: Ja
A66: 1110 | B66: Wien | C66: W | D66: PLZ-Adressierung | E66: extern | F66: Ja | G66: Ja
A67: 1111 | B67: Wien Postfach | C67: W | D67: PLZ-Postfach | E67: extern | F67: Nein | G67: Ja
A68: 1112 | B68: Wien | C68: W | D68: PLZ-Postfach | E68: extern | F68: Nein | G68: Ja
A69: 1113 | B69: Wien | C69: W | D69: PLZ-Postfach | E69: extern | F69: Nein | G69: Ja
A70: 1120 | B70: Wien | C70: W | D70: PLZ-Adressierung | E70: extern | F70: Ja | G70: Ja
A71: 1121 | B71: Wien Postfach | C71: W | D71: PLZ-Postfach | E71: extern | F71: Nein | G71: Ja
A72: 1122 | B72: Wien | C72: W | D72: PLZ-Postfach | E72: extern | F72: Nein | G72: Ja
A73: 1125 | B73: Wien | C73: W | D73: PLZ-Postfach | E73: extern | F73: Nein | G73: Ja
A74: 1126 | B74: Wien | C74: W | D74: PLZ-Postfach | E74: extern | F74: Nein | G74: Ja
A75: 1127 | B75: Wien | C75: W | D75: PLZ-Postfach | E75: extern | F75: Nein | G75: Ja
A76: 1130 | B76: Wien | C76: W | D76: PLZ-Adressierung | E76: extern | F76: Ja | G76: Ja
A77: 1131 | B77: Wien Postfach | C77: W | D77: PLZ-Postfach | E77: extern | F77: Nein | G77: Ja
A78: 1132 | B78: Wien | C78: W | D78: PLZ-Postfach | E78: extern | F78: Nein | G78: Ja
A79: 1133 | B79: Wien | C79: W | D79: PLZ-Postfach | E79: extern | F79: Nein | G79: Ja
A80: 1134 | B80: Wien | C80: W | D80: PLZ-Postfach | E80: extern | F80: Nein | G80: Ja
A81: 1136 | B81: Wien | C81: W | D81: InteressentenPLZ | E81: extern | F81: Nein | G81: Ja
A82: 1140 | B82: Wien | C82: W | D82: PLZ-Adressierung | E82: extern | F82: Ja | G82: Ja
A83: 1141 | B83: Wien Postfach | C83: W | D83: PLZ-Postfach | E83: extern | F83: Nein | G83: Ja
A84: 1142 | B84: Wien | C84: W | D84: PLZ-Postfach | E84: extern | F84: Nein | G84: Ja
A85: 1143 | B85: Wien | C85: W | D85: PLZ-Postfach | E85: extern | F85: Nein | G85: Ja
A86: 1144 | B86: Wien | C86: W | D86: PLZ-Postfach | E86: extern | F86: Nein | G86: Ja
A87: 1145 | B87: Wien | C87: W | D87: PLZ-Postfach | E87: extern | F87: Nein | G87: Ja
A88: 1147 | B88: Wien | C88: W | D88: PLZ-Postfach | E88: extern | F88: Nein | G88: Ja
A89: 1148 | B89: Wien | C89: W | D89: InteressentenPLZ | E89: extern | F89: Nein | G89: Ja
A90: 1150 | B90: Wien | C90: W | D90: PLZ-Adressierung | E90: extern | F90: Ja | G90: Ja
A91: 1151 | B91: Wien Postfach | C91: W | D91: PLZ-Postfach | E91: extern | F91: Nein | G91: Ja
A92: 1152 | B92: Wien | C92: W | D92: PLZ-Postfach | E92: extern | F92: Nein | G92: Ja
A93: 1153 | B93: Wien | C93: W | D93: PLZ-Postfach | E93: extern | F93: Nein | G93: Ja
A94: 1160 | B94: Wien | C94: W | D94: PLZ-Adressierung | E94: extern | F94: Ja | G94: Ja
A95: 1161 | B95: Wien Postfach | C95: W | D95: PLZ-Postfach | E95: extern | F95: Nein | G95: Ja
A96: 1163 | B96: Wien | C96: W | D96: PLZ-Postfach | E96: extern | F96: Nein | G96: Ja
A97: 1165 | B97: Wien | C97: W | D97: PLZ-Postfach | E97: extern | F97: Nein | G97: Ja
A98: 1166 | B98: Wien | C98: W | D98: PLZ-Postfach | E98: extern | F98: Nein | G98: Ja
A99: 1170 | B99: Wien | C99: W | D99: PLZ-Adressierung | E99: extern | F99: Ja | G99: Ja
A100: 1171 | B100: Wien Postfach | C100: W | D100: PLZ-Postfach | E100: extern | F100: Nein | G100: Ja
A101: 1172 | B101: Wien | C101: W | D101: PLZ-Postfach | E101: extern | F101: Nein | G101: Ja
A102: 1173 | B102: Wien | C102: W | D102: PLZ-Postfach | E102: extern | F102: Nein | G102: Ja
A103: 1180 | B103: Wien | C103: W | D103: PLZ-Adressierung | E103: extern | F103: Ja | G103: Ja
A104: 1181 | B104: Wien Postfach | C104: W | D104: PLZ-Postfach | E104: extern | F104: Nein | G104: Ja
A105: 1182 | B105: Wien | C105: W | D105: PLZ-Postfach | E105: extern | F105: Nein | G105: Ja
A106: 1183 | B106: Wien | C106: W | D106: PLZ-Postfach | E106: extern | F106: Nein | G106: Ja
A107: 1190 | B107: Wien | C107: W | D107: PLZ-Adressierung | E107: extern | F107: Ja | G107: Ja
A108: 1191 | B108: Wien Postfach | C108: W | D108: PLZ-Postfach | E108: extern | F108: Nein | G108: Ja
A109: 1192 | B109: Wien | C109: W | D109: PLZ-Postfach | E109: extern | F109: Nein | G109: Ja
A110: 1193 | B110: Wien | C110: W | D110: PLZ-Postfach | E110: extern | F110: Nein | G110: Ja
A111: 1194 | B111: Wien | C111: W | D111: PLZ-Postfach | E111: extern | F111: Nein | G111: Ja
A112: 1195 | B112: Wien | C112: W | D112: PLZ-Postfach | E112: extern | F112: Nein | G112: Ja
A113: 1196 | B113: Wien | C113: W | D113: PLZ-Postfach | E113: extern | F113: Nein | G113: Ja
A114: 1200 | B114: Wien | C114: W | D114: PLZ-Adressierung | E114: extern | F114: Ja | G114: Ja
A115: 1201 | B115: Wien Postfach | C115: W | D115: PLZ-Postfach | E115: extern | F115: Nein | G115: Ja
A116: 1202 | B116: Wien | C116: W | D116: PLZ-Postfach | E116: extern | F116: Nein | G116: Ja
A117: 1203 | B117: Wien | C117: W | D117: PLZ-Postfach | E117: extern | F117: Nein | G117: Ja
A118: 1204 | B118: Wien | C118: W | D118: PLZ-Postfach | E118: extern | F118: Nein | G118: Ja
A119: 1205 | B119: Wien | C119: W | D119: PLZ-Postfach | E119: extern | F119: Nein | G119: Ja
A120: 1206 | B120: Wien | C120: W | D120: PLZ-Postfach | E120: extern | F120: Nein | G120: Ja
A121: 1210 | B121: Wien | C121: W | D121: PLZ-Adressierung | E121: extern | F121: Ja | G121: Ja
A122: 1211 | B122: Wien Postfach | C122: W | D122: PLZ-Postfach | E122: extern | F122: Nein | G122: Ja
A123: 1212 | B123: Wien | C123: W | D123: PLZ-Postfach | E123: extern | F123: Nein | G123: Ja
A124: 1213 | B124: Wien | C124: W | D124: PLZ-Postfach | E124: extern | F124: Nein | G124: Ja
A125: 1214 | B125: Wien | C125: W | D125: PLZ-Postfach | E125: extern | F125: Nein | G125: Ja
A126: 1215 | B126: Wien | C126: W | D126: PLZ-Postfach | E126: extern | F126: Nein | G126: Ja
A127: 1216 | B127: Wien | C127: W | D127: PLZ-Postfach | E127: extern | F127: Nein | G127: Ja
A128: 1217 | B128: Wien | C128: W | D128: PLZ-Postfach | E128: extern | F128: Nein | G128: Ja
A129: 1218 | B129: Wien | C129: W | D129: PLZ-Postfach | E129: extern | F129: Nein | G129: Ja
A130: 1220 | B130: Wien | C130: W | D130: PLZ-Adressierung | E130: extern | F130: Ja | G130: Ja
A131: 1221 | B131: Wien Postfach | C131: W | D131: PLZ-Postfach | E131: extern | F131: Nein | G131: Ja
A132: 1222 | B132: Wien | C132: W | D132: PLZ-Postfach | E132: extern | F132: Nein | G132: Ja
A133: 1223 | B133: Wien | C133: W | D133: PLZ-Postfach | E133: extern | F133: Nein | G133: Ja
A134: 1224 | B134: Wien | C134: W | D134: PLZ-Postfach | E134: extern | F134: Nein | G134: Ja
A135: 1225 | B135: Wien | C135: W | D135: PLZ-Postfach | E135: extern | F135: Nein | G135: Ja
A136: 1226 | B136: Wien | C136: W | D136: PLZ-Postfach | E136: extern | F136: Nein | G136: Ja
A137: 1228 | B137: Wien | C137: W | D137: PLZ-Postfach | E137: extern | F137: Nein | G137: Ja
A138: 1229 | B138: Wien | C138: W | D138: PLZ-Postfach | E138: extern | F138: Nein | G138: Ja
A139: 1230 | B139: Wien | C139: W | D139: PLZ-Adressierung | E139: extern | F139: Ja | G139: Ja
A140: 1231 | B140: Wien Postfach | C140: W | D140: PLZ-Postfach | E140: extern | F140: Nein | G140: Ja
A141: 1232 | B141: Wien | C141: W | D141: PLZ-Postfach | E141: extern | F141: Nein | G141: Ja
A142: 1233 | B142: Wien | C142: W | D142: PLZ-Postfach | E142: extern | F142: Nein | G142: Ja
A143: 1234 | B143: Wien | C143: W | D143: PLZ-Postfach | E143: extern | F143: Nein | G143: Ja
A144: 1235 | B144: Wien | C144: W | D144: PLZ-Postfach | E144: extern | F144: Nein | G144: Ja
A145: 1236 | B145: Wien | C145: W | D145: PLZ-Postfach | E145: extern | F145: Nein | G145: Ja
A146: 1238 | B146: Wien | C146: W | D146: PLZ-Postfach | E146: extern | F146: Nein | G146: Ja
A147: 1239 | B147: Wien | C147: W | D147: PLZ-Postfach | E147: extern | F147: Nein | G147: Ja
A148: 1300 | B148: Wien-Flughafen | C148: W | D148: PLZ-Adressierung | E148: extern | F148: Ja | G148: Ja
A149: 1400 | B149: Wien-Vereinte Nationen | C149: W | D149: PLZ-Postfach | E149: extern | F149: Nein | G149: Ja
A150: 1402 | B150: Wien | C150: W | D150: PLZ-Postfach | E150: extern | F150: Nein | G150: Ja
A151: 1423 | B151: Wien | C151: W | D151: PLZ-Postfach | E151: extern | F151: Nein | G151: Ja
A152: 1500 | B152: UNDOF AUSBATT | C152: W | D152: FeldPLZ | E152: extern | F152: Nein | G152: Ja
A153: 1502 | B153: AUCON EUFOR | C153: W | D153: FeldPLZ | E153: extern | F153: Nein | G153: Ja
A154: 1503 | B154: AUCON KFOR | C154: W | D154: FeldPLZ | E154: extern | F154: Nein | G154: Ja
A155: 1600 | B155: Wien | C155: W | D155: InteressentenPLZ | E155: extern | F155: Nein | G155: Ja
A156: 2000 | B156: Stockerau | C156: N | D156: PLZ-Adressierung | E156: extern | F156: Ja | G156: Ja
A157: 2002 | B157: Großmugl | C157: N | D157: PLZ-Adressierung | E157: extern | F157: Ja | G157: Nein
A158: 2003 | B158: Leitzersdorf | C158: N | D158: PLZ-Adressierung | E158: extern | F158: Ja | G158: Nein
A159: 2004 | B159: Niederhollabrunn | C159: N | D159: PLZ-Adressierung | E159: extern | F159: Ja | G159: Nein
A160: 2011 | B160: Sierndorf | C160: N | D160: PLZ-Adressierung | E160: extern | F160: Ja | G160: Nein
A161: 2013 | B161: Göllersdorf | C161: N | D161: PLZ-Adressierung | E161: extern | F161: Ja | G161: Nein
A162: 2014 | B162: Breitenwaida | C162: N | D162: PLZ-Adressierung | E162: extern | F162: Ja | G162: Nein
A163: 2020 | B163: Hollabrunn | C163: N | D163: PLZ-Adressierung | E163: extern | F163: Ja | G163: Ja
A164: 2022 | B164: Immendorf | C164: N | D164: PLZ-Adressierung | E164: extern | F164: Ja | G164: Nein
A165: 2023 | B165: Nappersdorf | C165: N | D165: PLZ-Adressierung | E165: extern | F165: Ja | G165: Ja
A166: 2024 | B166: Mailberg | C166: N | D166: PLZ-Adressierung | E166: extern | F166: Ja | G166: Nein
A167: 2031 | B167: Eggendorf im Thale | C167: N | D167: PLZ-Adressierung | E167: extern | F167: Ja | G167: Nein
A168: 2032 | B168: Enzersdorf im Thale | C168: N | D168: PLZ-Adressierung | E168: extern | F168: Ja | G168: Nein
A169: 2033 | B169: Kammersdorf | C169: N | D169: PLZ-Adressierung | E169: extern | F169: Ja | G169: Nein
A170: 2034 | B170: Großharras | C170: N | D170: PLZ-Adressierung | E170: extern | F170: Ja | G170: Ja
A171: 2041 | B171: Wullersdorf | C171: N | D171: PLZ-Adressierung | E171: extern | F171: Ja | G171: Ja
A172: 2042 | B172: Guntersdorf | C172: N | D172: PLZ-Adressierung | E172: extern | F172: Ja | G172: Nein
A173: 2051 | B173: Zellerndorf | C173: N | D173: PLZ-Adressierung | E173: extern | F173: Ja | G173: Ja
A174: 2052 | B174: Pernersdorf-Pfaffendorf | C174: N | D174: PLZ-Adressierung | E174: extern | F174: Ja | G174: Nein
A175: 2053 | B175: Jetzelsdorf | C175: N | D175: PLZ-Adressierung | E175: extern | F175: Ja | G175: Nein
A176: 2054 | B176: Haugsdorf | C176: N | D176: PLZ-Adressierung | E176: extern | F176: Ja | G176: Ja
A177: 2061 | B177: Hadres | C177: N | D177: PLZ-Adressierung | E177: extern | F177: Ja | G177: Ja
A178: 2062 | B178: Seefeld-Großkadolz | C178: N | D178: PLZ-Adressierung | E178: extern | F178: Ja | G178: Nein
A179: 2063 | B179: Zwingendorf | C179: N | D179: PLZ-Adressierung | E179: extern | F179: Ja | G179: Nein
A180: 2064 | B180: Wulzeshofen | C180: N | D180: PLZ-Adressierung | E180: extern | F180: Ja | G180: Nein
A181: 2070 | B181: Retz | C181: N | D181: PLZ-Adressierung | E181: extern | F181: Ja | G181: Ja
A182: 2073 | B182: Schrattenthal | C182: N | D182: PLZ-Adressierung | E182: extern | F182: Ja | G182: Nein
A183: 2074 | B183: Unterretzbach | C183: N | D183: PLZ-Adressierung | E183: extern | F183: Ja | G183: Nein
A184: 2081 | B184: Niederfladnitz | C184: N | D184: PLZ-Adressierung | E184: extern | F184: Ja | G184: Nein
A185: 2082 | B185: Hardegg | C185: N | D185: PLZ-Adressierung | E185: extern | F185: Ja | G185: Nein
A186: 2083 | B186: Pleißing | C186: N | D186: PLZ-Adressierung | E186: extern | F186: Ja | G186: Nein
A187: 2084 | B187: Weitersfeld | C187: N | D187: PLZ-Adressierung | E187: extern | F187: Ja | G187: Ja
A188: 2091 | B188: Langau | C188: N | D188: PLZ-Adressierung | E188: extern | F188: Ja | G188: Nein
A189: 2092 | B189: Riegersburg | C189: N | D189: PLZ-Adressierung | E189: extern | F189: Ja | G189: Nein
A190: 2093 | B190: Geras | C190: N | D190: PLZ-Adressierung | E190: extern | F190: Ja | G190: Ja
A191: 2094 | B191: Zissersdorf | C191: N | D191: PLZ-Adressierung | E191: extern | F191: Ja | G191: Nein
A192: 2095 | B192: Drosendorf | C192: N | D192: PLZ-Adressierung | E192: extern | F192: Ja | G192: Nein
A193: 2100 | B193: Korneuburg | C193: N | D193: PLZ-Adressierung | E193: extern | F193: Ja | G193: Ja
A194: 2102 | B194: Bisamberg | C194: N | D194: PLZ-Adressierung | E194: extern | F194: Ja | G194: Ja
A195: 2103 | B195: Langenzersdorf | C195: N | D195: PLZ-Adressierung | E195: extern | F195: Ja | G195: Ja
A196: 2104 | B196: Spillern | C196: N | D196: PLZ-Adressierung | E196: extern | F196: Ja | G196: Ja
A197: 2105 | B197: Oberrohrbach | C197: N | D197: PLZ-Adressierung | E197: extern | F197: Ja | G197: Nein
A198: 2111 | B198: Rückersdorf-Harmannsdorf | C198: N | D198: PLZ-Adressierung | E198: extern | F198: Ja | G198: Nein
A199: 2112 | B199: Würnitz | C199: N | D199: PLZ-Adressierung | E199: extern | F199: Ja | G199: Nein
A200: 2113 | B200: Karnabrunn | C200: N | D200: PLZ-Adressierung | E200: extern | F200: Ja | G200: Nein
... 2260 more rows

Sheet Strompreis (hidden)
A1: Strompreisentwicklung am 17.03.09 | E1: http://www.e-control.at/portal/page/portal/ECONTROL_HOME/STROM/STROMPREISE/ENDVERBRAUCHERPREISE
Q3: Ökostrompreisentwicklung ( für Erzeuger) gemäß energie-Control vom 17.03.09
A35: Abgerufen am 17.03.09 von http://www.oekostrom.at/default.asp?id=60837&tt=OEKOAG_R8&hl=3
A36: Der oekostrom®-Preis beträgt brutto 21,5 ct/kWh mit Preisgarantie bis 31.12.2010 und ist österreichweit einheitlich.
A37: Für geschaltete Leistungen – Wärmepumpen, Warmwasserboiler, Nachtstrom – bieten wir unseren günstigen Tarif oekostrom®-click zu brutto 15,5, ct/kWh mit Preisgarantie bis 31.12.2010
B39: Jan. 02 | C39: 2002-02-01 | D39: Mar.02 | E39: 2002-04-01 | F39: May 02 | G39: 2002-06-01 | H39: 2002-07-01 | I39: 2002-08-01 | J39: 2002-09-01 | K39: Oct.02 | L39: 2002-11-01 | M39: Dec.02 | N39: Jan. 03 | O39: 2003-02-01 | P39: Mar.03 | Q39: 2003-04-01 | R39: May 03 | S39: 2003-06-01 | T39: 2003-07-01 | U39: 2003-08-01 | V39: 2003-09-01 | W39: Oct.03 | X39: 2003-11-01 | Y39: Dec.03 | Z39: Jan. 04 | AA39: 2004-02-01 | AB39: Mar.04 | AC39: 2004-04-01 | AD39: May 04 | AE39: 2004-06-01 | AF39: 2004-07-01 | AG39: 2004-08-01 | AH39: 2004-09-01 | AI39: Oct.04 | AJ39: 2004-11-01 | AK39: Dec. 04 | AL39: Jan. 05 | AM39: 2005-02-01 | AN39: Mar. 05 | AO39: 2005-04-01 | AP39: May 05 | AQ39: June 05 | AR39: July 05 | AS39: 2005-08-01 | AT39: 2005-09-01 | AU39: Oct. 05 | AV39: 2005-11-01 | AW39: Dec. 05 | AX39: Jan 06 | AY39: 2006-02-01 | AZ39: Mar. 06 | BA39: 2006-04-01 | BB39: May 06 | BC39: 2006-06-01 | BD39: 2006-07-01 | BE39: 2006-08-01 | BF39: 2006-09-01 | BG39: Oct. 06 | BH39: 2006-11-01 | BI39: Dec. 06 | BJ39: Jan. 07 | BK39: 2007-02-01 | BL39: Mar. 07 | BM39: 2007-04-01 | BN39: May 07 | BO39: June 07 | BP39: July 07 | BQ39: 2007-08-01 | BR39: 2007-09-01 | BS39: Oct. 07 | BT39: 2007-11-01 | BU39: 2007-12-01 | BV39: Jan. 08 | BW39: 2008-02-01 | BX39: March 08 | BY39: 2008-04-01 | BZ39: 2008-05-01 | CA39: 2008-06-01 | CB39: 2008-07-01 | CC39: 2008-08-01 | CD39: 2008-09-01 | CE39: 2008-10-01 | CF39: 2008-11-01 | CG39: 2008-12-01 | CH39: Jan. 09 | CI39: 2009-02-01
B40: 2002-01-01 | C40: 2002-02-01 | D40: 2002-03-01 | E40: 2002-04-01 | F40: 2002-05-01 | G40: 2002-06-01 | H40: 2002-07-01 | I40: 2002-08-01 | J40: 2002-09-01 | K40: 2002-10-01 | L40: 2002-11-01 | M40: 2002-12-01 | N40: 2003-01-01 | O40: 2003-02-01 | P40: 2003-03-01 | Q40: 2003-04-01 | R40: 2003-05-01 | S40: 2003-06-01 | T40: 2003-07-01 | U40: 2003-08-01 | V40: 2003-09-01 | W40: 2003-10-01 | X40: 2003-11-01 | Y40: 2003-12-01 | Z40: 2004-01-01 | AA40: 2004-02-01 | AB40: 2004-03-01 | AC40: 2004-04-01 | AD40: 2004-05-01 | AE40: 2004-06-01 | AF40: 2004-07-01 | AG40: 2004-08-01 | AH40: 2004-09-01 | AI40: 2004-10-01 | AJ40: 2004-11-01 | AK40: 2004-12-01 | AL40: 2005-01-01 | AM40: 2005-02-01 | AN40: 2005-03-01 | AO40: 2005-04-01 | AP40: 2005-05-01 | AQ40: 2005-06-01 | AR40: 2005-07-01 | AS40: 2005-08-01 | AT40: 2005-09-01 | AU40: 2005-10-01 | AV40: 2005-11-01 | AW40: 2005-12-01 | AX40: 2006-01-01 | AY40: 2006-02-01 | AZ40: 2006-03-01 | BA40: 2006-04-01 | BB40: 2006-05-01 | BC40: 2006-06-01 | BD40: 2006-07-01 | BE40: 2006-08-01 | BF40: 2006-09-01 | BG40: 2006-10-01 | BH40: 2006-11-01 | BI40: 2006-12-01 | BJ40: Jan 07 | BK40: 2007-02-01 | BL40: 2007-03-01 | BM40: 2007-04-01 | BN40: 2007-05-01 | BO40: 2007-06-01 | BP40: 2007-07-01 | BQ40: 2007-08-01 | BR40: 2007-09-01 | BS40: Oct. 07 | BT40: 2007-11-01 | BU40: 2007-12-01 | BV40: Jan. 08 | BW40: 2008-02-01 | BX40: 2008-03-01 | BY40: 2008-04-01 | BZ40: 2008-05-01 | CA40: 2008-06-01 | CB40: 2008-07-01 | CC40: 2008-08-01 | CD40: 2008-09-01 | CE40: 2008-10-01 | CF40: 2008-11-01 | CG40: Dec. 08 | CH40: Jan. 09 | CI40: 2009-02-01
A41: Stromnetz Steiermark GmbH | B41: 16.24171429 | C41: 16.24171429 | D41: 16.24171429 | E41: 16.24217143 | F41: 16.24217143 | G41: 16.24182857 | H41: 16.24182857 | I41: 16.24182857 | J41: 16.24182857 | K41: 16.41325714 | L41: 16.41325714 | M41: 16.41325714 | N41: 16.57097143 | O41: 16.51508571 | P41: 16.51508571 | Q41: 16.51508571 | R41: 16.39165714 | S41: 16.39165714 | T41: 16.39165714 | U41: 16.39165714 | V41: 16.39165714 | W41: 16.39165714 | X41: 16.39165714 | Y41: 16.39165714 | Z41: 16.38582857 | AA41: 16.38582857 | AB41: 16.38582857 | AC41: 16.50548571 | AD41: 16.50548571 | AE41: 16.50548571 | AF41: 16.50548571 | AG41: 16.50548571 | AH41: 16.50582857 | AI41: 16.50582857 | AJ41: 16.50582857 | AK41: 16.50582857 | AL41: 16.50582857 | AM41: 16.50582857 | AN41: 16.52125714 | AO41: 16.52125714 | AP41: 16.52125714 | AQ41: 15.25085714 | AR41: 15.62742857 | AS41: 15.62742857 | AT41: 15.62742857 | AU41: 15.62742857 | AV41: 15.62742857 | AW41: 15.62742857 | AX41: 15.29342857 | AY41: 15.80777143 | AZ41: 15.80777143 | BA41: 15.80777143 | BB41: 15.80777143 | BC41: 15.80777143 | BD41: 15.78342857 | BE41: 15.78342857 | BF41: 15.78342857 | BG41: 15.78342857 | BH41: 15.78342857 | BI41: 15.78342857 | BJ41: 16.996 | BK41: 16.996 | BL41: 16.996 | BM41: 16.996 | BN41: 16.996 | BO41: 16.996 | BP41: 17 | BQ41: 17 | BR41: 17 | BS41: 17 | BT41: 17 | BU41: 16.55 | BV41: 16.94 | BW41: 16.94 | BX41: 16.94 | BY41: 16.94 | BZ41: 16.94 | CA41: 17.66 | CB41: 17.66 | CC41: 17.66 | CD41: 17.66 | CE41: 17.66 | CF41: 17.56 | CG41: 17.56 | CH41: 17.15 | CI41: 16.42
A42: Energie AG | B42: 16.27714286 | C42: 16.27714286 | D42: 16.38114286 | E42: 16.38102857 | F42: 15.7128 | G42: 15.7128 | H42: 15.7128 | I42: 15.7128 | J42: 15.7128 | K42: 15.7128 | L42: 15.7128 | M42: 15.7128 | N42: 16.08754286 | O42: 16.0296 | P42: 16.0296 | Q42: 16.0296 | R42: 16.0296 | S42: 16.0296 | T42: 16.0296 | U42: 16.0296 | V42: 16.0296 | W42: 16.0296 | X42: 15.52628571 | Y42: 15.52628571 | Z42: 15.852 | AA42: 15.852 | AB42: 15.852 | AC42: 15.97165714 | AD42: 15.97165714 | AE42: 15.97165714 | AF42: 15.97165714 | AG42: 15.97165714 | AH42: 15.972 | AI42: 15.972 | AJ42: 15.972 | AK42: 15.972 | AL42: 15.972 | AM42: 15.972 | AN42: 15.98742857 | AO42: 15.98742857 | AP42: 15.98742857 | AQ42: 15.03942857 | AR42: 15.41588571 | AS42: 15.41588571 | AT42: 15.41588571 | AU42: 15.41588571 | AV42: 15.41588571 | AW42: 15.41588571 | AX42: 15.22571429 | AY42: 15.73988571 | AZ42: 15.73988571 | BA42: 15.73988571 | BB42: 15.73988571 | BC42: 15.73988571 | BD42: 15.696 | BE42: 15.696 | BF42: 15.696 | BG42: 15.696 | BH42: 15.696 | BI42: 15.696 | BJ42: 16.68542857 | BK42: 16.68542857 | BL42: 16.68542857 | BM42: 16.68542857 | BN42: 16.68542857 | BO42: 16.68542857 | BP42: 16.69 | BQ42: 16.69 | BR42: 16.69 | BS42: 16.69 | BT42: 16.69 | BU42: 16.24 | BV42: 16.61 | BW42: 16.61 | BX42: 16.61 | BY42: 16.61 | BZ42: 16.61 | CA42: 17.33 | CB42: 17.33 | CC42: 17.33 | CD42: 17.33 | CE42: 17.33 | CF42: 17.23 | CG42: 17.23 | CH42: 17.15 | CI42: 16.45
A43: Salzburg AG | B43: 15.75171429 | C43: 15.75171429 | D43: 15.74114286 | E43: 15.74125714 | F43: 15.74125714 | G43: 15.52148571 | H43: 15.52148571 | I43: 15.52148571 | J43: 15.41828571 | K43: 15.41828571 | L43: 15.41828571 | M43: 15.41828571 | N43: 15.28525714 | O43: 15.28525714 | P43: 15.56742857 | Q43: 15.79337143 | R43: 15.79337143 | S43: 15.79337143 | T43: 15.79337143 | U43: 15.79337143 | V43: 15.79337143 | W43: 15.79337143 | X43: 15.35417143 | Y43: 15.35417143 | Z43: 15.67988571 | AA43: 15.67988571 | AB43: 15.67988571 | AC43: 15.79954286 | AD43: 15.79954286 | AE43: 15.79954286 | AF43: 15.79954286 | AG43: 15.79954286 | AH43: 15.79988571 | AI43: 15.79988571 | AJ43: 15.79988571 | AK43: 15.79988571 | AL43: 15.79988571 | AM43: 15.07817143 | AN43: 15.07817143 | AO43: 15.07817143 | AP43: 15.07817143 | AQ43: 15.07817143 | AR43: 15.45462857 | AS43: 15.45462857 | AT43: 15.45462857 | AU43: 15.45462857 | AV43: 15.45462857 | AW43: 15.45462857 | AX43: 15.09714286 | AY43: 15.61131429 | AZ43: 15.61131429 | BA43: 15.61131429 | BB43: 15.61131429 | BC43: 15.61131429 | BD43: 15.55371429 | BE43: 15.55371429 | BF43: 15.55371429 | BG43: 15.55371429 | BH43: 15.55371429 | BI43: 15.55371429 | BJ43: 16.48342857 | BK43: 16.48342857 | BL43: 16.48342857 | BM43: 16.48342857 | BN43: 16.48342857 | BO43: 16.48342857 | BP43: 16.48 | BQ43: 16.48 | BR43: 16.48 | BS43: 16.48 | BT43: 16.48 | BU43: 16.04 | BV43: 16.41 | BW43: 16.41 | BX43: 16.41 | BY43: 16.41 | BZ43: 16.41 | CA43: 17.13 | CB43: 17.13 | CC43: 17.13 | CD43: 17.13 | CE43: 17.13 | CF43: 17.03 | CG43: 17.03 | CH43: 16.91 | CI43: 16.16
A44: KELAG Netz | B44: 14.73685714 | C44: 14.73685714 | D44: 14.73685714 | E44: 14.73668571 | F44: 14.73668571 | G44: 14.73668571 | H44: 14.73668571 | I44: 14.73668571 | J44: 14.73668571 | K44: 14.73668571 | L44: 14.73668571 | M44: 14.73668571 | N44: 15.40217143 | O44: 15.34422857 | P44: 15.34422857 | Q44: 15.34422857 | R44: 15.34422857 | S44: 15.34422857 | T44: 15.34422857 | U44: 15.34422857 | V44: 15.34422857 | W44: 15.34422857 | X44: 15.34937143 | Y44: 15.34937143 | Z44: 15.91954286 | AA44: 15.91954286 | AB44: 15.91954286 | AC44: 16.0392 | AD44: 16.0392 | AE44: 16.0392 | AF44: 16.0392 | AG44: 16.03028571 | AH44: 16.03062857 | AI44: 15.48994286 | AJ44: 15.72788571 | AK44: 15.72788571 | AL44: 15.72788571 | AM44: 15.5214 | AN44: 15.21531429 | AO44: 15.25611429 | AP44: 15.25611429 | AQ44: 15.25611429 | AR44: 15.12514286 | AS44: 15.12514286 | AT44: 15.12514286 | AU44: 15.12514286 | AV44: 15.12514286 | AW44: 15.12514286 | AX44: 15.00342857 | AY44: 15.51771429 | AZ44: 15.51771429 | BA44: 15.51771429 | BB44: 15.51771429 | BC44: 15.51771429 | BD44: 15.47691429 | BE44: 15.47691429 | BF44: 15.47691429 | BG44: 15.47691429 | BH44: 15.47691429 | BI44: 15.47691429 | BJ44: 16.72285714 | BK44: 16.72285714 | BL44: 16.72285714 | BM44: 16.72285714 | BN44: 16.72285714 | BO44: 16.72285714 | BP44: 16.72 | BQ44: 16.72 | BR44: 16.72 | BS44: 16.72 | BT44: 16.72 | BU44: 16.28 | BV44: 16.74 | BW44: 16.74 | BX44: 16.74 | BY44: 16.74 | BZ44: 16.74 | CA44: 17.46 | CB44: 17.46 | CC44: 17.46 | CD44: 17.46 | CE44: 17.46 | CF44: 17.35 | CG44: 17.35 | CH44: 17.46 | CI44: 16.7
A45: BEWAG | B45: 17.00228571 | C45: 17.00228571 | D45: 17.00228571 | E45: 15.98811429 | F45: 15.98811429 | G45: 15.98811429 | H45: 15.98811429 | I45: 16.33371429 | J45: 16.33371429 | K45: 16.33371429 | L45: 16.33371429 | M45: 16.33371429 | N45: 16.57645714 | O45: 16.51851429 | P45: 16.51851429 | Q45: 16.51851429 | R45: 16.51851429 | S45: 16.51851429 | T45: 16.51851429 | U45: 16.51851429 | V45: 16.51851429 | W45: 16.51851429 | X45: 15.91988571 | Y45: 15.91988571 | Z45: 16.43485714 | AA45: 16.43485714 | AB45: 16.43485714 | AC45: 16.55451429 | AD45: 16.55451429 | AE45: 16.55451429 | AF45: 16.55451429 | AG45: 16.55451429 | AH45: 16.55485714 | AI45: 16.55485714 | AJ45: 16.55485714 | AK45: 16.55485714 | AL45: 16.55485714 | AM45: 14.69245714 | AN45: 14.69245714 | AO45: 14.69245714 | AP45: 14.69245714 | AQ45: 14.69245714 | AR45: 15.06891429 | AS45: 15.06891429 | AT45: 15.06891429 | AU45: 15.06891429 | AV45: 15.06891429 | AW45: 15.06891429 | AX45: 14.732 | AY45: 15.24651429 | AZ45: 15.24651429 | BA45: 15.24651429 | BB45: 15.24651429 | BC45: 15.24651429 | BD45: 15.13577143 | BE45: 15.13577143 | BF45: 15.13577143 | BG45: 15.13577143 | BH45: 15.13577143 | BI45: 15.13577143 | BJ45: 16.19257143 | BK45: 16.19257143 | BL45: 16.19257143 | BM45: 16.19257143 | BN45: 16.19257143 | BO45: 16.19257143 | BP45: 16.19 | BQ45: 16.19 | BR45: 16.19 | BS45: 16.19 | BT45: 16.19 | BU45: 15.75 | BV45: 16.14 | BW45: 16.14 | BX45: 16.14 | BY45: 16.14 | BZ45: 16.14 | CA45: 16.86 | CB45: 16.86 | CC45: 16.86 | CD45: 16.86 | CE45: 16.86 | CF45: 16.86 | CG45: 16.94 | CH45: 16.85 | CI45: 16.85
A46: Linz Strom | B46: 15.44 | C46: 15.54371429 | D46: 15.54371429 | E46: 15.54377143 | F46: 14.70514286 | G46: 14.70514286 | H46: 14.70514286 | I46: 14.70514286 | J46: 14.70514286 | K46: 14.70514286 | L46: 14.70514286 | M46: 14.70514286 | N46: 15.07988571 | O46: 15.02194286 | P46: 15.02194286 | Q46: 15.02194286 | R46: 15.02194286 | S46: 15.02194286 | T46: 15.02194286 | U46: 15.02194286 | V46: 15.02194286 | W46: 15.02194286 | X46: 14.77131429 | Y46: 14.77131429 | Z46: 15.17931429 | AA46: 15.17931429 | AB46: 15.17931429 | AC46: 15.29897143 | AD46: 15.29897143 | AE46: 15.29897143 | AF46: 15.29897143 | AG46: 15.29897143 | AH46: 15.29931429 | AI46: 15.29931429 | AJ46: 15.29931429 | AK46: 15.29931429 | AL46: 15.29931429 | AM46: 15.29931429 | AN46: 15.31474286 | AO46: 15.31474286 | AP46: 15.31474286 | AQ46: 14.37657143 | AR46: 14.75314286 | AS46: 14.75314286 | AT46: 14.75314286 | AU46: 14.75314286 | AV46: 14.75314286 | AW46: 14.75314286 | AX46: 14.408 | AY46: 15.01611429 | AZ46: 15.01611429 | BA46: 15.01611429 | BB46: 15.01611429 | BC46: 15.01611429 | BD46: 14.99657143 | BE46: 14.99657143 | BF46: 14.99657143 | BG46: 14.99657143 | BH46: 14.99657143 | BI46: 14.99657143 | BJ46: 16.126 | BK46: 16.126 | BL46: 16.126 | BM46: 16.126 | BN46: 16.126 | BO46: 16.126 | BP46: 16.13 | BQ46: 16.13 | BR46: 16.13 | BS46: 16.13 | BT46: 16.13 | BU46: 15.68 | BV46: 15.92 | BW46: 15.92 | BX46: 15.92 | BY46: 15.92 | BZ46: 15.92 | CA46: 16.64 | CB46: 16.64 | CC46: 16.64 | CD46: 16.64 | CE46: 16.64 | CF46: 16.54 | CG46: 16.54 | CH46: 16.29 | CI46: 15.51
A47: VKW | B47: 12.88142857 | C47: 12.88142857 | D47: 12.88171429 | E47: 12.88182857 | F47: 12.88182857 | G47: 12.88182857 | H47: 12.768 | I47: 12.768 | J47: 12.80434286 | K47: 12.80434286 | L47: 12.80434286 | M47: 12.80434286 | N47: 13.21405714 | O47: 13.10468571 | P47: 13.10468571 | Q47: 13.10468571 | R47: 13.10468571 | S47: 13.10468571 | T47: 13.10468571 | U47: 13.10468571 | V47: 13.10468571 | W47: 13.10468571 | X47: 13.12011429 | Y47: 13.12011429 | Z47: 13.74 | AA47: 13.74 | AB47: 13.74 | AC47: 13.85965714 | AD47: 13.85965714 | AE47: 13.85965714 | AF47: 13.85965714 | AG47: 13.85965714 | AH47: 13.86 | AI47: 13.86 | AJ47: 13.86 | AK47: 13.86 | AL47: 13.86 | AM47: 13.86 | AN47: 13.87542857 | AO47: 13.3944 | AP47: 13.3944 | AQ47: 13.3944 | AR47: 13.46982857 | AS47: 13.46982857 | AT47: 13.46982857 | AU47: 13.46982857 | AV47: 13.46982857 | AW47: 13.46982857 | AX47: 14.196 | AY47: 14.71028571 | AZ47: 14.71028571 | BA47: 14.71028571 | BB47: 14.71028571 | BC47: 14.71028571 | BD47: 14.68422857 | BE47: 14.68422857 | BF47: 14.68422857 | BG47: 14.68422857 | BH47: 14.68422857 | BI47: 14.68422857 | BJ47: 16.03371429 | BK47: 16.03371429 | BL47: 16.03371429 | BM47: 16.03371429 | BN47: 16.03371429 | BO47: 16.03371429 | BP47: 16.03 | BQ47: 16.03 | BR47: 16.03 | BS47: 16.03 | BT47: 16.03 | BU47: 15.59 | BV47: 16.02 | BW47: 16.02 | BX47: 16.02 | BY47: 16.02 | BZ47: 16.02 | CA47: 16.74 | CB47: 16.74 | CC47: 16.74 | CD47: 16.74 | CE47: 16.74 | CF47: 16.64 | CG47: 16.64 | CH47: 16.71 | CI47: 15.92
A48: EVN | B48: 14.32542857 | C48: 14.32542857 | D48: 14.32571429 | E48: 14.3256 | F48: 14.3256 | G48: 13.98582857 | H48: 13.98582857 | I48: 13.98582857 | J48: 14.06982857 | K48: 14.06982857 | L48: 14.06982857 | M48: 14.06982857 | N48: 14.51657143 | O48: 14.45862857 | P48: 14.45862857 | Q48: 14.45862857 | R48: 14.45862857 | S48: 14.45862857 | T48: 14.45862857 | U48: 14.45862857 | V48: 14.45862857 | W48: 14.45862857 | X48: 14.04205714 | Y48: 14.04205714 | Z48: 14.36777143 | AA48: 14.36777143 | AB48: 14.36777143 | AC48: 14.48742857 | AD48: 14.48742857 | AE48: 14.48742857 | AF48: 14.48742857 | AG48: 14.48742857 | AH48: 14.48777143 | AI48: 14.48777143 | AJ48: 14.48777143 | AK48: 14.48777143 | AL48: 14.48777143 | AM48: 14.48777143 | AN48: 14.5032 | AO48: 13.94777143 | AP48: 13.94777143 | AQ48: 13.94777143 | AR48: 14.32422857 | AS48: 14.32422857 | AT48: 14.32422857 | AU48: 14.32422857 | AV48: 14.32422857 | AW48: 14.32422857 | AX48: 14.15485714 | AY48: 14.79051429 | AZ48: 14.79051429 | BA48: 14.79051429 | BB48: 14.79051429 | BC48: 14.79051429 | BD48: 14.73942857 | BE48: 14.73942857 | BF48: 14.73942857 | BG48: 14.73942857 | BH48: 14.73942857 | BI48: 14.73942857 | BJ48: 15.85914286 | BK48: 15.85914286 | BL48: 15.85914286 | BM48: 15.85914286 | BN48: 15.85914286 | BO48: 15.85914286 | BP48: 15.86 | BQ48: 15.86 | BR48: 15.86 | BS48: 15.86 | BT48: 15.86 | BU48: 15.41 | BV48: 15.8 | BW48: 15.8 | BX48: 15.8 | BY48: 15.8 | BZ48: 15.8 | CA48: 16.52 | CB48: 16.52 | CC48: 16.52 | CD48: 16.52 | CE48: 16.52 | CF48: 16.6 | CG48: 16.69 | CH48: 16.75 | CI48: 16.75
A49: Wien Energie Stromnetz GmbH | B49: 14.75657143 | C49: 14.75657143 | D49: 14.75657143 | E49: 14.09108571 | F49: 14.09108571 | G49: 14.09108571 | H49: 14.09108571 | I49: 14.09108571 | J49: 14.09074286 | K49: 14.09074286 | L49: 14.09074286 | M49: 14.09074286 | N49: 13.76365714 | O49: 13.70571429 | P49: 13.70571429 | Q49: 13.70571429 | R49: 13.70571429 | S49: 13.70571429 | T49: 13.70571429 | U49: 13.70571429 | V49: 13.70571429 | W49: 13.70571429 | X49: 13.3776 | Y49: 13.3776 | Z49: 13.70331429 | AA49: 13.70331429 | AB49: 13.70331429 | AC49: 13.82297143 | AD49: 13.82297143 | AE49: 13.82297143 | AF49: 13.82297143 | AG49: 13.82297143 | AH49: 13.82331429 | AI49: 13.82331429 | AJ49: 13.82331429 | AK49: 13.82331429 | AL49: 13.82331429 | AM49: 13.82331429 | AN49: 13.83874286 | AO49: 13.33748571 | AP49: 13.33748571 | AQ49: 13.33748571 | AR49: 13.71394286 | AS49: 13.71394286 | AT49: 13.71394286 | AU49: 13.71394286 | AV49: 13.71394286 | AW49: 13.71394286 | AX49: 13.67571429 | AY49: 14.18982857 | AZ49: 14.18982857 | BA49: 14.18982857 | BB49: 14.18982857 | BC49: 14.18982857 | BD49: 14.12777143 | BE49: 14.12777143 | BF49: 14.12777143 | BG49: 14.12777143 | BH49: 14.12777143 | BI49: 14.12777143 | BJ49: 15.32114286 | BK49: 15.32114286 | BL49: 15.32114286 | BM49: 15.32114286 | BN49: 15.32114286 | BO49: 15.32114286 | BP49: 15.32 | BQ49: 15.32 | BR49: 15.32 | BS49: 15.32 | BT49: 15.32 | BU49: 14.89 | BV49: 15.5 | BW49: 15.5 | BX49: 15.5 | BY49: 15.5 | BZ49: 15.5 | CA49: 16.22 | CB49: 16.22 | CC49: 16.22 | CD49: 16.22 | CE49: 16.22 | CF49: 16.3 | CG49: 16.3 | CH49: 16.4 | CI49: 16.58
A50: Stromnetz Graz GmbH & Co KG | B50: 14.26485714 | C50: 14.26485714 | D50: 14.26485714 | E50: 14.26525714 | F50: 14.26525714 | G50: 14.26525714 | H50: 14.26525714 | I50: 14.26525714 | J50: 14.26525714 | K50: 14.43668571 | L50: 14.43668571 | M50: 14.43668571 | N50: 14.59645714 | O50: 14.53851429 | P50: 14.53851429 | Q50: 14.53851429 | R50: 14.53851429 | S50: 14.53851429 | T50: 14.53851429 | U50: 14.53851429 | V50: 14.53851429 | W50: 14.53851429 | X50: 14.53851429 | Y50: 14.53851429 | Z50: 14.11371429 | AA50: 14.11371429 | AB50: 14.11371429 | AC50: 14.23337143 | AD50: 14.23337143 | AE50: 14.23337143 | AF50: 14.23337143 | AG50: 14.23337143 | AH50: 14.23371429 | AI50: 14.23371429 | AJ50: 14.23371429 | AK50: 14.23371429 | AL50: 14.23371429 | AM50: 14.23371429 | AN50: 14.24914286 | AO50: 14.24914286 | AP50: 14.24914286 | AQ50: 13.37628571 | AR50: 13.75268571 | AS50: 13.75268571 | AT50: 13.75268571 | AU50: 13.75268571 | AV50: 13.75268571 | AW50: 13.75268571 | AX50: 13.48342857 | AY50: 13.99782857 | AZ50: 13.99782857 | BA50: 13.99782857 | BB50: 13.99782857 | BC50: 13.99782857 | BD50: 13.96182857 | BE50: 13.96182857 | BF50: 13.96182857 | BG50: 13.96182857 | BH50: 13.96182857 | BI50: 13.96182857 | BJ50: 15.06142857 | BK50: 15.06142857 | BL50: 15.06142857 | BM50: 15.06142857 | BN50: 15.06142857 | BO50: 15.06142857 | BP50: 15.06 | BQ50: 15.06 | BR50: 15.06 | BS50: 15.06 | BT50: 15.06 | BU50: 14.62 | BV50: 14.93 | BW50: 14.93 | BX50: 14.93 | BY50: 14.93 | BZ50: 14.93 | CA50: 15.65 | CB50: 15.65 | CC50: 15.65 | CD50: 15.65 | CE50: 15.65 | CF50: 15.55 | CG50: 15.55 | CH50: 15.49 | CI50: 14.83
A51: Tiwag | B51: 12.68371429 | C51: 12.68371429 | D51: 12.68371429 | E51: 12.68365714 | F51: 12.68365714 | G51: 12.68365714 | H51: 12.68365714 | I51: 12.68365714 | J51: 12.68365714 | K51: 12.57737143 | L51: 12.57737143 | M51: 12.57737143 | N51: 13.13211429 | O51: 13.07417143 | P51: 13.07417143 | Q51: 13.07417143 | R51: 13.07417143 | S51: 13.07417143 | T51: 13.07417143 | U51: 13.07417143 | V51: 13.07417143 | W51: 13.07417143 | X51: 12.45771429 | Y51: 12.45771429 | Z51: 13.77085714 | AA51: 13.77085714 | AB51: 13.77085714 | AC51: 13.89051429 | AD51: 13.89051429 | AE51: 13.89051429 | AF51: 13.89051429 | AG51: 13.89051429 | AH51: 13.89085714 | AI51: 13.89085714 | AJ51: 13.89085714 | AK51: 13.82365714 | AL51: 13.82365714 | AM51: 13.82365714 | AN51: 13.90628571 | AO51: 13.52194286 | AP51: 13.52194286 | AQ51: 13.52194286 | AR51: 13.8984 | AS51: 13.8984 | AT51: 13.8984 | AU51: 13.8984 | AV51: 13.8984 | AW51: 13.8984 | AX51: 13.46742857 | AY51: 13.98171429 | AZ51: 13.98171429 | BA51: 13.98171429 | BB51: 13.98171429 | BC51: 13.98171429 | BD51: 13.49794286 | BE51: 13.49794286 | BF51: 13.49794286 | BG51: 13.49794286 | BH51: 13.49794286 | BI51: 13.49794286 | BJ51: 15.276 | BK51: 15.276 | BL51: 15.276 | BM51: 15.276 | BN51: 15.276 | BO51: 15.276 | BP51: 15.28 | BQ51: 15.28 | BR51: 15.28 | BS51: 15.28 | BT51: 15.28 | BU51: 14.83 | BV51: 15.28 | BW51: 15.28 | BX51: 15.28 | BY51: 15.28 | BZ51: 15.28 | CA51: 15.8 | CB51: 15.8 | CC51: 15.8 | CD51: 15.8 | CE51: 15.8 | CF51: 15.8 | CG51: 15.8 | CH51: 15.9 | CI51: 15.2
A52: IKB | B52: 12.69228571 | C52: 12.69228571 | D52: 12.69228571 | E52: 12.69222857 | F52: 12.69222857 | G52: 12.69222857 | H52: 12.69222857 | I52: 12.69222857 | J52: 12.69222857 | K52: 12.40457143 | L52: 12.40457143 | M52: 12.40457143 | N52: 12.91817143 | O52: 13.05291429 | P52: 13.05291429 | Q52: 13.05291429 | R52: 13.05291429 | S52: 13.05291429 | T52: 13.05291429 | U52: 13.05291429 | V52: 13.05291429 | W52: 13.05291429 | X52: 12.79302857 | Y52: 12.79302857 | Z52: 13.11874286 | AA52: 13.11908571 | AB52: 13.11908571 | AC52: 13.23874286 | AD52: 13.23874286 | AE52: 13.23874286 | AF52: 13.23874286 | AG52: 13.23874286 | AH52: 13.23908571 | AI52: 13.17188571 | AJ52: 13.17188571 | AK52: 13.17188571 | AL52: 13.17188571 | AM52: 13.17188571 | AN52: 13.25451429 | AO52: 12.89245714 | AP52: 12.89245714 | AQ52: 12.89245714 | AR52: 13.51508571 | AS52: 13.51508571 | AT52: 13.51508571 | AU52: 13.51508571 | AV52: 13.51508571 | AW52: 13.51508571 | AX52: 13.324 | AY52: 13.50891429 | AZ52: 13.50891429 | BA52: 13.50891429 | BB52: 13.50891429 | BC52: 13.50891429 | BD52: 13.96251429 | BE52: 13.96251429 | BF52: 13.96251429 | BG52: 13.96251429 | BH52: 13.96251429 | BI52: 13.96251429 | BJ52: 14.77 | BK52: 14.77 | BL52: 14.77 | BM52: 14.77 | BN52: 14.77 | BO52: 14.77 | BP52: 14.77 | BQ52: 14.77 | BR52: 14.77 | BS52: 14.77 | BT52: 14.77 | BU52: 14.33 | BV52: 14.69 | BW52: 14.69 | BX52: 14.69 | BY52: 14.69 | BZ52: 14.69 | CA52: 15.41 | CB52: 15.41 | CC52: 15.41 | CD52: 15.41 | CE52: 15.41 | CF52: 15.49 | CG52: 15.49 | CH52: 15.53 | CI52: 16.05
A53: Energie Klagenfurt GmbH | B53: 12.48342857 | C53: 12.48342857 | D53: 12.48342857 | E53: 12.48342857 | F53: 12.48342857 | G53: 12.48342857 | H53: 12.48342857 | I53: 12.48342857 | J53: 12.48342857 | K53: 12.53451429 | L53: 12.53451429 | M53: 12.53451429 | N53: 13.03851429 | O53: 12.98057143 | P53: 12.98057143 | Q53: 12.98057143 | R53: 12.98057143 | S53: 12.98057143 | T53: 12.98057143 | U53: 12.98057143 | V53: 12.98057143 | W53: 12.98057143 | X53: 12.61542857 | Y53: 12.61542857 | Z53: 12.94114286 | AA53: 12.94114286 | AB53: 12.94114286 | AC53: 13.0608 | AD53: 13.0608 | AE53: 13.0608 | AF53: 13.0608 | AG53: 13.0608 | AH53: 13.06114286 | AI53: 12.99394286 | AJ53: 12.99394286 | AK53: 12.99394286 | AL53: 12.99394286 | AM53: 12.6528 | AN53: 12.6528 | AO53: 12.6528 | AP53: 12.6528 | AQ53: 12.6528 | AR53: 13.02925714 | AS53: 13.02925714 | AT53: 13.02925714 | AU53: 13.02925714 | AV53: 13.02925714 | AW53: 13.02925714 | AX53: 12.91971429 | AY53: 13.43382857 | AZ53: 13.43382857 | BA53: 13.43382857 | BB53: 13.43382857 | BC53: 13.43382857 | BD53: 13.40228571 | BE53: 13.40228571 | BF53: 13.40228571 | BG53: 13.40228571 | BH53: 13.40228571 | BI53: 13.40228571 | BJ53: 13.89 | BK53: 13.89 | BL53: 13.89 | BM53: 13.89 | BN53: 13.89 | BO53: 13.89 | BP53: 13.89 | BQ53: 13.89 | BR53: 13.89 | BS53: 13.89 | BT53: 13.89 | BU53: 13.44 | BV53: 13.77 | BW53: 13.77 | BX53: 13.77 | BY53: 13.77 | BZ53: 13.77 | CA53: 14.49 | CB53: 14.49 | CC53: 14.49 | CD53: 14.49 | CE53: 14.49 | CF53: 14.57 | CG53: 14.57 | CH53: 14.76 | CI53: 14.76
A54: STEG | B54: 15.60514286 | C54: 15.60514286 | D54: 15.60514286 | E54: 15.60548571 | F54: 15.60548571 | G54: 15.60548571 | H54: 15.60548571 | I54: 15.60548571 | J54: 15.60514286 | K54: 15.77657143 | L54: 15.77657143 | M54: 15.77657143 | N54: 15.93634286 | O54: 15.8784 | P54: 15.8784 | Q54: 15.8784 | R54: 15.8784 | S54: 15.8784 | T54: 15.8784 | U54: 15.8784 | V54: 15.8784 | W54: 15.8784 | X54: 15.8784 | Y54: 15.8784
B55: =AVERAGE(B41:B54) -> 14.65304082 | C55: 14.66044898 | D55: 14.66716327 | E55: 14.54725714 | F55: 14.43962449 | G55: 14.39963265 | H55: 14.39150204 | I55: 14.41618776 | J55: 14.41736327 | K55: 14.42960816 | L55: 14.42960816 | M55: 14.42960816 | N55: 14.72272653 | O55: 14.67915918 | P55: 14.69931429 | Q55: 14.71545306 | R55: 14.70663673 | S55: 14.70663673 | T55: 14.70663673 | U55: 14.70663673 | V55: 14.70663673 | W55: 14.70663673 | X55: 14.43825306 | Y55: 14.43825306 | Z55: 14.70822857 | AA55: 14.70825495 | AB55: 14.70825495 | AC55: 14.82791209 | AD55: 14.82791209 | AE55: 14.82791209 | AF55: 14.82791209 | AG55: 14.82722637 | AH55: =AVERAGE(AH41:AH54) -> 14.82756923 | AI55: 14.77563956 | AJ55: 14.79394286 | AK55: 14.78877363 | AL55: 14.78877363 | AM55: 14.54787033 | AN55: 14.54534505 | AO55: 14.37278242 | AP55: 14.37278242 | AQ55: 14.06282637 | AR55: 14.39604396 | AS55: 14.39604396 | AT55: 14.39604396 | AU55: 14.39604396 | AV55: 14.39604396 | AW55: 14.39604396 | AX55: 14.2292967 | AY55: 14.73478681 | AZ55: 14.73478681 | BA55: 14.73478681 | BB55: 14.73478681 | BC55: 14.73478681 | BD55: 14.69372308 | BE55: 14.69372308 | BF55: 14.69372308 | BG55: 14.69372308 | BH55: 14.69372308 | BI55: 14.69372308 | BJ55: 15.80136264 | BK55: 15.80136264 | BL55: 15.80136264 | BM55: 15.80136264 | BN55: =AVERAGE(BN41:BN54) -> 15.80136264 | BO55: 15.80136264 | BP55: 15.80153846 | BQ55: 15.80153846 | BR55: 15.80153846 | BS55: 15.80153846 | BT55: 15.80153846 | BU55: 15.35769231 | BV55: 15.75 | BW55: 15.75 | BX55: 15.75 | BY55: 15.75 | BZ55: 15.75 | CA55: 16.45461538 | CB55: 16.45461538 | CC55: 16.45461538 | CD55: 16.45461538 | CE55: 16.45461538 | CF55: 16.42461538 | CG55: 16.43769231 | CH55: 16.41153846 | CI55: 16.01384615
B94: Derzeit durchschnittlicher Strompreis: | G94: =CI55 -> 16.01384615 | H94: cent/kWh
B95: Derzeit Ökostrompreis (ökostrom-ag): | G95: 21.5 | H95: cent/kWh
B96: Einspeisepreis für Ökostrom: | G96: 5.59 | H96: cent/kWh
A102: =$B$55*(1+(D102/100))^7 -> 16.26260281 | D102: 1.5
A103: =Eingabe!$H$79*(1+(Eingabe!$H$105/100))^Berechnungen!#REF! -> 
A104: =Eingabe!$H$79*(1+(Eingabe!$H$105/100))^Berechnungen!#REF! -> 
A105: =Eingabe!$H$79*(1+(Eingabe!$H$105/100))^Berechnungen!#REF! -> 
A106: =Eingabe!$H$79*(1+(Eingabe!$H$105/100))^Berechnungen!#REF! -> 
A107: =Eingabe!$H$79*(1+(Eingabe!$H$105/100))^Berechnungen!#REF! -> 
A108: =Eingabe!$H$79*(1+(Eingabe!$H$105/100))^Berechnungen!#REF! -> 
A109: =Eingabe!$H$79*(1+(Eingabe!$H$105/100))^Berechnungen!#REF! -> 
A110: =Eingabe!$H$79*(1+(Eingabe!$H$105/100))^Berechnungen!#REF! -> 
A111: =Eingabe!$H$79*(1+(Eingabe!$H$105/100))^Berechnungen!#REF! -> 
A112: =Eingabe!$H$79*(1+(Eingabe!$H$105/100))^Berechnungen!#REF! -> 
A113: =Eingabe!$H$79*(1+(Eingabe!$H$105/100))^Berechnungen!#REF! -> 
A114: =Eingabe!$H$79*(1+(Eingabe!$H$105/100))^Berechnungen!#REF! -> 
A115: =Eingabe!$H$79*(1+(Eingabe!$H$105/100))^Berechnungen!#REF! -> 
A116: =Eingabe!$H$79*(1+(Eingabe!$H$105/100))^Berechnungen!#REF! -> 
A117: =Eingabe!$H$79*(1+(Eingabe!$H$105/100))^Berechnungen!#REF! -> 
A118: =Eingabe!$H$79*(1+(Eingabe!$H$105/100))^Berechnungen!#REF! -> 
A119: =Eingabe!$H$79*(1+(Eingabe!$H$105/100))^Berechnungen!#REF! -> 
A120: =Eingabe!$H$79*(1+(Eingabe!$H$105/100))^Berechnungen!#REF! -> 
A121: =Eingabe!$H$79*(1+(Eingabe!$H$105/100))^Berechnungen!#REF! -> 
A122: =Eingabe!$H$79*(1+(Eingabe!$H$105/100))^Berechnungen!#REF! -> 
A123: =Eingabe!$H$79*(1+(Eingabe!$H$105/100))^Berechnungen!#REF! -> 
A124: =Eingabe!$H$79*(1+(Eingabe!$H$105/100))^Berechnungen!#REF! -> 
A125: =Eingabe!$H$79*(1+(Eingabe!$H$105/100))^Berechnungen!#REF! -> 
A126: =Eingabe!$H$79*(1+(Eingabe!$H$105/100))^Berechnungen!#REF! -> 
